Workbook

Sheet Parameters (hidden)
A1: Pers_Allow | B1: 12570 | C1: Suicide code in income calcs e4 | D1: Parameters - Personal Allowance In Legislation
A2: Pers_Allow_Lim | B2: 100000 | D2: Parameters - Personal Allowance Reduces From
A3: STR | B3: 0 | C3: Refers to starting rate of tax on savings, not starter tax rate | D3: Parameters - Savings Starter Rate - Tax Band
A4: SSTR | B4: 0.19 | C4: SRIT | D4: Parameters - SRIT SR Rate
A5: SLTR | B5: 0.2 | C5: SRIT | D5: Parameters - SRIT BR Rate
A6: SITR | B6: 0.21 | C6: SRIT | D6: Parameters - SRIT IR Rate
A7: SHTR | B7: 0.42 | C7: SRIT | D7: Parameters - SRIT HR Rate
A8: SUTR | B8: 0.47 | C8: SRIT | D8: Parameters - SRIT TR Rate
A9: NTR | B9: 0 | C9: Not in use currently - placeholder added as UK equivalent of Scottish Starter rate | D9: Parameters -
A10: LTR | B10: 0.2 | D10: Parameters - UK BRB Rate
A11: HTR | B11: 0.4 | D11: Parameters - UK HRB Rate
A12: UTR | B12: 0.45 | D12: Parameters - UK ARB Rate
A13: LTR_Div | B13: 0.0875 | D13: Parameters - Dividend Basic Rate - Rate of Taxation
A14: HTR_Div | B14: 0.3375 | D14: Parameters - Dividend Higher Rate - Rate of Taxation
A15: UTR_Div | B15: 0.3935 | D15: Parameters - Dividend Additional Rate - Rate of Taxation
A16: STR_Lim | B16: 5000 | D16: Parameters - Starting Rate for Savings Band
A17: SSTR_Lim | B17: 2162 | C17: =B17+B1 -> 14732 | D17: Parameters - SRIT Starter Rate Band in Legislation
A18: SLTR_Lim | B18: 10956 | C18: =C17+B18 -> 25688 | D18: Parameters - SRIT Basic Rate Band in Legislation
A19: SITR_Lim | B19: 17974 | C19: =B19+C18 -> 43662 | D19: Parameters - SRIT Intermediate Rate Band in Legislation
A20: SHTR_Lim | B20: 94048 | C20: =B20+C19 -> 137710 | D20: Parameters - SRIT Higher Rate Band in Legislation
A21: NTR_Lim | B21: 0 | C21: Not in use currently - placeholder added as UK equivalent of Scottish Starter rate | D21: Parameters -
A22: LTR_Lim | B22: 37700 | D22: Parameters - UK BRB in Legislation
A23: HRT Band | B23: 87440 | D23: Parameters - UK HRB in Legislation
A24: ITR_Lim | B24: 0 | C24: Not in use currently - placeholder added as UK equivalent of Scottish Intermediate rate | D24: Parameters -
A25: CRIT Basic | B25: 0.2 | D25: Parameters - CRIT BRB Rate
A26: CRIT Higher | B26: 0.4 | D26: Parameters - CRIT HRB Rate
A27: CRIT Additional | B27: 0.45 | D27: Parameters - CRIT ARB Rate
A28: HTR_Lim | B28: 125140 | D28: Parameters - UK ARB Applies from
A29: SRIT TR Start | B29: 125140 | D29: Parameters - SRIT Top Rate Applies from
A30: BCGR | B30: 0.1 | D30: Parameters - CGT Basic Rate
A31: HCGR | B31: 0.2 | D31: Parameters - CGT Higher Rate
A32: Res Prop Premium | B32: 0.08 | D32: Parameters - CGT Premium Residential Property/Carried Interest
A33: Min_Rel_Lim | B33: 3600 | D33: Parameters -
A34: Ann_Allow | B34: 40000 | C34: NO IDEA WHY THIS IS HERE - MD | D34: Parameters -
A35: Tax_Credit | B35: 0 | D35: Parameters -
A36: CB_Lim | B36: 50000 | D36: Parameters - Child Benefit Reduction Level Starts
A37: CB_One_Child | B37: 24 | D37: Parameters - Child Benefit FIRST Child
A38: CB_n_Child | B38: 15.9 | D38: Parameters - Child Benefit SUBSEQUENT Children
A39: Age_Allow_1 | B39: 0 | C39: removed 6 April 2016. £60 in tax year 2015/16 | D39: Parameters -
A40: Age_Allow_Inc_Limit | B40: 0 | C40: removed 6 April 2016. £27,700 in tax year 2015/16 | D40: Parameters -
A41: Max_Gift_Aid | B41: 500000 | D41: Parameters -
A42: Max_Capital_Gain | B42: 500000 | D42: Parameters -
A43: Max_Single_Inc | B43: 500000 | D43: Parameters -
A44: Max_Income | B44: 2000000 | D44: Parameters -
A45: Max_RAS | B45: 500000 | D45: Parameters -
A46: Max_Exist_Contn | B46: 500000 | D46: Parameters -
A47: PSA_Basic | B47: 1000 | D47: Parameters - PSA Basic Band
A48: PSA_Higher | B48: 500 | D48: Parameters - PSA Higher Band
A49: Div_Allow | B49: 1000 | D49: Parameters - Dividend Zero Rate Band
A50: Basic_Limit | B50: 3600
A51: Slicing_Zero | B51: 0 | C51: MD Created | D51: Parameters - Slicing Zero

Sheet Income Calcs (hidden)
A1: Income Source: | E1: "Suicide code"
E2: =TODAY() -> 2023-04-04
A3: Salary | B3: =SUM(Inputs!C18:C18) -> 0 | E3: 2024-04-05
A4: Pen_Annuity_Inc | B4: =SUM(Inputs!C23:C23) -> 0 | E4: =AND(E2>E3) -> FALSE
A5: UFPLS | B5: =SUM(Inputs!C21:C21) -> 0
A6: Ben_Kind | B6: =SUM(Inputs!C19:C19) -> 0
A7: Self_Emp_Inc | B7: =SUM(Inputs!C20:C20) -> 0
A8: Relevant_Rent_Inc | B8: =SUM(Inputs!F23:F23) -> 0
A9: Non_Relevant_Rent_Inc | B9: =SUM(Inputs!F24:F24) -> 0
A10: Drawdown_Inc | B10: =SUM(Inputs!C22:C22) -> 0
A11: Savings_Int_Inc | B11: =SUM(Inputs!F18:F18) -> 0
A12: PL_Annuity_Inc | B12: =SUM(Inputs!C24:C24) -> 0
A13: Redundancy_Inc | B13: =SUM(Inputs!F22:F22) -> 0
A14: Div_Inc | B14: =SUM(Inputs!F19:F19) -> 0
A15: Capital_Gain | B15: =SUM(Inputs!F20:F21) -> 0
A18: Chargeable Events:
A19: Onshore_Bond_Gains | B19: =SUM(Inputs!F6:F9) -> 0 | C19: Income Summation Folder - Onshore Bond Gains
A20: Tot_Onshore_Slice | B20: =SUM(Inputs!K6:K9) -> 0 | C20: Not calculated, as not separate anymore
A21: Offshore_Bond_Gains | B21: =SUM(Inputs!F11:F14) -> 0 | C21: Income Summation Folder - Offshore Bond Gains
A22: Tot_Offshore_Slice | B22: =SUM(Inputs!K11:K14) -> 0 | C22: Not calculated, as not separate anymore
A23: Total_Bond_Gains | B23: =B19+B21 -> 0 | C23: Income Summation Folder - Offshore Bond Gains
A24: Tot_Slice | B24: =B20+B22 -> 0 | C24: Income Summation Folder - Total Slices COMBINED AS NOT SEPARATE ANYMORE
A25: Silver slicing factor | B25: =IF(B23>0,B23/B24,0) -> 0 | C25: This is to work out in case there is a circular equation
A27: Pension Contributions:
A28: Tot_Pens_Exist_Gross_Gross | B28: =SUM(Inputs!W32:W32) -> 0 | C28: Pre and Post Pension Contributions - Gross Pension Contributions
A29: Tot_Pens_Exist_RAS_Gross | B29: =SUM(Inputs!W31:W31) -> 0 | C29: Pre and Post Pension Contributions - RAS | D29: =Inputs!AA32 -> 0 | E29: SRIT Relief at Source Gross | F29: =Inputs!AD31 -> 0 | G29: CRIT Relief at Source Gross
A30: Tot_Pens_Exist_Gross | B30: =SUM(B28:B29) -> 0 | C30: Pre and Post Pension Contributions - Pension Contributions | D30: This is conditional in the Pre and Post Pension Contributions part of income summation
A31: Tot_Pens_New_Gross_Gross | B31: =B28+Inputs!W37 -> 0 | C31: Pre and Post Pension Contributions - Post Total Gross Pension Contributions
A32: Tot_Pens_New_RAS_Gross | B32: =B29+Inputs!W38 -> 0 | C32: Pre and Post Pension Contributions - Post Total RAS | D32: =Inputs!AA32+Inputs!AA39 -> 0 | E32: Post - SRIT Relief at Source Gross | F32: =Inputs!AD31+Inputs!AD38 -> 0 | G32: Post - CRIT Relief at Source Gross
A33: Tot_Pens_New_Gross | B33: =SUM(B31:B32) -> 0 | C33: Pre and Post Pension Contributions - Post - Pension Contributions | D33: This is conditional in the Pre and Post Pension Contributions part of income summation
A36: Dividends:
A37: Gross_Div | B37: ='Income Calcs'!$B$14/(1-Parameters!$B$35) -> 0 | C37: Not using as redundant
A38: Div_Allow_In_Use | B38: =IF('Income Calcs'!$B$37>0,Parameters!$B$49,0) -> 0 | C38: Dividend in ANI Model
A41: Gift Aid:
A42: Gross_Gift_Aid | B42: =Inputs!$C$12 -> 0 | C42: Gift Aid in ANI Model
A45: Income Summation:
A46: Tot_Inc_Non_Savings_Non Relevant | B46: =B4+B5+B9+B10 -> 0 | C46: Income Summation Folder - Total income NSND Non Relevant COMBINED PENSION AND DRAWDOWN
A47: Tot_Inc_Non_Savings_Relevant | B47: =B3+B6+B7+B8+B13 -> 0 | C47: NOT USED
A48: Tot_Inc_Non_Savings | B48: =SUM(B46:B47) -> 0 | C48: NSND in ANI Model
A49: Tot_Inc_Non_Savings_Relevant_Excl_Red_Pymnt | B49: =B47-B13 -> 0 | C49: Income Summation Folder - Total Income Relevant Excluding Redundancy
A50: Tot_Inc_Non_Savings_Excl_Red_Pymnt | B50: =B48-B13 -> 0 | C50: Income Summation Folder - Total income Relevant and Non Excl Redundancy
A51: Tot_Inc_Savings | B51: ='Income Calcs'!$B$11+'Income Calcs'!$B$12 -> 0 | C51: Savings in ANI Model
A52: Tot_Bond_Gain | B52: ='Income Calcs'!$B$19+'Income Calcs'!$B$21 -> 0 | C52: Income Summation has On and Off gains - Used in ANI Model
A54: Starting rate for savings
A55: Does savings income exist | B55: =IF(B51+B52>0,"Y","N") -> N | C55: Savings Summation Workings - in as a reference concept to ANI Model - Savings | D55: Not sure that this is needed
A56: Taxable non savings income_exist | B56: =Workings!D13 -> 0 | C56: Savings Summation Workings - in as a reference concept to - NSND Income Calcs 2 - references PA Still to Tax
A57: Taxable non savings income limit_exist | B57: =Workings!B5+Parameters!B16 -> 17570 | C57: Savings Summation Workings - Taxable Non Savings Income Limit
A58: Avail_Start_Rate_Exist | B58: =IF(B55="N",0,MAX(0,MIN(Parameters!B16,'Income Calcs'!B57-'Income Calcs'!B56))) -> 0 | C58: Savings Summation Workings - Available Starting Rate for Savings | D58: If savings are 0, then no need for the if three rows above, just if savings are greater than zero
A59: Taxable non savings income_new | B59: =Workings!P13 -> 0 | C59: Savings Summation Workings - in as a reference concept to - NSND Income Calcs 2 - references Post PA Still to Tax
A60: Taxable non savings income limit_new | B60: =Workings!N5+Parameters!B16 -> 17570 | C60: Savings Summation Workings - Post - Taxable Non Savings Income Limit
A61: Avail_Start_Rate_new | B61: =IF(B55="N",0,MAX(0,MIN(Parameters!B16,'Income Calcs'!B60-'Income Calcs'!B59))) -> 0 | C61: Savings Summation Workings - Post - Available Starting Rate for Savings
A65: Adjusted Net Income
A66: Adj_Net_Inc | B66: =MAX(0,SUM(B3:B14)+B23-B30-B42) -> 0 | C66: Adjusted Net Income
A67: Adj_Net_Inc_new | B67: =MAX(0,SUM(B3:B14)+B23-B33-B42) -> 0 | C67: Post - Adjusted Net Income
A69: Silver Adjusted Net Income
A70: Silv_Adj_Net_Inc | B70: =MAX(0,SUM(B3:B14)+B24-B30-B42) -> 0
A71: Silv_Adj_Net_Inc_new | B71: =MAX(0,SUM(B3:B14)+(B24)-B33-B42) -> 0
A74: Other Calculations:
A75: Under75_Flag | B75: =IF(Inputs!$C$6="Under 75","Y","N") -> Y
A76: SRIT? | B76: =IF(Inputs!C8="Yes","Y","N") -> N
A79: Silver Starting rate for savings
A80: Does savings income exist | B80: =B55 -> N
A81: Silver_Taxable non savings income_exist | B81: ='Workings (Top Slicing Slice)'!D13 -> 0
A82: Silver_Taxable non savings income limit_exist | B82: ='Workings (Top Slicing Slice)'!B5+Parameters!B16 -> 17570
A83: Silver_Avail_Start_Rate_Exist | B83: =IF(B80="N",0,MAX(0,MIN(Parameters!B16,'Income Calcs'!B82-'Income Calcs'!B81))) -> 0
A84: Silver_Taxable non savings income_new | B84: ='Workings (Top Slicing Slice)'!Q13 -> 0
A85: Silver_Taxable non savings income limit_new | B85: ='Workings (Top Slicing Slice)'!O5+Parameters!B16 -> 17570
A86: Silver_Avail_Start_Rate_new | B86: =IF(B80="N",0,MAX(0,MIN(Parameters!B16,'Income Calcs'!B85-'Income Calcs'!B84))) -> 0

Sheet Workings (hidden)
A1: Existing Position | M1: New Position | AE1: SRIT | BC1: CRIT
A3: Allowances: | M3: Allowances: | AA3: =COUNTIF(AA4:AA60,FALSE) -> 0 | AB3: =COUNTIF(AB4:AB60,FALSE) -> 0 | AC3: =COUNTIF(AC4:AC60,FALSE) -> 0 | AD3: =COUNTIF(AD4:AD60,FALSE) -> 0
A4: Pers_Allow_Adj | B4: ='Personal allowance'!B6*-1 -> 0 | M4: New_Pers_Allow_Adj | N4: ='Personal allowance'!E6*-1 -> 0 | AA4: =AND(B4=N4) -> TRUE
A5: Tot_Pers_Allow | B5: =Workings!$B$4+Parameters!$B$1 -> 12570 | D5: Personal Allowance to use in BI Personal Allowance model | M5: New_Tot_Pers_Allow | N5: =Workings!$N$4+Parameters!$B$1 -> 12570 | AA5: =AND(B5=N5) -> TRUE
A6: Pers_Sav_Allow | B6: =IF('Income Calcs'!B55="N",0,IF(D13+D20+D29+D39+D48+D55>SUM(B13:B15),0,IF(D13+D20+D29+D39+D48+D55>B13+B14,Parameters!$B$48,Parameters!$B$47))) -> 0 | D6: Workings - PSA Model | M6: New_Pers_Sav_Allow | N6: =IF('Income Calcs'!B55="N",0,IF(P13+P20+P29+P39+P48+P55>SUM(N13:N15),0,IF(P13+P20+P29+P39+P48+P55>N13+N14,Parameters!$B$48,Parameters!$B$47))) -> 0 | AA6: =AND(B6=N6) -> TRUE
A9: Non Savings Income Apportionment | M9: Non Savings Income Apportionment | AE9: Non Savings Income Apportionment
AF10: Allowances | AH10: Still to tax | AJ10: Used | AL10: Unused | AR10: Allowances | AT10: Still to tax | AV10: Used | AX10: Unused
B11: Allowances | D11: Still to tax | F11: Used | H11: Unused | N11: Allowances | P11: Still to tax | R11: Used | T11: Unused | AE11: Gross Pension Contributions | AF11: =B12 -> 0 | AH11: =D12 -> 0 | AJ11: =F12 -> 0 | AL11: =H12 -> 0 | AM11: Just copied as non-devolved | AQ11: Gross Pension Contributions | AR11: =N12 -> 0 | AT11: =P12 -> 0 | AV11: =R12 -> 0 | AX11: =T12 -> 0 | BD11: Allowances | BF11: Still to tax | BH11: Used | BJ11: Unused | BN11: Allowances | BP11: Still to tax | BR11: Used | BT11: Unused
A12: Gross Pension Contributions | B12: ='Income Calcs'!B28 -> 0 | C12: Gross Pension Contributions | D12: ='Income Calcs'!B50 -> 0 | E12: Total income Relevant and Non Excl Redundancy | F12: =MIN('Income Calcs'!B49,(MIN(Workings!B12,Workings!D12))) -> 0 | G12: Gross Pension Used - NSND | H12: =MAX(0,Workings!B12 - Workings!F12) -> 0 | I12: Gross Pension UNUSED - NSND | L12: NSND Income Calcs 1 | M12: Gross Pension Contributions | N12: ='Income Calcs'!B31 -> 0 | O12: Post - Total Gross Pension Contributions | P12: =D12 -> 0 | Q12: Total income Relevant and Non Excl Redundancy | R12: =MIN('Income Calcs'!B49,(MIN(Workings!N12,Workings!P12))) -> 0 | S12: Post - Gross Pension Used - NSND | T12: =MAX(0,Workings!N12 - Workings!P12) -> 0 | U12: Post - Gross Pension UNUSED - NSND | AA12: =AND(B12=N12) -> TRUE | AB12: =AND(D12=P12) -> TRUE | AC12: =AND(F12=R12) -> TRUE | AD12: =AND(H12=T12) -> TRUE | AE12: Personal Allowance | AF12: =B13 -> 12570 | AH12: =D13 -> 0 | AJ12: =F13 -> 0 | AL12: =H13 -> 12570 | AQ12: Personal Allowance | AR12: =N13 -> 12570 | AT12: =P13 -> 0 | AV12: =R13 -> 0 | AX12: =T13 -> 12570 | BC12: Gross Pension Contributions | BD12: =B12 -> 0 | BF12: =D12 -> 0 | BH12: =F12 -> 0 | BJ12: =H12 -> 0 | BM12: Gross Pension Contributions | BN12: =N12 -> 0 | BP12: =P12 -> 0 | BR12: =R12 -> 0 | BT12: =T12 -> 0
A13: Personal Allowance | B13: =B5 -> 12570 | C13: Personal Allowance To Use | D13: =MAX(0,D12-F12) -> 0 | E13: PA still to tax | F13: =MIN(Workings!$B$13,Workings!$D$13) -> 0 | G13: PA Used | H13: =MAX(0,Workings!B13 - Workings!F13) -> 12570 | I13: PA Unused | L13: NSND Income Calcs 2 | M13: =A13 -> Personal Allowance | N13: =N5 -> 12570 | O13: Post - Personal Allowance To Use | P13: =MAX(0,P12-R12) -> 0 | Q13: Post - PA still to tax NSND | R13: =MIN(Workings!$N$13,Workings!$P$13) -> 0 | S13: Post - PA Used NSND | T13: =MAX(0,Workings!$N$13 - Workings!$R$13) -> 12570 | U13: Post - PA UNUSED NSND | AA13: =AND(B13=N13) -> TRUE | AB13: =AND(D13=P13) -> TRUE | AC13: =AND(F13=R13) -> TRUE | AD13: =AND(H13=T13) -> TRUE | AE13: Starter Rate | AF13: =Parameters!B17 -> 2162 | AG13: SRIT Starter Rate Band In Legislation | AH13: =MAX(0,AH12-AJ12) -> 0 | AI13: SRIT SRB Still to tax | AJ13: =MIN(AF13,AH13) -> 0 | AK13: SRIT SR Band Used | AL13: =MAX(0,AF13-AJ13) -> 2162 | AM13: SRIT SR Band UNUSED | AQ13: Starter Rate | AR13: =Parameters!B17 -> 2162 | AS13: SRIT Starter Rate Band In Legislation | AT13: =MAX(0,AT12-AV12) -> 0 | AU13: Post - SRIT SRB Still to tax | AV13: =MIN(AR13,AT13) -> 0 | AW13: Post - SRIT SRB Used | AX13: =MAX(0,AR13-AV13) -> 2162 | BC13: Personal Allowance | BD13: =B13 -> 12570 | BF13: =D13 -> 0 | BH13: =F13 -> 0 | BJ13: =H13 -> 12570 | BM13: Personal Allowance | BN13: =N13 -> 12570 | BP13: =P13 -> 0 | BR13: =R13 -> 0 | BT13: =T13 -> 12570
A14: Basic Rate | B14: =Parameters!B22+'Income Calcs'!B29+'Income Calcs'!B42 -> 37700 | C14: UK BRB to Use | D14: =MAX(0,D13-F13) -> 0 | E14: UK BRB Still to tax | F14: =MIN(Workings!$B$14,Workings!$D$14) -> 0 | G14: UK BRB Used | H14: =MAX(0,Workings!$B$14-Workings!$F$14) -> 37700 | I14: UK BRB Unused | L14: NSND Income Calcs 3 | M14: =A14 -> Basic Rate | N14: =Parameters!B22+'Income Calcs'!B32+'Income Calcs'!B42 -> 37700 | O14: Post - UK BRB to Use | P14: =MAX(0,P13-R13) -> 0 | Q14: Post - UK BRB Still to tax NSND | R14: =MIN(Workings!$N$14,Workings!$P$14) -> 0 | S14: Post - UK BRB Used NSND | T14: =MAX(0,Workings!$N$14-Workings!$R$14) -> 37700 | U14: Post - UK BRB UNUSED NSND | AA14: =AND(B14=N14) -> TRUE | AB14: =AND(D14=P14) -> TRUE | AC14: =AND(F14=R14) -> TRUE | AD14: =AND(H14=T14) -> TRUE | AE14: Basic Rate | AF14: =Parameters!B18+'Income Calcs'!D29+'Income Calcs'!B42 -> 10956 | AG14: SRIT BRB to Use | AH14: =MAX(0,AH13-AJ13) -> 0 | AI14: SRIT BRB Still to tax | AJ14: =MIN(AF14,AH14) -> 0 | AK14: SRIT BRB Used | AL14: =MAX(0,AF14-AJ14) -> 10956 | AM14: SRIT BRB UNUSED | AN14: =AL14 -> 10956 | AO14: =MAX(AL14,AN14-AJ21) -> 10956 | AQ14: Basic Rate | AR14: =Parameters!B18+'Income Calcs'!B32+'Income Calcs'!B42 -> 10956 | AS14: Post - SRIT BRB to Use | AT14: =MAX(0,AT13-AV13) -> 0 | AU14: Post - SRIT BRB Still to tax | AV14: =MIN(AR14,AT14) -> 0 | AW14: Post - SRIT BRB Used | AX14: =MAX(0,AR14-AV14) -> 10956 | AY14: Post - SRIT SRB UNUSED | AZ14: =AX14 -> 10956 | BA14: =MAX(AX14,AZ14-AV21) -> 10956 | BC14: Basic Rate | BD14: =Parameters!B22+'Income Calcs'!B42+'Income Calcs'!F29 -> 37700 | BE14: CRIT BRB to Use | BF14: =MAX(0,BF13-BH13) -> 0 | BG14: CRIT BRB Still to tax | BH14: =MIN(BD14,BF14) -> 0 | BI14: CRIT BRB Used | BJ14: =MAX(0,BD14-BH14) -> 37700 | BK14: CRIT BRB UNUSED | BM14: Basic Rate | BN14: =Parameters!B22+'Income Calcs'!B42+'Income Calcs'!F32 -> 37700 | BO14: Post - CRIT BRB to Use | BP14: =MAX(0,BP13-BR13) -> 0 | BQ14: Post - CRIT BRB Still to tax | BR14: =MIN(BN14,BP14) -> 0 | BS14: Post - SRIT SRB Used | BT14: =MAX(0,BN14-BR14) -> 37700 | BU14: Post - CRIT BRB UNUSED
A15: Higher Rate | B15: =Parameters!B23 -> 87440 | C15: UK HRT Band In Legislation | D15: =MAX(0,D14-F14) -> 0 | E15: UK HRB Still to tax | F15: =MIN(Workings!$B$15,Workings!$D$15) -> 0 | G15: UK HRB Used | H15: =MAX(0,Workings!$B$15-Workings!$F$15) -> 87440 | I15: UK HRB Unused | L15: NSND Income Calcs 4 | M15: =A15 -> Higher Rate | N15: =B15 -> 87440 | O15: UK HRT Band In Legislation | P15: =MAX(0,P14-R14) -> 0 | Q15: Post - UK HRB Still to tax NSND | R15: =MIN(Workings!$N$15,Workings!$P$15) -> 0 | S15: Post - UK HRB Used NSND | T15: =MAX(0,Workings!$N$15-Workings!$R$15) -> 87440 | U15: Post - UK HRB UNUSED NSND | AA15: =AND(B15=N15) -> TRUE | AB15: =AND(D15=P15) -> TRUE | AC15: =AND(F15=R15) -> TRUE | AD15: =AND(H15=T15) -> TRUE | AE15: Intermediate Rate | AF15: =Parameters!B19 -> 17974 | AG15: SRIT Intermediate Rate Band In Legislation | AH15: =MAX(0,AH14-AJ14) -> 0 | AI15: SRIT IRB Still to tax | AJ15: =MIN(AF15,AH15) -> 0 | AK15: SRIT IRB Used | AL15: =MAX(0,AF15-AJ15) -> 17974 | AM15: SRIT IRB UNUSED | AO15: =MIN(AL15,AJ21-AO24) -> 0 | AQ15: Intermediate Rate | AR15: =Parameters!B19 -> 17974 | AS15: SRIT Intermediate Rate Band In Legislation | AT15: =MAX(0,AT14-AV14) -> 0 | AU15: Post - SRIT IRB Still to tax | AV15: =MIN(AR15,AT15) -> 0 | AW15: Post - SRIT IRB Used | AX15: =MAX(0,AR15-AV15) -> 17974 | AY15: Post - SRIT BRB UNUSED | AZ15: =AZ14+AX15 -> 28930 | BA15: =MIN(AX15,AV21-BA24) -> 0 | BC15: Higher Rate | BD15: =Parameters!B23 -> 87440 | BE15: CRIT Higher Rate Band In Legislation | BF15: =MAX(0,BF14-BH14) -> 0 | BG15: CRIT HRB Still to tax | BH15: =MIN(BD15,BF15) -> 0 | BI15: CRIT HRB Used | BJ15: =MAX(0,BD15-BH15) -> 87440 | BK15: CRIT HRB UNUSED | BM15: Higher Rate | BN15: =Parameters!B23 -> 87440 | BO15: Post - CRIT Higher Rate Band In Legislation | BP15: =MAX(0,BP14-BR14) -> 0 | BQ15: Post - CRIT HRB Still to tax | BR15: =MIN(BN15,BP15) -> 0 | BS15: Post - SRIT SRB Used | BT15: =MAX(0,BN15-BR15) -> 87440 | BU15: Post - CRIT HRB UNUSED
A16: =IF(Inputs!$C$8="Yes","Top Rate","Additional Rate") -> Additional Rate | D16: =MAX(0,Workings!$D$15-Workings!$F$15) -> 0 | F16: =Workings!$D$16 -> 0 | H16: NA | L16: NSND Income Calcs 5 | M16: =A16 -> Additional Rate | P16: =MAX(0,P15-R15) -> 0 | R16: =Workings!$P$16 -> 0 | T16: NA | AA16: =AND(B16=N16) -> TRUE | AB16: =AND(D16=P16) -> TRUE | AC16: =AND(F16=R16) -> TRUE | AD16: =AND(H16=T16) -> TRUE | AE16: Higher Rate | AF16: =Parameters!B20 -> 94048 | AG16: SRIT Higher Rate Band In Legislation | AH16: =MAX(0,AH15-AJ15) -> 0 | AI16: SRIT HRB Still to tax | AJ16: =MIN(AF16,AH16) -> 0 | AK16: SRIT HRB Used | AL16: =MAX(0,AF16-AJ16) -> 94048 | AM16: SRIT HRB UNUSED | AQ16: Higher Rate | AR16: =Parameters!B20 -> 94048 | AS16: SRIT Higher Rate Band In Legislation | AT16: =MAX(0,AT15-AV15) -> 0 | AU16: Post - SRIT HRB Still to tax | AV16: =MIN(AR16,AT16) -> 0 | AW16: Post - SRIT HRB Used | AX16: =MAX(0,AR16-AV16) -> 94048 | AY16: Post - SRIT IRB UNUSED | BC16: =IF(Inputs!$C$8="Yes","Top Rate","Additional Rate") -> Additional Rate | BF16: =MAX(0,BF15-BH15) -> 0 | BG16: CRIT ARB Still to tax | BH16: =Workings!$D$16 -> 0 | BJ16: NA | BM16: =IF(Inputs!$C$8="Yes","Top Rate","Additional Rate") -> Additional Rate | BP16: =MAX(0,Workings!$D$15-Workings!$F$15) -> 0 | BQ16: Post - CRIT ARB Still to tax | BR16: =MIN(BN16,BP16) -> 0 | BT16: NA
AE17: Top Rate | AF17: NA | AH17: =MAX(0,AH16-AJ16) -> 0 | AI17: SRIT TRB Still to tax | AJ17: =MIN(AF17,AH17) -> 0 | AL17: NA | AQ17: Top Rate | AR17: NA | AT17: =MAX(0,AT16-AV16) -> 0 | AU17: Post - SRIT TRB Still to tax | AV17: =MIN(AR17,AT17) -> 0 | AX17: NA | AY17: Post - SRIT HRB UNUSED
A18: Savings Income Tax Band Apportionment | M18: Savings Income Tax Band Apportionment | AE18: Dummy Calcs for Savings and Offshore | AQ18: Dummy Calcs for Savings
B19: Allowances | D19: Still to tax | F19: Used | H19: Unused | N19: Allowances | P19: Still to tax | R19: Used | T19: Unused | AF19: Allowances | AH19: Still to tax | AJ19: Used | AL19: Unused | AR19: Allowances | AT19: Still to tax | AV19: Used | AX19: Unused | BC19: Dummy Calcs for Savings | BM19: Dummy Calcs for Savings
A20: Starting Rate | B20: ='Income Calcs'!B58 -> 0 | C20: Available Starting Rate for Savings | D20: ='Income Calcs'!B51 -> 0 | E20: Savings | F20: =MIN(Workings!$B$20,Workings!$D$20) -> 0 | G20: Starting Rate Used - Savings | H20: =MAX(0,Workings!$B$20-Workings!$F$20) -> 0 | I20: Starting Rate UNUSED - Savings | L20: Savings Income Calcs 1 | M20: =A20 -> Starting Rate | N20: ='Income Calcs'!B61 -> 0 | O20: Post Available Starting Rate for Savings | P20: =D20 -> 0 | Q20: Savings | R20: =MIN(N20,P20) -> 0 | S20: Starting Rate Used - Savings - Post | T20: =MAX(0,Workings!$N$20 - Workings!$R$20) -> 0 | U20: Starting Rate UNUSED - Savings - Post | AA20: =AND(B20=N20) -> TRUE | AB20: =AND(D20=P20) -> TRUE | AC20: =AND(F20=R20) -> TRUE | AD20: =AND(H20=T20) -> TRUE | AE20: Starting Rate | AF20: =B20 -> 0 | AH20: =D20+D29 -> 0 | AJ20: =MIN(AF20,AH20) -> 0 | AL20: =MAX(0,Workings!AF20 - Workings!AJ20) -> 0 | AQ20: Starting Rate | AR20: =N20 -> 0 | AT20: =P20+P29 -> 0 | AV20: =MIN(AR20,AT20) -> 0 | AX20: =MAX(0,Workings!AR20 - Workings!AV20) -> 0 | BD20: Allowances | BF20: Still to tax | BH20: Used | BJ20: Unused | BN20: Allowances | BP20: Still to tax | BR20: Used | BT20: Unused
A21: Personal Savings Allowance | B21: =B6 -> 0 | C21: PSA to be used | D21: =MAX(0,D20-F20) -> 0 | E21: Savings Still to tax | F21: =MIN(Workings!$B$21,Workings!$D$21) -> 0 | G21: PSA Used on Savings | H21: =MAX(0,Workings!$B$21-Workings!$F$21) -> 0 | I21: PSA UNUSED - Savings | L21: Savings Income Calcs 2 | M21: Personal Savings Allowance | N21: =N6 -> 0 | O21: PSA to be used - Post | P21: =MAX(0,P20-R20) -> 0 | Q21: Savings Still to tax - Post | R21: =MIN(N21,P21) -> 0 | S21: PSA Used on Savings | T21: =MAX(0,Workings!$N$21 - Workings!$R$21) -> 0 | U21: PSA UNUSED - Savings - Post | AA21: TRUE | AB21: TRUE | AC21: TRUE | AD21: TRUE | AE21: Personal Savings Allowance | AF21: =B21 -> 0 | AH21: =MAX(0,AH20-AJ20) -> 0 | AJ21: =MIN(AF21,AH21) -> 0 | AL21: =MAX(0,Workings!AF21 - Workings!AJ21) -> 0 | AQ21: Personal Savings Allowance | AR21: =N21 -> 0 | AT21: =MAX(0,AT20-AV20) -> 0 | AV21: =MIN(AR21,AT21) -> 0 | AX21: =MAX(0,Workings!AR21 - Workings!AV21) -> 0 | BC21: Starting Rate | BD21: =B20 -> 0 | BF21: =D20 -> 0 | BH21: =MIN(BD21,BF21) -> 0 | BJ21: =MAX(0,Workings!BD21 - Workings!BH21) -> 0 | BM21: Starting Rate | BN21: =N20 -> 0 | BP21: =P20 -> 0 | BR21: =MIN(BN21,BP21) -> 0 | BT21: =MAX(0,Workings!BN21 - Workings!BR21) -> 0
A22: Personal Allowance | B22: =H13 -> 12570 | C22: PA Unused | D22: =MAX(0,D21-F21) -> 0 | E22: PA Savings still to tax | F22: =MIN(Workings!$B$22,Workings!$D$22) -> 0 | G22: PA Used on Savings | H22: =MAX(0,Workings!$B$22-Workings!$F$22) -> 12570 | I22: PA UNUSED on Savings | L22: Savings Income Calcs 3 | M22: Personal Allowance | N22: =T13 -> 12570 | O22: Post - PA UNUSED NSND | P22: =MAX(0,P21-R21) -> 0 | Q22: PA Savings still to tax - Post | R22: =MIN(N22,P22) -> 0 | S22: PA Used on Savings - Post | T22: =MAX(0,Workings!$N$22 - Workings!$R$22) -> 12570 | U22: PA UNUSED on Savings - Post | AA22: TRUE | AB22: TRUE | AC22: TRUE | AD22: TRUE | AE22: Personal Allowance | AF22: =B22 -> 12570 | AH22: 0 | AJ22: 0 | AL22: =MAX(0,Workings!AF22 - Workings!AJ22) -> 12570 | AM22: SRIT Dummy PA UNUSED | AN22: PSA used in stater rate just now, maybe split out | AQ22: Personal Allowance | AR22: =N22 -> 12570 | AT22: 0 | AV22: 0 | AX22: =MAX(0,Workings!AR22 - Workings!AV22) -> 12570 | AZ22: PSA used in stater rate just now, maybe split out | BC22: Personal Savings Allowance | BD22: =B21 -> 0 | BF22: =MAX(0,BF21-BH21) -> 0 | BH22: 0 | BJ22: =MAX(0,Workings!BD22 - Workings!BH22) -> 0 | BM22: Personal Savings Allowance | BN22: =N21 -> 0 | BP22: =MAX(0,BP21-BR21) -> 0 | BR22: 0 | BT22: =MAX(0,Workings!BN22 - Workings!BR22) -> 0
A23: Basic Rate | B23: =MAX(0,H14-SUM(F20:F21)) -> 37700 | C23: Basic Rate Available for Savings | D23: =MAX(0,D22-F22) -> 0 | E23: Basic Rate still to tax - Savings | F23: =MIN(Workings!$B$23,Workings!$D$23) -> 0 | G23: Basic Rate Used Savings | H23: =MAX(0,Workings!$B$23-Workings!$F$23) -> 37700 | I23: Basic Rate UNUSED Savings | L23: Savings Income Calcs 4 | M23: Basic Rate | N23: =MAX(0,(T14-SUM(R20:R21))) -> 37700 | O23: Basic Rate Available for Savings - Post | P23: =MAX(0,P22-R22) -> 0 | Q23: Basic Rate still to tax - Savings | R23: =MIN(N23,P23) -> 0 | S23: Basic Rate Used Savings - Post | T23: =MAX(0,Workings!$N$23- Workings!$R$23) -> 37700 | U23: Basic Rate UNUSED Savings - Post | AA23: TRUE | AB23: TRUE | AC23: TRUE | AD23: TRUE | AE23: Starter Rate | AF23: =MAX(0,AL13-AJ20) -> 2162 | AH23: 0 | AJ23: 0 | AL23: =MAX(0,Workings!AF23 - Workings!AJ23) -> 2162 | AM23: SRIT Dummy SR UNUSED | AQ23: Starter Rate | AR23: =MAX(0,AX13-AV20) -> 2162 | AT23: 0 | AV23: 0 | AX23: =MAX(0,Workings!AR23 - Workings!AV23) -> 2162 | BC23: Personal Allowance | BD23: =B22 -> 12570 | BF23: =MAX(0,BF22-BH22) -> 0 | BH23: 0 | BJ23: =MAX(0,Workings!BD23 - Workings!BH23) -> 12570 | BK23: CRIT Dummy PA UNUSED | BM23: Personal Allowance | BN23: =N22 -> 12570 | BP23: =MAX(0,BP22-BR22) -> 0 | BR23: 0 | BT23: =MAX(0,Workings!BN23 - Workings!BR23) -> 12570
A24: Higher Rate | B24: =H15-J24 -> 87440 | C24: Higher Rate Available for Savings | D24: =MAX(0,D23-F23) -> 0 | F24: =MIN(B24,D24) -> 0 | H24: =MAX(0,Workings!$B$24 -Workings!$F$24) -> 87440 | J24: =MIN(H15,MAX(0,F21-H14)) -> 0 | K24: Higher Rate Adjustment for PSA and SRS Bands | L24: Savings Income Calcs 5 | M24: Higher Rate | N24: =T15-V24 -> 87440 | O24: Higher Rate Available for Savings - Post | P24: =MAX(0,P23-R23) -> 0 | Q24: Higher Rate still to tax - Savings | R24: =MIN(N24,P24) -> 0 | S24: Higher Rate Used Savings - Post | T24: =MAX(0,Workings!$N$24 - Workings!$R$24) -> 87440 | U24: Higher Rate UNUSED Savings - Post | V24: =MIN(T15,MAX(0,R21-T14)) -> 0 | W24: Higher Rate Adjustment for PSA and SRS Bands - Post | AA24: TRUE | AB24: TRUE | AC24: TRUE | AD24: TRUE | AE24: Basic Rate | AF24: =AL14-AN24-AO24 -> 10956 | AH24: 0 | AJ24: =MIN(AF24,AH24) -> 0 | AL24: =MAX(0,Workings!AF24 - Workings!AJ24) -> 10956 | AM24: SRIT Dummy BR UNUSED | AN24: =IF(AJ20>AL13,AJ20-AL13,0) -> 0 | AO24: =MIN(AO14,AJ21) -> 0 | AQ24: Basic Rate | AR24: =AX14-AZ24-BA24 -> 10956 | AT24: 0 | AV24: 0 | AX24: =MAX(0,Workings!AR24 - Workings!AV24) -> 10956 | AZ24: =IF(AV20>AX13,AV20-AX13,0) -> 0 | BA24: =MIN(BA14,AV21) -> 0 | BC24: Basic Rate | BH24: 0 | BK24: CRIT Dummy BR UNUSED | BM24: Basic Rate | BR24: 0
A25: Additional Rate | D25: =MAX(0,D24-F24) -> 0 | F25: =Workings!$D$25 -> 0 | H25: NA | L25: Savings Income Calcs 6 | M25: Additional Rate | P25: =MAX(0,P24-R24) -> 0 | Q25: Additional Rate still to tax - Savings | R25: =P25 -> 0 | T25: NA | AA25: TRUE | AB25: TRUE | AC25: TRUE | AD25: TRUE | AE25: Intermediate Rate | AF25: =AL15-AO25 -> 17974 | AH25: 0 | AJ25: 0 | AL25: =MAX(0,Workings!AF25 - Workings!AJ25) -> 17974 | AM25: SRIT Dummy IR UNUSED | AO25: =AO15 -> 0 | AQ25: Intermediate Rate | AR25: =AX15-BA25 -> 17974 | AT25: 0 | AV25: 0 | AX25: =MAX(0,Workings!AR25 - Workings!AV25) -> 17974 | AY25: Post - SRIT Dummy PA UNUSED | BA25: =BA15 -> 0 | BC25: Higher Rate | BH25: 0 | BK25: CRIT Dummy HR UNUSED | BM25: Higher Rate | BR25: 0 | BU25: Post - CRIT Dummy PA UNUSED
AE26: Higher Rate | AF26: =AL16-AO26 -> 94048 | AH26: 0 | AJ26: 0 | AL26: =MAX(0,Workings!AF26 - Workings!AJ26) -> 94048 | AM26: SRIT Dummy HR UNUSED | AO26: =AJ21-AO25-AO24 -> 0 | AQ26: Higher Rate | AR26: =AX16-BA26 -> 94048 | AT26: 0 | AV26: 0 | AX26: =MAX(0,Workings!AR26 - Workings!AV26) -> 94048 | AY26: Post - SRIT Dummy SR UNUSED | BA26: =AV21-BA25-BA24 -> 0 | BC26: =IF(Inputs!$C$8="Yes","Top Rate","Additional Rate") -> Additional Rate | BH26: 0 | BM26: =IF(Inputs!$C$8="Yes","Top Rate","Additional Rate") -> Additional Rate | BR26: 0 | BU26: Post - CRIT Dummy BR UNUSED
A27: Offshore Bond Gain Tax Band Apportionment | M27: Offshore Bond Gain Tax Band Apportionment | AE27: Top Rate | AH27: 0 | AJ27: 0 | AQ27: Top Rate | AT27: 0 | AV27: 0 | AY27: Post - SRIT Dummy BR UNUSED | BU27: Post - CRIT Dummy HR UNUSED
B28: Allowances | D28: Still to tax | F28: Used | H28: Unused | N28: Allowances | P28: Still to tax | R28: Used | T28: Unused | AE28: Dummy Calcs for Offshore | AQ28: Dummy Calcs for Offshore | AY28: Post - SRIT Dummy IR UNUSED | BC28: Dummy Calcs for Offshore | BM28: Dummy Calcs for Offshore
A29: Starting Rate | B29: =H20 -> 0 | C29: Starting Rate UNUSED - Savings | D29: ='Income Calcs'!B21 -> 0 | E29: Total Full Offshore Bond Gains | F29: =MIN(Workings!$B$29,Workings!$D$29) -> 0 | G29: Starting Rate Used Offshore | H29: =MAX(0,Workings!$B$29-Workings!$F$29) -> 0 | I29: Starting Rate UNUSED Offshore | L29: Offshore Bond Gains 1 | M29: =A29 -> Starting Rate | N29: =T20 -> 0 | O29: Starting Rate UNUSED - Savings - Post | P29: =D29 -> 0 | Q29: Total Full Offshore Bond Gains | R29: =MIN(N29,P29) -> 0 | S29: Starting Rate Used Offshore | T29: =MAX(0,N29-R29) -> 0 | U29: Starting Rate UNUSED Offshore | AA29: =AND(B29=N29) -> TRUE | AB29: =AND(D29=P29) -> TRUE | AC29: =AND(F29=R29) -> TRUE | AD29: =AND(H29=T29) -> TRUE | BD29: Allowances | BF29: Still to tax | BH29: Used | BJ29: Unused | BN29: Allowances | BP29: Still to tax | BR29: Used | BT29: Unused
A30: Personal Savings Allowance | B30: =H21 -> 0 | C30: PSA UNUSED - Savings | D30: =MAX(0,Workings!$D$29 - Workings!$F$29) -> 0 | E30: Offshore Bond still to tax - PSA | F30: =MIN(Workings!$B$30,Workings!$D$30) -> 0 | G30: PSA Used - Offshore Bond | H30: =MAX(0,Workings!$B$30-Workings!$F$30) -> 0 | I30: PSA UNUSED - Offshore Bond | L30: Offshore Bond Gains 2 | M30: Personal Savings Allowance | N30: =T21 -> 0 | O30: PSA UNUSED - Savings - Post | P30: =MAX(0,P29-R29) -> 0 | Q30: Offshore Bond still to tax - PSA | R30: =MIN(N30,P30) -> 0 | S30: PSA Used - Offshore Bond | T30: =MAX(0,N30-R30) -> 0 | U30: PSA UNUSED - Offshore Bond - Post | AA30: TRUE | AB30: TRUE | AC30: TRUE | AD30: TRUE | BC30: Starting Rate | BF30: =D29 -> 0 | BH30: =MIN(BD30,BF30) -> 0 | BJ30: =MAX(0,Workings!BD30 - Workings!BH30) -> 0 | BM30: Starting Rate | BR30: =MIN(BN30,BP30) -> 0 | BT30: =MAX(0,Workings!BN30 - Workings!BR30) -> 0
A31: Personal Allowance | B31: =H22 -> 12570 | C31: PA UNUSED on Savings | D31: =MAX(0,Workings!$D$30 - Workings!$F$30) -> 0 | E31: Offshore Bond still to tax - Personal Allowance | F31: =MIN(Workings!$B$31,Workings!$D$31) -> 0 | G31: Personal Allowance Used - Offshore | H31: =MAX(0,Workings!$B$31-Workings!$F$31) -> 12570 | I31: Personal Allowance UNUSED - Offshore | L31: Offshore Bond Gains 3 | M31: Personal Allowance | N31: =T22 -> 12570 | O31: PA UNUSED on Savings - Post | P31: =MAX(0,P30-R30) -> 0 | Q31: Offshore Bond still to tax - Personal Allowance | R31: =MIN(N31,P31) -> 0 | S31: Personal Allowance Used - Offshore | T31: =MAX(0,N31-R31) -> 12570 | U31: Personal Allowance UNUSED - Offshore | AA31: TRUE | AB31: TRUE | AC31: TRUE | AD31: TRUE | BC31: Personal Savings Allowance | BH31: 0 | BJ31: =MAX(0,Workings!BD31 - Workings!BH31) -> 0 | BM31: Personal Savings Allowance | BR31: 0 | BT31: =MAX(0,Workings!BN31 - Workings!BR31) -> 0
A32: Basic Rate | B32: =MAX(0,H23-SUM(F29:F30)) -> 37700 | C32: Basic Rate avail for Offshore | D32: =MAX(0,Workings!$D$31 - Workings!$F$31) -> 0 | E32: Basic Rate still to tax - Offshore | F32: =MIN(Workings!$B$32,Workings!$D$32) -> 0 | G32: Basic Rate Used - Offshore Bond | H32: =MAX(0,Workings!$B$32-Workings!$F$32) -> 37700 | I32: Basic Rate UNUSED - Offshore | L32: Offshore Bond Gains 4 | M32: Basic Rate | N32: =MAX(0,T23-SUM(R29:R30)) -> 37700 | O32: Basic Rate avail for Offshore | P32: =MAX(0,P31-R31) -> 0 | Q32: Basic Rate still to tax - Offshore | R32: =MIN(N32,P32) -> 0 | S32: Basic Rate Used - Offshore Bond | T32: =MAX(0,N32-R32) -> 37700 | U32: Basic Rate UNUSED - Offshore | AA32: TRUE | AB32: TRUE | AC32: TRUE | AD32: TRUE | BC32: Personal Allowance | BH32: 0 | BJ32: =MAX(0,Workings!BD32 - Workings!BH32) -> 0 | BK32: CRIT Dummy PA UNUSED | BM32: Personal Allowance | BR32: 0 | BT32: =MAX(0,Workings!BN32 - Workings!BR32) -> 0
A33: Higher Rate | B33: =H24-J33 -> 87440 | C33: Higher Rate avail Offshore | D33: =MAX(0,Workings!$D$32 - Workings!$F$32) -> 0 | E33: Higher Rate still to tax - Offshore | F33: =MIN(Workings!$B$33,Workings!$D$33) -> 0 | G33: Higher Rate Used - Offshore Bond | H33: =MAX(0,Workings!$B$33-Workings!$F$33) -> 87440 | I33: Higher Rate UNUSED - Offshore Bond | J33: =MIN(H24,MAX(0,F30-H23)) -> 0 | K33: Offshore HR Adjustment for PSA and SRS Bands | L33: Offshore Bond Gains 5 | M33: Higher Rate | N33: =T24-V33 -> 87440 | O33: Higher Rate avail Offshore | P33: =MAX(0,P32-R32) -> 0 | Q33: Higher Rate still to tax - Offshore | R33: =MIN(N33,P33) -> 0 | S33: Higher Rate Used - Offshore Bond | T33: =MAX(0,N33-R33) -> 87440 | U33: Higher Rate UNUSED - Offshore Bond | V33: =MIN(T24,MAX(0,R30-T23)) -> 0 | W33: Offshore HR Adjustment for PSA and SRS Bands | AA33: TRUE | AB33: TRUE | AC33: TRUE | AD33: TRUE | BC33: Basic Rate | BH33: 0 | BK33: CRIT Dummy BR UNUSED | BM33: Basic Rate | BR33: 0
A34: Additional Rate | D34: =MAX(0,Workings!$D$33 - Workings!$F$33) -> 0 | E34: Additional Rate still to tax - Offshore | F34: =Workings!$D$34 -> 0 | H34: NA | L34: Offshore Bond Gains 6 | M34: Additional Rate | P34: =MAX(0,P33-R33) -> 0 | Q34: Additional Rate still to tax - Offshore | R34: =P34 -> 0 | T34: NA | AA34: TRUE | AB34: TRUE | AC34: TRUE | AD34: TRUE | BC34: Higher Rate | BH34: 0 | BK34: CRIT Dummy HR UNUSED | BM34: Higher Rate | BR34: 0
BC35: =IF(Inputs!$C$8="Yes","Top Rate","Additional Rate") -> Additional Rate | BH35: 0 | BM35: =IF(Inputs!$C$8="Yes","Top Rate","Additional Rate") -> Additional Rate | BR35: 0
A37: Dividend Income Tax Band Apportionment | M37: Dividend Income Tax Band Apportionment | AE37: Dummy Calcs for Dividends | AQ37: Dummy Calcs for Dividends
B38: Allowances | D38: Still to tax | F38: Used | H38: Unused | N38: Allowances | P38: Still to tax | R38: Used | T38: Unused | AF38: Allowances | AH38: Still to tax | AJ38: Used | AL38: Unused | AR38: Allowances | AT38: Still to tax | AV38: Used | AX38: Unused | BC38: Dummy Calcs for Dividends | BM38: Dummy Calcs for Dividends
A39: Dividend Allowance | B39: ='Income Calcs'!B38 -> 0 | C39: Dividend Zero Rate Band | D39: ='Income Calcs'!$B$37 -> 0 | E39: Dividend | F39: =MIN(Workings!$B$39,Workings!$D$39) -> 0 | G39: Dividend Zero Rate Used | H39: =MAX(0,Workings!$B$39-Workings!$F$39) -> 0 | I39: Dividend Zero Rate Unused | L39: Dividend Income Calcs 1 | M39: Dividend Allowance | N39: =B39 -> 0 | O39: Dividend Zero Rate Band | P39: =D39 -> 0 | Q39: Dividend | R39: =MIN(N39,P39) -> 0 | S39: Dividend Zero Rate Used | T39: =MAX(0,N39-R39) -> 0 | U39: Dividend Zero Rate Unused | AA39: =AND(B39=N39) -> TRUE | AB39: =AND(D39=P39) -> TRUE | AC39: =AND(F39=R39) -> TRUE | AD39: =AND(H39=T39) -> TRUE | AE39: Dividend Allowance | AF39: =B39 -> 0 | AH39: =D39 -> 0 | AJ39: =MIN(AF39,AH39) -> 0 | AL39: =MAX(0,Workings!AF39 - Workings!AJ39) -> 0 | AQ39: Dividend Allowance | AR39: =N39 -> 0 | AT39: =P39 -> 0 | AV39: =MIN(AR39,AT39) -> 0 | AX39: =MAX(0,Workings!AR39 - Workings!AV39) -> 0 | BD39: Allowances | BF39: Still to tax | BH39: Used | BJ39: Unused | BN39: Allowances | BP39: Still to tax | BR39: Used | BT39: Unused
A40: Personal Allowance | B40: =H31 -> 12570 | C40: Personal Allowance UNUSED - Offshore | D40: =MAX(0,Workings!$D$39 - Workings!$F$39) -> 0 | E40: Dividend Still to Tax Pers Allow | F40: =MIN(Workings!$B$40,Workings!$D$40) -> 0 | G40: Personal Allowance Used - Dividends | H40: =MAX(0,Workings!$B$40 - Workings!$F$40) -> 12570 | I40: Personal Allowance UNUSED - Dividends | L40: Dividend Income Calcs 2 | M40: Personal Allowance | N40: =T31 -> 12570 | O40: Dividend Zero Rate Used | P40: =MAX(0,P39-R39) -> 0 | Q40: Dividend Still to Tax Pers Allow | R40: =MIN(N40,P40) -> 0 | S40: Personal Allowance Used - Dividends | T40: =MAX(0,N40-R40) -> 12570 | U40: Personal Allowance UNUSED - Dividends - Post | AA40: =AND(B40=N40) -> TRUE | AB40: =AND(D40=P40) -> TRUE | AC40: =AND(F40=R40) -> TRUE | AD40: =AND(H40=T40) -> TRUE | AE40: Personal Allowance | AF40: =B40 -> 12570 | AH40: =MAX(0,AH39-AJ39) -> 0 | AJ40: 0 | AL40: =MAX(0,Workings!AF40 - Workings!AJ40) -> 12570 | AQ40: Personal Allowance | AR40: =N40 -> 12570 | AT40: =P40 -> 0 | AV40: 0 | AX40: =MAX(0,Workings!AR40 - Workings!AV40) -> 12570 | BC40: Dividend Allowance | BH40: =MIN(BD40,BF40) -> 0 | BM40: Dividend Allowance | BR40: =MIN(BN40,BP40) -> 0
A41: Basic Rate | B41: =MAX(0,H32-F39) -> 37700 | C41: Basic Rate Avail for Dividends | D41: =MAX(0,Workings!$D$40- Workings!$F$40) -> 0 | E41: Basic Rate still to tax - Dividend | F41: =MIN(Workings!$B$41,Workings!$D$41) -> 0 | G41: Basic Rate used - Dividend | H41: =MAX(0,Workings!$B$41-Workings!$F$41) -> 37700 | I41: Basic rate UNUSED - Dividend | L41: Dividend Income Calcs 3 | M41: Basic Rate | N41: =MAX(0,T32-R39) -> 37700 | O41: Basic Rate Avail for Dividends | P41: =MAX(0,P40-R40) -> 0 | Q41: Basic Rate still to tax - Dividend | R41: =MIN(N41,P41) -> 0 | S41: Basic Rate used - Dividend | T41: =MAX(0,N41-R41) -> 37700 | U41: Basic rate UNUSED - Dividend | AA41: =AND(B41=N41) -> TRUE | AB41: =AND(D41=P41) -> TRUE | AC41: =AND(F41=R41) -> TRUE | AD41: =AND(H41=T41) -> TRUE | AE41: Starter Rate | AF41: =MAX(0,AL23-AJ39) -> 2162 | AH41: =MAX(0,AH40-AJ40) -> 0 | AJ41: 0 | AL41: =MAX(0,Workings!AF41 - Workings!AJ41) -> 2162 | AO41: =AJ39-AL23 -> -2162 | AQ41: Starter Rate | AR41: =MAX(0,AX23-AV39) -> 2162 | AT41: =MAX(0,AT40-AV40) -> 0 | AV41: 0 | AX41: =MAX(0,Workings!AR41 - Workings!AV41) -> 2162 | BA41: =AV39-AX23 -> -2162 | BC41: Personal Allowance | BH41: =MIN(BD41,BF41) -> 0 | BM41: Personal Allowance | BR41: =MIN(BN41,BP41) -> 0
A42: Higher Rate | B42: =H33-J42 -> 87440 | C42: Higher Rate Avail for Dividends | D42: =MAX(0,Workings!$D$41-Workings!$F$41) -> 0 | E42: HIgher Rate still to tax - Dividend | F42: =MIN(Workings!$B$42,Workings!$D$42) -> 0 | G42: Higher Rate used - Dividend | H42: =MAX(0,Workings!$B$42-Workings!$F$42) -> 87440 | I42: HIgher rate UNUSED - Dividend | J42: =MIN(H33,MAX(0,F39-H32)) -> 0 | K42: Dividend HR Adjustment for PSA and SRS Bands | L42: Dividend Income Calcs 4 | M42: Higher Rate | N42: =T33-V42 -> 87440 | O42: Higher Rate Avail for Dividends | P42: =MAX(0,P41-R41) -> 0 | Q42: HIgher Rate still to tax - Dividend | R42: =MIN(N42,P42) -> 0 | S42: Higher Rate used - Dividend | T42: =MAX(0,N42-R42) -> 87440 | U42: HIgher rate UNUSED - Dividend | V42: =MIN(T33,MAX(0,R39-T32)) -> 0 | W42: Dividend HR Adjustment for PSA and SRS Bands | AA42: =AND(B42=N42) -> TRUE | AB42: =AND(D42=P42) -> TRUE | AC42: =AND(F42=R42) -> TRUE | AD42: =AND(H42=T42) -> TRUE | AE42: Basic Rate | AF42: =MAX(0,AL24-AO42) -> 10956 | AH42: 0 | AJ42: 0 | AL42: =MAX(0,Workings!AF42 - Workings!AJ42) -> 10956 | AO42: =MIN(AL24,IF(AJ39>AL23,AO41-AJ41,0)) -> 0 | AQ42: Basic Rate | AR42: =MAX(0,AX24-BA42) -> 10956 | AT42: =MAX(0,AT41-AV41) -> 0 | AV42: 0 | AX42: =MAX(0,Workings!AR42 - Workings!AV42) -> 10956 | BA42: =MIN(AX24,IF(AV39>AX23,BA41-AV41,0)) -> 0 | BC42: Basic Rate | BH42: =MIN(BD42,BF42) -> 0 | BM42: Basic Rate | BR42: =MIN(BN42,BP42) -> 0
A43: Additional Rate | D43: =MAX(0,Workings!$D$42-Workings!$F$42) -> 0 | E43: Additional Rate still to tax - Dividend | F43: =Workings!$D$43 -> 0 | H43: NA | L43: Dividend Income Calcs 5 | M43: Additional Rate | P43: =MAX(0,P42-R42) -> 0 | Q43: Additional Rate still to tax - Dividend | R43: =P43 -> 0 | T43: NA | AA43: =AND(B43=N43) -> TRUE | AB43: =AND(D43=P43) -> TRUE | AC43: =AND(F43=R43) -> TRUE | AD43: =AND(H43=T43) -> TRUE | AE43: Intermediate Rate | AF43: =MAX(0,AL25-AO43) -> 17974 | AH43: 0 | AJ43: 0 | AL43: =MAX(0,Workings!AF43 - Workings!AJ43) -> 17974 | AO43: =MIN(AL25,MAX(0,(AO41-AO42))) -> 0 | AQ43: Intermediate Rate | AR43: =MAX(0,AX25-BA43) -> 17974 | AT43: =MAX(0,AT42-AV42) -> 0 | AV43: 0 | AX43: =MAX(0,Workings!AR43 - Workings!AV43) -> 17974 | BA43: =MIN(AX25,MAX(0,(BA41-BA42))) -> 0 | BC43: Higher Rate | BH43: =MIN(BD43,BF43) -> 0 | BM43: Higher Rate | BR43: =MIN(BN43,BP43) -> 0
AE44: Higher Rate | AF44: =MAX(0,AL26-AO44) -> 94048 | AH44: 0 | AJ44: 0 | AL44: =MAX(0,Workings!AF44 - Workings!AJ44) -> 94048 | AO44: =MIN(AL26,MAX(0,(AO41-AO43-AO42))) -> 0 | AQ44: Higher Rate | AR44: =MAX(0,AX26-BA44) -> 94048 | AT44: =MAX(0,AT43-AV43) -> 0 | AV44: 0 | AX44: =MAX(0,Workings!AR44 - Workings!AV44) -> 94048 | BA44: =MIN(AX26,MAX(0,(BA41-BA43-BA42))) -> 0 | BC44: Additional Rate | BH44: =MIN(BD44,BF44) -> 0 | BM44: Additional Rate | BR44: =MIN(BN44,BP44) -> 0
A45: Redundancy Payment Tax Band Apportionment | M45: Redundancy Payment Tax Band Apportionment | AE45: Top Rate | AH45: 0 | AJ45: 0 | AQ45: Top Rate | AT45: =MAX(0,AT44-AV44) -> 0 | AV45: 0
B46: Allowances | D46: Still to tax | F46: Used | H46: Unused | N46: Allowances | P46: Still to tax | R46: Used | T46: Unused
A47: Gross Pension Contributions | B47: =H12 -> 0 | C47: Gross Pension UNUSED - NSND | D47: ='Income Calcs'!B13 -> 0 | E47: Taxable Redundancy Payments | F47: =MIN(Workings!$B$47,Workings!$D$47) -> 0 | G47: Gross Pension Used for Redundancy | H47: =MAX(0,Workings!B47 - Workings!F47) -> 0 | I47: Gross Pension Unused for Redundancy | L47: Redundancy Income Calcs 1 | M47: Gross Pension Contributions | N47: =T12 -> 0 | O47: Post Gross Pension UNUSED - NSND | P47: =D47 -> 0 | Q47: Taxable Redundancy Payments | R47: =MIN('Income Calcs'!B90,(MIN(Workings!N47,Workings!P47))) -> 0 | S47: Gross Pension Used for Redundancy | T47: =MAX(0,Workings!N47 - Workings!R47) -> 0 | U47: Gross Pension Unused for Redundancy | AA47: =AND(B47=N47) -> TRUE | AB47: =AND(D47=P47) -> TRUE | AC47: =AND(F47=R47) -> TRUE | AD47: =AND(H47=T47) -> TRUE | AE47: Redundancy Payment Tax Band Apportionment | AQ47: Redundancy Payment Tax Band Apportionment | AY47: Just copied as non-devolved
A48: Personal Allowance | B48: =H40 -> 12570 | C48: Personal Allowance UNUSED - Dividends | D48: =MAX(0,D47-F47) -> 0 | E48: Redundancy Still to Tax Personal Allowance | F48: =MIN(Workings!$B$48,Workings!$D$48) -> 0 | G48: Personal Allowance used - Redundancy | H48: =MAX(0,Workings!$B$48 - Workings!$F$48) -> 12570 | I48: Personal Allowance UNUSED - Redundancy | L48: Redundancy Income Calcs 2 | M48: =A48 -> Personal Allowance | N48: =T40 -> 12570 | O48: Personal Allowance UNUSED - Dividends - Post | P48: =MAX(0,P47-R47) -> 0 | Q48: Redundancy Still to Tax Personal Allowance - Post | R48: =MIN(N48,P48) -> 0 | S48: Personal Allowance used - Redundancy - Post | T48: =MAX(0,N48-R48) -> 12570 | U48: Personal Allowance UNUSED - Redundancy - Post | AA48: =AND(B48=N48) -> TRUE | AB48: =AND(D48=P48) -> TRUE | AC48: =AND(F48=R48) -> TRUE | AD48: =AND(H48=T48) -> TRUE | AF48: Allowances | AH48: Still to tax | AJ48: Used | AL48: Unused | AR48: Allowances | AT48: Still to tax | AV48: Used | AX48: Unused | BD48: Allowances | BF48: Still to tax | BH48: Used | BJ48: Unused | BN48: Allowances | BP48: Still to tax | BR48: Used | BT48: Unused
A49: Basic Rate | B49: =H41 -> 37700 | C49: Basic rate UNUSED - Dividend | D49: =MAX(0,D48-F48) -> 0 | E49: Basic Rate still to tax - Redundancy | F49: =MIN(Workings!$B$49,Workings!$D$49) -> 0 | G49: Basic Rate used - Redundancy | H49: =MAX(0,Workings!$B$49-Workings!$F$49) -> 37700 | I49: Basic Rate UNUSED - Redundancy | L49: Redundancy Income Calcs 3 | M49: =A49 -> Basic Rate | N49: =T41 -> 37700 | O49: Basic rate UNUSED - Dividend - Post | P49: =MAX(0,P48-R48) -> 0 | Q49: Basic Rate still to tax - Redundancy - Post | R49: =MIN(N49,P49) -> 0 | S49: Basic Rate used - Redundancy - Post | T49: =MAX(0,N49-R49) -> 37700 | U49: Basic Rate UNUSED - Redundancy - Post | AA49: =AND(B49=N49) -> TRUE | AB49: =AND(D49=P49) -> TRUE | AC49: =AND(F49=R49) -> TRUE | AD49: =AND(H49=T49) -> TRUE | AE49: Gross Pension Contributions | AF49: =B47 -> 0 | AH49: =D47 -> 0 | AJ49: =F47 -> 0 | AL49: =H47 -> 0 | AM49: Just copied as non-devolved | AQ49: Gross Pension Contributions | AR49: =N47 -> 0 | AT49: =P47 -> 0 | AV49: =MIN(AR49,AT49) -> 0 | AX49: =R47 -> 0 | AY49: Post - SRIT Redundancy SR UNUSED | BC49: Gross Pension Contributions | BD49: =B47 -> 0 | BF49: =D47 -> 0 | BH49: =F47 -> 0 | BJ49: =H47 -> 0 | BM49: Gross Pension Contributions | BN49: =N47 -> 0 | BP49: =P47 -> 0 | BR49: =R47 -> 0 | BT49: =T47 -> 0 | BU49: Post - CRIT Redundancy BR UNUSED
A50: Higher Rate | B50: =H42 -> 87440 | C50: HIgher rate UNUSED - Dividend | D50: =MAX(0,D49-F49) -> 0 | E50: Higher Rate still to tax - Redundancy | F50: =MIN(Workings!$B$50,Workings!$D$50) -> 0 | G50: HIgher Rate Used - Redundancy | H50: =MAX(0,Workings!$B$50-Workings!$F$50) -> 87440 | I50: Higher Rate UNUSED - Redundancy | L50: Redundancy Income Calcs 4 | M50: =A50 -> Higher Rate | N50: =T42 -> 87440 | O50: HIgher rate UNUSED - Dividend - Post | P50: =MAX(0,P49-R49) -> 0 | Q50: Higher Rate still to tax - Redundancy - Post | R50: =MIN(N50,P50) -> 0 | S50: HIgher Rate Used - Redundancy - Post | T50: =MAX(0,N50-R50) -> 87440 | U50: Higher Rate UNUSED - Redundancy - Post | AA50: =AND(B50=N50) -> TRUE | AB50: =AND(D50=P50) -> TRUE | AC50: =AND(F50=R50) -> TRUE | AD50: =AND(H50=T50) -> TRUE | AE50: Personal Allowance | AF50: =AL40 -> 12570 | AH50: =MAX(0,AH49-AJ49) -> 0 | AJ50: =MIN(AF50,AH50) -> 0 | AL50: =MAX(0,AF50-AJ50) -> 12570 | AQ50: Personal Allowance | AR50: =AX40 -> 12570 | AT50: =MAX(0,AT49-AV49) -> 0 | AV50: 0 | AX50: =MAX(0,AR50-AV50) -> 12570 | AY50: Post - SRIT Redundancy BR UNUSED | BC50: Personal Allowance | BD50: =B48 -> 12570 | BF50: =D48 -> 0 | BH50: =F48 -> 0 | BJ50: =H48 -> 12570 | BM50: Personal Allowance | BN50: =N48 -> 12570 | BP50: =P48 -> 0 | BR50: =R48 -> 0 | BT50: =T48 -> 12570 | BU50: Post - CRIT Redundancy HR UNUSED
A51: =IF(Inputs!$C$8="Yes","Top Rate","Additional Rate") -> Additional Rate | D51: =MAX(0,D50-F50) -> 0 | E51: Additional Rate still to tax - Redundancy | F51: =D51 -> 0 | H51: NA | L51: Redundancy Income Calcs 5 | M51: =A51 -> Additional Rate | P51: =MAX(0,P50-N50) -> 0 | Q51: Additional Rate still to tax - Redundancy - Post | R51: =P51 -> 0 | T51: NA | AA51: =AND(B51=N51) -> TRUE | AB51: =AND(D51=P51) -> TRUE | AC51: =AND(F51=R51) -> TRUE | AD51: =AND(H51=T51) -> TRUE | AE51: Starter Rate | AF51: =AL41 -> 2162 | AG51: SRIT Dummy SR UNUSED | AH51: =MAX(0,AH50-AJ50) -> 0 | AI51: SRIT Redundancy SR Still to Tax | AJ51: 0 | AK51: SRIT Redundancy SR Used | AL51: =MAX(0,AF51-AJ51) -> 2162 | AM51: SRIT Redundancy SR UNUSED | AQ51: Starter Rate | AR51: =AX41 -> 2162 | AS51: Post - SRIT Dummy SR UNUSED | AT51: 0 | AU51: Post - SRIT Redundancy SR Still to Tax | AV51: 0 | AW51: Post - SRIT Redundancy SR Used | AX51: =MAX(0,AR51-AV51) -> 2162 | AY51: Post - SRIT Redundancy IR UNUSED | BC51: Basic Rate | BD51: =BJ24 -> 0 | BE51: CRIT Dummy BR UNUSED | BF51: =MAX(0,BF50-BH50) -> 0 | BG51: CRIT Redundancy BR Still to Tax | BH51: =MIN(BD51,BF51) -> 0 | BI51: CRIT Redundancy BR Used | BJ51: =MAX(0,BD51-BH51) -> 0 | BK51: CRIT Redundancy BR UNUSED | BM51: Basic Rate | BN51: =BT24 -> 0 | BO51: =BU26 -> Post - CRIT Dummy BR UNUSED | BP51: =MAX(0,BP50-BR50) -> 0 | BQ51: Post - CRIT Redundancy BR Still to Tax | BR51: =MIN(BN51,BP51) -> 0 | BS51: Post - CRIT Redundancy BR Used | BT51: =MAX(0,BN51-BR51) -> 0
AE52: Basic Rate | AF52: =AL42 -> 10956 | AG52: SRIT Dummy BR UNUSED | AH52: 0 | AI52: SRIT Redundancy BR Still to Tax | AJ52: 0 | AK52: SRIT Redundancy BR Used | AL52: =MAX(0,AF52-AJ52) -> 10956 | AM52: SRIT Redundancy BR UNUSED | AQ52: Basic Rate | AR52: =AX42 -> 10956 | AS52: Post - SRIT Dummy BR UNUSED | AT52: 0 | AU52: Post - SRIT Redundancy BR Still to Tax | AV52: 0 | AW52: Post - SRIT Redundancy BR Used | AX52: =MAX(0,AR52-AV52) -> 10956 | AY52: Post - SRIT Redundancy HR UNUSED | BC52: Higher Rate | BD52: =BJ25 -> 0 | BE52: CRIT Dummy HR UNUSED | BF52: =MAX(0,BF51-BH51) -> 0 | BG52: CRIT Redundancy HR Still to Tax | BH52: =MIN(BD52,BF52) -> 0 | BI52: CRIT Redundancy HR Used | BJ52: =MAX(0,BD52-BH52) -> 0 | BK52: CRIT Redundancy HR UNUSED | BM52: Higher Rate | BN52: =BT25 -> 0 | BO52: =BU27 -> Post - CRIT Dummy HR UNUSED | BP52: =MAX(0,BP51-BR51) -> 0 | BQ52: Post - CRIT Redundancy HR Still to Tax | BR52: =MIN(BN52,BP52) -> 0 | BS52: Post - CRIT Redundancy HR Used | BT52: =MAX(0,BN52-BR52) -> 0
A53: Onshore Bond Gain Tax Band Apportionment | M53: Onshore Bond Gain Tax Band Apportionment | AE53: Intermediate Rate | AF53: =AL43 -> 17974 | AG53: SRIT Dummy IR UNUSED | AH53: 0 | AI53: SRIT Redundancy IR Still to Tax | AJ53: 0 | AK53: SRIT Redundancy IR Used | AL53: =MAX(0,AF53-AJ53) -> 17974 | AM53: SRIT Redundancy IR UNUSED | AQ53: Intermediate Rate | AR53: =AX43 -> 17974 | AS53: Post - SRIT Dummy IR UNUSED | AT53: 0 | AU53: Post - SRIT Redundancy IR Still to Tax | AV53: 0 | AW53: Post - SRIT Redundancy IR Used | AX53: =MAX(0,AR53-AV53) -> 17974 | BC53: =IF(Inputs!$C$8="Yes","Top Rate","Additional Rate") -> Additional Rate | BF53: =MAX(0,BF52-BH52) -> 0 | BG53: CRIT Redundancy AR Still to Tax | BM53: =IF(Inputs!$C$8="Yes","Top Rate","Additional Rate") -> Additional Rate | BP53: =MAX(0,BP52-BR52) -> 0 | BQ53: Post - CRIT Redundancy AR Still to Tax
B54: Allowances | D54: Still to tax | F54: Used | H54: Unused | N54: Allowances | P54: Still to tax | R54: Used | T54: Unused | AE54: Higher Rate | AF54: =AL44 -> 94048 | AG54: SRIT Dummy HR UNUSED | AH54: 0 | AI54: SRIT Redundancy HR Still to Tax | AJ54: 0 | AK54: SRIT Redundancy HR Used | AL54: =MAX(0,AF54-AJ54) -> 94048 | AM54: SRIT Redundancy HR UNUSED | AQ54: Higher Rate | AR54: =AX44 -> 94048 | AS54: Post - SRIT Dummy HR UNUSED | AT54: 0 | AU54: Post - SRIT Redundancy HR Still to Tax | AV54: 0 | AW54: Post - SRIT Redundancy HR Used | AX54: =MAX(0,AR54-AV54) -> 94048
A55: Starting Rate | B55: =MAX(0,H29-J55) -> 0 | C55: Starting Rate to use Onshore | D55: ='Income Calcs'!B19 -> 0 | E55: Total Full Onshore Bond Gains | F55: =MIN(Workings!$B$55,Workings!$D$55) -> 0 | G55: Starting Rate used Onshore | H55: =MAX(0,Workings!$B$55-Workings!$F$55) -> 0 | I55: Starting Rate UNUSED Onshore | J55: =F39+F41+F49 -> 0 | K55: Starting Rate used by Income | L55: Onshore Bond Gains 1 | M55: =A55 -> Starting Rate | N55: =MAX(0,T29-V55) -> 0 | O55: Starting Rate to use Onshore - Post | P55: =D55 -> 0 | Q55: Total Full Onshore Bond Gains | R55: =MIN(N55,P55) -> 0 | S55: Starting Rate used Onshore - Post | T55: =MAX(0,N55-R55) -> 0 | U55: Starting Rate UNUSED Onshore - Post | V55: =R39+R41+R49 -> 0 | W55: Starting Rate used by Income - Post | AA55: =AND(B55=N55) -> TRUE | AB55: =AND(D55=P55) -> TRUE | AC55: =AND(F55=R55) -> TRUE | AD55: =AND(H55=T55) -> TRUE | AE55: Top Rate | AF55: NA | AH55: 0 | AI55: SRIT Redundancy TR Still to Tax | AJ55: 0 | AL55: NA | AQ55: Top Rate | AR55: NA | AT55: 0 | AU55: Post - SRIT Redundancy TR Still to Tax | AV55: 0 | AX55: NA
A56: Personal Savings Allowance | B56: =H30 -> 0 | C56: PSA UNUSED - Offshore Bond | D56: =MAX(0,Workings!$D$55 - Workings!$F$55) -> 0 | E56: Onshore Bond still to tax - PSA | F56: =MIN(Workings!$B$56,Workings!$D$56) -> 0 | G56: PSA Used - Onshore Bond | H56: =MAX(0,Workings!$B$56-Workings!$F$56) -> 0 | I56: PSA UNUSED - Onshore Bond | L56: Onshore Bond Gains 2 | M56: Personal Savings Allowance | N56: =T30 -> 0 | O56: PSA UNUSED - Offshore Bond - Post | P56: =MAX(0,P55-R55) -> 0 | Q56: Onshore Bond still to tax - PSA - Post | R56: =MIN(N56,P56) -> 0 | S56: PSA Used - Onshore Bond - Post | T56: =MAX(0,N56-R56) -> 0 | U56: PSA UNUSED - Onshore Bond - Post | AA56: TRUE | AB56: TRUE | AC56: TRUE | AD56: TRUE
A57: Personal Allowance | B57: =H48 -> 12570 | C57: Personal Allowance UNUSED - Redundancy | D57: =MAX(0,Workings!$D$56 - Workings!$F$56) -> 0 | E57: Onshore Bond still to tax - Pers Allow | F57: =MIN(Workings!$B$57,Workings!$D$57) -> 0 | G57: Personal Allowance Used - Onshore | H57: =MAX(0,Workings!$B$57-Workings!$F$57) -> 12570 | I57: Personal Allowance UNUSED - Onshore | L57: Onshore Bond Gains 3 | M57: Personal Allowance | N57: =T48 -> 12570 | O57: Personal Allowance UNUSED - Redundancy - Post | P57: =MAX(0,P56-R56) -> 0 | Q57: Onshore Bond still to tax - Pers Allow - Post | R57: =MIN(N57,P57) -> 0 | S57: Personal Allowance Used - Onshore - Post | T57: =MAX(0,N57-R57) -> 12570 | U57: Personal Allowance UNUSED - Onshore - Post | AA57: TRUE | AB57: TRUE | AC57: TRUE | AD57: TRUE
A58: Basic Rate | B58: =MAX(0,H49-(SUM(F55:F56))) -> 37700 | C58: Basic Rate avail for Onshore - Slice | D58: =MAX(0,Workings!$D$57 - Workings!$F$57) -> 0 | E58: Basic Rate still to tax - Onshore | F58: =MIN(Workings!$B$58,Workings!$D$58) -> 0 | G58: Basic Rate used - Onshore | H58: =MAX(0,Workings!$B$58-Workings!$F$58) -> 37700 | I58: Basic Rate UNUSED - Onshore | L58: Onshore Bond Gains 4 | M58: Basic Rate | N58: =MAX(0,T49-(SUM(R55:R56))) -> 37700 | O58: Basic Rate avail for Onshore - Post | P58: =MAX(0,P57-R57) -> 0 | Q58: Basic Rate still to tax - Onshore - Post | R58: =MIN(N58,P58) -> 0 | S58: Basic Rate used - Onshore - Post | T58: =MAX(0,N58-R58) -> 37700 | U58: Basic Rate UNUSED - Onshore - Post | AA58: TRUE | AB58: TRUE | AC58: TRUE | AD58: TRUE
A59: Higher Rate | B59: =H50-J59 -> 87440 | C59: Higher Rate avail for Onshore | D59: =MAX(0,Workings!$D$58 - Workings!$F$58) -> 0 | E59: Higher Rate still to tax - Onshore | F59: =MIN(Workings!$B$59,Workings!$D$59) -> 0 | G59: Higher Rate used - Onshore | H59: =MAX(0,Workings!$B$59-Workings!$F$59) -> 87440 | I59: Higher Rate UNUSED - Onshore | J59: =MIN(H50,MAX(0,F56-H49)) -> 0 | K59: Onshore HR Adjustment for PSA and SRS Bands | L59: Onshore Bond Gains 5 | M59: Higher Rate | N59: =T50-V59 -> 87440 | O59: Higher Rate avail for Onshore - Post | P59: =MAX(0,P58-R58) -> 0 | Q59: Higher Rate still to tax - Onshore - Post | R59: =MIN(N59,P59) -> 0 | S59: Higher Rate used - Onshore - Post | T59: =MAX(0,N59-R59) -> 87440 | U59: Higher Rate UNUSED - Onshore - Post | V59: =MIN(T50,MAX(0,R56-T49)) -> 0 | W59: Onshore HR Adjustment for PSA and SRS Bands - Post | AA59: TRUE | AB59: TRUE | AC59: TRUE | AD59: TRUE
A60: Additional Rate | D60: =MAX(0,Workings!$D$59 - Workings!$F$59) -> 0 | E60: Additional Rate still to tax - Onshore | F60: =D60 -> 0 | H60: NA | L60: Onshore Bond Gains 6 | M60: Additional Rate | P60: =MAX(0,P59-R59) -> 0 | Q60: Additional Rate still to tax - Onshore | R60: =P60 -> 0 | T60: NA | AA60: TRUE | AB60: TRUE | AC60: TRUE | AD60: TRUE
AE63: Personal Allowance | AF63: =AJ12+AJ22+AJ32+AJ40+AJ50+F56 -> 0 | AQ63: Personal Allowance | AR63: =AV12+AV22+AV32+AV40+AV50+P56 -> 0
A64: Personal Allowance | B64: =F13+F22+F31+F40+F48+F57 -> 0 | M64: Personal Allowance | N64: =R13+R22+R31+R40+R48+R57 -> 0 | AE64: Starter Rate | AF64: =AJ13+AJ32+AJ40+AJ23+AJ51 -> 0 | AQ64: Starter Rate | AR64: =AV13+AV32+AV40+AV23+AV51 -> 0
A65: Basic Rate | B65: =F58+F49+F41+F32+F23+F14 -> 0 | M65: Basic Rate | N65: =R58+R49+R41+R32+R23+R14 -> 0 | AE65: Basic Rate | AF65: =AJ14+AJ24+AJ32+AJ40+AJ52+F58 -> 0 | AQ65: Basic Rate | AR65: =AV14+AV24+AV32+AV40+AV52+P58 -> 0
A66: Higher Rate | B66: =F59+F50+F42+F33+F24+F15 -> 0 | M66: Higher Rate | N66: =R59+R50+R42+R33+R24+R15 -> 0 | AE66: Intermediate Rate | AF66: =AJ15+AJ25+AJ35+AJ43+AJ53 -> 0 | AQ66: Intermediate Rate | AR66: =AV15+AV25+AV35+AV43+AV53 -> 0
A67: Additional Rate | B67: =F60+F51+F43+F34+F25+F16 -> 0 | M67: Additional Rate | N67: =R60+R51+R43+R34+R25+R16 -> 0 | AE67: Higher Rate | AF67: =AJ16+AJ26+AJ36+AJ44+AJ54+F59 -> 0 | AQ67: Higher Rate | AR67: =AV16+AV26+AV36+AV44+AV54+P59 -> 0
AE68: Top Rate | AF68: =AJ17+AJ27+#REF!+AJ45+AJ55+F60 ->  | AQ68: Top Rate | AR68: =AV17+AV27+#REF!+AV45+AV55+R60 -> 

Sheet Workings (Top Slicing Full) (hidden)
A1: Existing Position | N1: New Position
A3: Allowances: | N3: Allowances: | Y3: =COUNTIF(Y4:Y60,FALSE) -> 0 | Z3: =COUNTIF(Z4:Z60,FALSE) -> 0 | AA3: =COUNTIF(AA4:AA60,FALSE) -> 0 | AB3: =COUNTIF(AB4:AB60,FALSE) -> 0
A4: Pers_Allow_Adj | B4: ='Personal allowance'!B6*-1 -> 0 | N4: New_Pers_Allow_Adj | O4: ='Personal allowance'!E6*-1 -> 0 | Y4: =AND(B4=O4) -> TRUE
A5: Tot_Pers_Allow | B5: ='Workings (Top Slicing Full)'!$B$4+Parameters!$B$1 -> 12570 | N5: New_Tot_Pers_Allow | O5: ='Workings (Top Slicing Full)'!$O$4+Parameters!$B$1 -> 12570 | Y5: =AND(B5=O5) -> TRUE
A6: Pers_Sav_Allow | B6: =Workings!B6 -> 0 | N6: New_Pers_Sav_Allow | O6: =Workings!N6 -> 0 | Y6: =AND(B6=O6) -> TRUE
A9: Non Savings Income Apportionment | N9: Non Savings Income Apportionment
B11: Allowances | D11: Still to tax | F11: Used | H11: Unused | O11: Allowances | Q11: Still to tax | S11: Used | U11: Unused
A12: Gross Pension Contributions | B12: ='Income Calcs'!B28 -> 0 | C12: Net Pay | D12: ='Income Calcs'!B50 -> 0 | E12: Total income Relevant and Non Excl Redundancy | F12: =MIN('Income Calcs'!B49,(MIN(Workings!B12,Workings!D12))) -> 0 | G12: Gross Pension Used - NSND Slice | H12: =MAX(0,Workings!B12 - Workings!F12) -> 0 | I12: Gross Pension UNUSED - NSND Slice | L12: NSND Slicing Income Calcs 1 | N12: Gross Pension Contributions | O12: ='Income Calcs'!B31 -> 0 | P12: Post - Total Gross Pension Contributions | Q12: =D12 -> 0 | R12: Total income Relevant and Non Excl Redundancy | S12: =MIN('Income Calcs'!B49,(MIN(Workings!N12,Workings!P12))) -> 0 | T12: Post - Gross Pension Used - NSND - Slice | U12: =MAX(0,Workings!N12 - Workings!R12) -> 0 | V12: Post - Gross Pension UNUSED - NSND - Slice | Y12: =AND(B12=O12) -> TRUE | Z12: =AND(D12=Q12) -> TRUE | AA12: =AND(F12=S12) -> TRUE | AB12: =AND(H12=U12) -> TRUE
A13: Personal Allowance | B13: =B5 -> 12570 | C13: Personal Allowance To Use | D13: =MAX(0,D12-F12) -> 0 | E13: PA to use - NSND - Slice | F13: =MIN('Workings (Top Slicing Full)'!$B$13,'Workings (Top Slicing Full)'!$D$13) -> 0 | G13: PA Used - NSND - Slice | H13: =MAX(0,'Workings (Top Slicing Full)'!$B$13 - 'Workings (Top Slicing Full)'!$F$13) -> 12570 | I13: PA UNUSED - NSND - Slice | L13: NSND Slicing Income Calcs 2 | N13: =A13 -> Personal Allowance | O13: =O5 -> 12570 | P13: Post - Personal Allowance To Use | Q13: =MAX(0,Q12-S12) -> 0 | R13: Post - PA still to tax NSND - Slice | S13: =MIN('Workings (Top Slicing Full)'!$O$13,'Workings (Top Slicing Full)'!$Q$13) -> 0 | T13: Post - PA Used NSND - Slice | U13: =MAX(0,'Workings (Top Slicing Full)'!$O$13 - 'Workings (Top Slicing Full)'!$S$13) -> 12570 | V13: Post - PA UNUSED NSND - Slice | Y13: =AND(B13=O13) -> TRUE | Z13: =AND(D13=Q13) -> TRUE | AA13: =AND(F13=S13) -> TRUE | AB13: =AND(H13=U13) -> TRUE
A14: Basic Rate | B14: =Parameters!B22+'Income Calcs'!B29 -> 37700 | C14: UK BRB to use - Slicing | D14: =MAX(0,D13-F13) -> 0 | E14: NSND BRB still to tax - Slice | F14: =MIN('Workings (Top Slicing Full)'!$B$14,'Workings (Top Slicing Full)'!$D$14) -> 0 | G14: BRB Used - NSND - Slice | H14: =MAX(0,'Workings (Top Slicing Full)'!$B$14-'Workings (Top Slicing Full)'!$F$14) -> 37700 | I14: BRB UNUSED - NSND - Slice | L14: NSND Slicing Income Calcs 3 | N14: =A14 -> Basic Rate | O14: =Parameters!B22+'Income Calcs'!B32 -> 37700 | P14: UK BRB to use - Slicing | Q14: =MAX(0,Q13-S13) -> 0 | R14: Post - NSBD BRB Still to tax - Slice | S14: =MIN('Workings (Top Slicing Full)'!$O$14,'Workings (Top Slicing Full)'!$Q$14) -> 0 | T14: Post - BRB Used - NSND - Slice | U14: =MAX(0,'Workings (Top Slicing Full)'!$O$14-'Workings (Top Slicing Full)'!$S$14) -> 37700 | V14: Post - BRB UNUSED - NSND - Slice | Y14: =AND(B14=O14) -> TRUE | Z14: =AND(D14=Q14) -> TRUE | AA14: =AND(F14=S14) -> TRUE | AB14: =AND(H14=U14) -> TRUE
A15: Higher Rate | B15: =Parameters!B28-Parameters!B22 -> 87440 | C15: UK HRT Band in Legislation | D15: =MAX(0,D14-F14) -> 0 | E15: NSND HRB still to tax - Slice | F15: =MIN('Workings (Top Slicing Full)'!$B$15,'Workings (Top Slicing Full)'!$D$15) -> 0 | G15: HRB Used - NSND - Slice | H15: =MAX(0,'Workings (Top Slicing Full)'!$B$15-'Workings (Top Slicing Full)'!$F$15) -> 87440 | I15: HRB UNUSED - NSND - Slice | L15: NSND Slicing Income Calcs 4 | N15: =A15 -> Higher Rate | O15: =B15 -> 87440 | P15: UK HRT Band in Legislation | Q15: =MAX(0,Q14-S14) -> 0 | R15: Post - UK HRB Still to tax NSND | S15: =MIN('Workings (Top Slicing Full)'!$O$15,'Workings (Top Slicing Full)'!$Q$15) -> 0 | T15: Post - HRB Used NSND - Slice | U15: =MAX(0,'Workings (Top Slicing Full)'!$O$15-'Workings (Top Slicing Full)'!$S$15) -> 87440 | V15: Post - HRB UNUSED NSND - Slice | Y15: =AND(B15=O15) -> TRUE | Z15: =AND(D15=Q15) -> TRUE | AA15: =AND(F15=S15) -> TRUE | AB15: =AND(H15=U15) -> TRUE
A16: =IF(Inputs!$C$8="Yes","Top Rate","Additional Rate") -> Additional Rate | D16: =MAX(0,'Workings (Top Slicing Full)'!$D$15-'Workings (Top Slicing Full)'!$F$15) -> 0 | E16: NSND ARB still to tax - Slice | F16: ='Workings (Top Slicing Full)'!$D$16 -> 0 | H16: NA | L16: NSND Slicing Income Calcs 5 | N16: =A16 -> Additional Rate | Q16: =MAX(0,'Workings (Top Slicing Full)'!$Q$15-'Workings (Top Slicing Full)'!$S$15) -> 0 | R16: Post - NSND ARB still to tax - Slice | S16: ='Workings (Top Slicing Full)'!$Q$16 -> 0 | U16: NA | Y16: =AND(B16=O16) -> TRUE | Z16: =AND(D16=Q16) -> TRUE | AA16: =AND(F16=S16) -> TRUE | AB16: =AND(H16=U16) -> TRUE
A18: Savings Income Tax Band Apportionment | N18: Savings Income Tax Band Apportionment
B19: Allowances | D19: Still to tax | F19: Used | H19: Unused | O19: Allowances | Q19: Still to tax | S19: Used | U19: Unused
A20: Personal Allowance | B20: =H13 -> 12570 | C20: PA UNUSED - NSND - Slice | D20: ='Income Calcs'!B51 -> 0 | E20: PA Savings still to tax - Slice | F20: =MIN('Workings (Top Slicing Full)'!$B$20,'Workings (Top Slicing Full)'!$D$20) -> 0 | G20: PA Used on Savings - Slice | H20: =MAX(0,'Workings (Top Slicing Full)'!$B$20-'Workings (Top Slicing Full)'!$F$20) -> 12570 | I20: PA UNUSED on Savings - Slice | L20: Savings Slicing Income Calcs 3 | N20: =A20 -> Personal Allowance | O20: =U13 -> 12570 | P20: Post - PA UNUSED - NSND - Slice | Q20: =D20 -> 0 | R20: PA Savings still to tax - Slice - Post | S20: =MIN(O20,Q20) -> 0 | T20: PA Used on Savings - Slice - Post | U20: =MAX(0,'Workings (Top Slicing Full)'!$O$20 - 'Workings (Top Slicing Full)'!$S$20) -> 12570
A21: Starting Rate | B21: ='Income Calcs'!B58 -> 0 | C21: Available Starting Rate for Savings | D21: =MAX(0,D20-F20) -> 0 | E21: Savings | F21: =MIN('Workings (Top Slicing Full)'!$B$21,'Workings (Top Slicing Full)'!$D$21) -> 0 | G21: Starting Rate used - Savings - Slice | H21: =MAX(0,'Workings (Top Slicing Full)'!$B$21-'Workings (Top Slicing Full)'!$F$21) -> 0 | I21: Starting Rate UNUSED - Savings - Slice | L21: Savings Slicing Income Calcs 1 | N21: Starting Rate | O21: ='Income Calcs'!B61 -> 0 | P21: Post Available Starting Rate for Savings | Q21: =MAX(0,Q20-S20) -> 0 | R21: Savings | S21: =MIN(O21,Q21) -> 0 | T21: Starting Rate used - Savings - Slice - Post | U21: =MAX(0,'Workings (Top Slicing Full)'!$O$21 - 'Workings (Top Slicing Full)'!$S$21) -> 0 | V21: Starting Rate UNUSED - Savings - Slice - Post | Y21: =AND(B21=O21) -> TRUE | Z21: =AND(D21=Q21) -> TRUE | AA21: =AND(F21=S21) -> TRUE | AB21: =AND(H21=U21) -> TRUE
A22: Personal Savings Allowance | B22: =B6 -> 0 | C22: PSA to be used | D22: =MAX(0,D21-F21) -> 0 | E22: PSA - Savings still to tax - Slice | F22: =MIN('Workings (Top Slicing Full)'!$B$22,'Workings (Top Slicing Full)'!$D$22) -> 0 | G22: PSA used - Savings - Slice | H22: =MAX(0,'Workings (Top Slicing Full)'!$B$22-'Workings (Top Slicing Full)'!$F$22) -> 0 | I22: PSA UNUSED - Savings - Slice | L22: Savings Slicing Income Calcs 2 | N22: Personal Savings Allowance | O22: =O6 -> 0 | P22: PSA to be used - Post | Q22: =MAX(0,Q21-S21) -> 0 | R22: PSA - Savings still to tax - Slice - Post | S22: =MIN(O22,Q22) -> 0 | T22: PSA used - Savings - Slice - Post | U22: =MAX(0,'Workings (Top Slicing Full)'!$O$22 - 'Workings (Top Slicing Full)'!$S$22) -> 0 | V22: PSA UNUSED - Savings - Slice - Post | Y22: =AND(B22=O22) -> TRUE | Z22: =AND(D22=Q22) -> TRUE | AA22: =AND(F22=S22) -> TRUE | AB22: =AND(H22=U22) -> TRUE
A23: Basic Rate | B23: =MAX(0,H14-SUM(F21:F22)) -> 37700 | C23: Savings BRB to use - Slice | D23: =MAX(0,D22-F22) -> 0 | E23: Basic Rate still to tax - Savings - Slice | F23: =MIN('Workings (Top Slicing Full)'!$B$23,'Workings (Top Slicing Full)'!$D$23) -> 0 | G23: Basic Rate used - Savings - Slice | H23: =MAX(0,'Workings (Top Slicing Full)'!$B$23-'Workings (Top Slicing Full)'!$F$23) -> 37700 | I23: Basic Rate UNUSED - Savings - Slice | L23: Savings Slicing Income Calcs 4 | N23: Basic Rate | O23: =MAX(0,(U14-SUM(S21:S22))) -> 37700 | P23: Savings BRB to use - Slice - Post | Q23: =MAX(0,Q22-S22) -> 0 | R23: Basic Rate still to tax - Savings - Slice - Post | S23: =MIN(O23,Q23) -> 0 | T23: Basic Rate used - Savings - Slice - Post | U23: =MAX(0,'Workings (Top Slicing Full)'!$O$23- 'Workings (Top Slicing Full)'!$S$23) -> 37700 | V23: Basic Rate UNUSED - Savings - Slice - Post | Y23: =AND(B23=O23) -> TRUE | Z23: =AND(D23=Q23) -> TRUE | AA23: =AND(F23=S23) -> TRUE | AB23: =AND(H23=U23) -> TRUE
A24: Higher Rate | B24: =H15-J24 -> 87440 | C24: Higher Rate Available for Savings - Slice | D24: =MAX(0,D23-F23) -> 0 | E24: Higher Rate still to tax - Savings - Slice | F24: =MIN('Workings (Top Slicing Full)'!$B$24,'Workings (Top Slicing Full)'!$D$24) -> 0 | G24: Higher Rate used - Savings - Slice | H24: =MAX(0,'Workings (Top Slicing Full)'!$B$24 -'Workings (Top Slicing Full)'!$F$24) -> 87440 | I24: Higher Rate UNUSED - Savings - Slice | J24: =MIN(H15,MAX(0,F22-H14)) -> 0 | K24: Higher Rate Adjustment for PSA and SRS Bands - Slicing | L24: Savings Slicing Income Calcs 5 | N24: Higher Rate | O24: =U15-W24 -> 87440 | P24: Higher Rate Available for Savings - Slice - Post | Q24: =MAX(0,Q23-S23) -> 0 | R24: Higher Rate still to tax - Savings - Slice - Post | S24: =MIN(O24,Q24) -> 0 | T24: Higher Rate used - Savings - Slice - Post | U24: =MAX(0,'Workings (Top Slicing Full)'!$O$24 - 'Workings (Top Slicing Full)'!$S$24) -> 87440 | V24: Higher Rate UNUSED - Savings - Slice - Post | W24: =MIN(U15,MAX(0,S22-U14)) -> 0 | X24: Higher Rate Adjustment for PSA and SRS Bands - Slicing - Post | Y24: =AND(B24=O24) -> TRUE | Z24: =AND(D24=Q24) -> TRUE | AA24: =AND(F24=S24) -> TRUE | AB24: =AND(H24=U24) -> TRUE
A25: Additional Rate | D25: =MAX(0,D24-F24) -> 0 | E25: Additional Rate still to tax - Savings - Slice | F25: ='Workings (Top Slicing Full)'!$D$25 -> 0 | H25: NA | L25: Savings Slicing Income Calcs 6 | N25: Additional Rate | Q25: =MAX(0,Q24-S24) -> 0 | R25: Additional Rate still to tax - Savings - Slice - Post | S25: =Q25 -> 0 | U25: NA | Y25: =AND(B25=O25) -> TRUE | Z25: =AND(D25=Q25) -> TRUE | AA25: =AND(F25=S25) -> TRUE | AB25: =AND(H25=U25) -> TRUE
A27: Offshore Bond Gain Tax Band Apportionment - set to £0 as included at total gain below | N27: Offshore Bond Gain Tax Band Apportionment - set to £0 as included at total gain below
B28: Allowances | D28: Still to tax | F28: Used | H28: Unused | O28: Allowances | Q28: Still to tax | S28: Used | U28: Unused
A29: Personal Allowance | B29: =H20 -> 12570 | C29: PA UNUSED on Savings - Slice | D29: 0 | E29: Offshore Bond still to tax - Personal Allowance - Slice | F29: =MIN('Workings (Top Slicing Full)'!$B$29,'Workings (Top Slicing Full)'!$D$29) -> 0 | G29: Personal Allowance Used - Offshore Bond - Slice | H29: =MAX(0,'Workings (Top Slicing Full)'!$B$29-'Workings (Top Slicing Full)'!$F$29) -> 12570 | I29: Personal Allowance UNUSED - Offshore - Slice | L29: Offshore Slicing Income Calcs 3 | N29: =A29 -> Personal Allowance | O29: =U20 -> 12570 | P29: PA UNUSED on Savings - Slice - Post | Q29: 0 | R29: Offshore Bond still to tax - Personal Allowance - Slice - Post | S29: =MIN(O29,Q29) -> 0 | T29: Personal Allowance Used - Offshore Bond - Slice - Post | U29: =MAX(0,O29-S29) -> 12570
A30: Starting Rate | B30: =H21 -> 0 | C30: Starting Rate UNUSED - Savings - Slice | D30: =MAX(0,D29-F29) -> 0 | E30: Slicing Zero | F30: =MIN('Workings (Top Slicing Full)'!$B$30,'Workings (Top Slicing Full)'!$D$30) -> 0 | G30: Starting Rate Used Offshore - Slice | H30: =MAX(0,'Workings (Top Slicing Full)'!$B$30-'Workings (Top Slicing Full)'!$F$30) -> 0 | I30: Starting Rate UNUSED Offshore - Slice | L30: Offshore Slicing Income Calcs 1 | N30: Starting Rate | O30: =U21 -> 0 | P30: Starting Rate UNUSED - Savings - Slice - Post | Q30: =MAX(0,Q29-S29) -> 0 | R30: Slicing Zero | S30: =MIN(O30,Q30) -> 0 | T30: Starting Rate Used Offshore - Slice - Post | U30: =MAX(0,O30-S30) -> 0 | V30: Starting Rate UNUSED Offshore - Slice - Post | Y30: =AND(B30=O30) -> TRUE | Z30: =AND(D30=Q30) -> TRUE | AA30: =AND(F30=S30) -> TRUE | AB30: =AND(H30=U30) -> TRUE
A31: Personal Savings Allowance | B31: =H22 -> 0 | C31: PSA UNUSED - Savings - Slice | D31: =MAX(0,D30-F30) -> 0 | E31: Offshore Bond still to tax - PSA - Slice | F31: =MIN('Workings (Top Slicing Full)'!$B$31,'Workings (Top Slicing Full)'!$D$31) -> 0 | G31: PSA Used - Offshore Bond - Slice | H31: =MAX(0,'Workings (Top Slicing Full)'!$B$31-'Workings (Top Slicing Full)'!$F$31) -> 0 | I31: PSA UNUSED - Offshore Bond - Slice | L31: Offshore Slicing Income Calcs 2 | N31: Personal Savings Allowance | O31: =U22 -> 0 | P31: PSA UNUSED - Savings - Slice - Post | Q31: =MAX(0,Q30-S30) -> 0 | R31: Offshore Bond still to tax - PSA - Slice - Post | S31: =MIN(O31,Q31) -> 0 | T31: PSA Used - Offshore Bond - Slice - Post | U31: =MAX(0,O31-S31) -> 0 | V31: PSA UNUSED - Offshore Bond - Slice - Post | Y31: =AND(B31=O31) -> TRUE | Z31: =AND(D31=Q31) -> TRUE | AA31: =AND(F31=S31) -> TRUE | AB31: =AND(H31=U31) -> TRUE
A32: Basic Rate | B32: =MAX(0,H23-SUM(F30:F31)) -> 37700 | C32: Basic Rate avail for Offshore - Slice | D32: =MAX(0,D31-F31) -> 0 | E32: Basic Rate still to tax - Offshore - Slice | F32: =MIN('Workings (Top Slicing Full)'!$B$32,'Workings (Top Slicing Full)'!$D$32) -> 0 | G32: Basic Rate Used - Offshore Bond - Slice | H32: =MAX(0,'Workings (Top Slicing Full)'!$B$32-'Workings (Top Slicing Full)'!$F$32) -> 37700 | I32: Basic Rate UNUSED - Offshore - Slice | L32: Offshore Slicing Income Calcs 4 | N32: Basic Rate | O32: =MAX(0,U23-SUM(S30:S31)) -> 37700 | P32: Basic Rate avail for Offshore - Slice - Post | Q32: =MAX(0,Q31-S31) -> 0 | R32: Basic Rate still to tax - Offshore - Slice - Post | S32: =MIN(O32,Q32) -> 0 | T32: Basic Rate Used - Offshore Bond - Slice - Post | U32: =MAX(0,O32-S32) -> 37700 | V32: Basic Rate UNUSED - Offshore - Slice - Post | Y32: =AND(B32=O32) -> TRUE | Z32: =AND(D32=Q32) -> TRUE | AA32: =AND(F32=S32) -> TRUE | AB32: =AND(H32=U32) -> TRUE
A33: Higher Rate | B33: =H24-J33 -> 87440 | C33: Higher Rate avail Offshore - Slice | D33: =MAX(0,'Workings (Top Slicing Full)'!$D$32 - 'Workings (Top Slicing Full)'!$F$32) -> 0 | E33: Higher Rate still to tax - Offshore - Slice | F33: =MIN('Workings (Top Slicing Full)'!$B$33,'Workings (Top Slicing Full)'!$D$33) -> 0 | G33: Higher Rate Used - Offshore Bond - Slice | H33: =MAX(0,'Workings (Top Slicing Full)'!$B$33-'Workings (Top Slicing Full)'!$F$33) -> 87440 | I33: Higher Rate UNUSED - Offshore Bond - Slice | J33: =MIN(H24,MAX(0,F31-H23)) -> 0 | K33: Offshore HR Adjustment for PSA and SRS Bands - Slicing | L33: Offshore Slicing Income Calcs 5 | N33: Higher Rate | O33: =U24-W33 -> 87440 | P33: Higher Rate avail Offshore - Slice - Post | Q33: =MAX(0,Q32-S32) -> 0 | R33: Higher Rate still to tax - Offshore - Slice - Post | S33: =MIN(O33,Q33) -> 0 | T33: Higher Rate Used - Offshore Bond - Slice - Post | U33: =MAX(0,O33-S33) -> 87440 | V33: Higher Rate UNUSED - Offshore Bond - Slice - Post | W33: =MIN(U24,MAX(0,S31-U23)) -> 0 | X33: Offshore HR Adjustment for PSA and SRS Bands - Slicing - Post | Y33: =AND(B33=O33) -> TRUE | Z33: =AND(D33=Q33) -> TRUE | AA33: =AND(F33=S33) -> TRUE | AB33: =AND(H33=U33) -> TRUE
A34: Additional Rate | D34: =MAX(0,'Workings (Top Slicing Full)'!$D$33 - 'Workings (Top Slicing Full)'!$F$33) -> 0 | E34: Additional Rate still to tax - Offshore - Slice | F34: ='Workings (Top Slicing Full)'!$D$34 -> 0 | H34: NA | L34: Offshore Slicing Income Calcs 6 | N34: Additional Rate | Q34: =MAX(0,Q33-S33) -> 0 | R34: Additional Rate still to tax - Offshore - Slice - Post | S34: =Q34 -> 0 | U34: NA | Y34: =AND(B34=O34) -> TRUE | Z34: =AND(D34=Q34) -> TRUE | AA34: =AND(F34=S34) -> TRUE | AB34: =AND(H34=U34) -> TRUE
A37: Dividend Income Tax Band Apportionment | N37: Dividend Income Tax Band Apportionment
B38: Allowances | D38: Still to tax | F38: Used | H38: Unused | O38: Allowances | Q38: Still to tax | S38: Used | U38: Unused
A39: Personal Allowance | B39: =H29 -> 12570 | C39: Personal Allowance UNUSED - Offshore - Slice | D39: ='Income Calcs'!$B$37 -> 0 | E39: Dividend Still to Tax Pers Allow - Slice | F39: =MIN(B39,D39) -> 0 | G39: Personal Allowance Used - Dividends - Slice | H39: =MAX(0,'Workings (Top Slicing Full)'!$B$39 - 'Workings (Top Slicing Full)'!$F$39) -> 12570 | I39: Personal Allowance UNUSED - Dividends - Slice | L39: Dividend Slicing Income Calcs 2 | N39: Personal Allowance | O39: =U29 -> 12570 | P39: Personal Allowance UNUSED - Offshore - Slice - Post | Q39: =D39 -> 0 | R39: Dividend Still to Tax Pers Allow - Slice - Post | S39: =MIN(O39,Q39) -> 0 | T39: Personal Allowance Used - Dividends - Slice - Post | U39: =MAX(0,O39-S39) -> 12570
A40: Dividend Allowance | B40: ='Income Calcs'!B38 -> 0 | C40: Dividend Zero Rate Band | D40: =MAX(0,D39-F39) -> 0 | E40: Dividend | F40: =MIN(B40,D40) -> 0 | G40: Dividend Zero Rate Used - Slice | H40: =MAX(0,'Workings (Top Slicing Full)'!$B$40-'Workings (Top Slicing Full)'!$F$40) -> 0 | I40: Dividend Zero Rate Unused - Slice | L40: Dividend Slicing Income Calcs 1 | N40: Dividend Allowance | O40: =B40 -> 0 | P40: Dividend Zero Rate Band | Q40: =MAX(0,Q39-S39) -> 0 | R40: Dividend | S40: =MIN(O40,Q40) -> 0 | T40: Dividend Zero Rate Used - Slice - Post | U40: =MAX(0,O40-S40) -> 0 | V40: Dividend Zero Rate Unused - Slice - Post | Y40: =AND(B40=O40) -> TRUE | Z40: =AND(D39=Q40) -> TRUE | AA40: =AND(F40=S40) -> TRUE | AB40: =AND(H40=U40) -> TRUE
A41: Basic Rate | B41: =MAX(0,H32-F40) -> 37700 | C41: Basic Rate Avail for Dividends - Slice | D41: =MAX(0,D40-F40) -> 0 | E41: Basic Rate still to tax - Dividend - Slice | F41: =MIN(B41,D41) -> 0 | G41: Basic Rate used - Dividend - Slice | H41: =MAX(0,'Workings (Top Slicing Full)'!$B$41-'Workings (Top Slicing Full)'!$F$41) -> 37700 | I41: Basic Rate UNUSED - Dividend - Slice | L41: Dividend Slicing Income Calcs 13 | N41: Basic Rate | O41: =MAX(0,U32-S40) -> 37700 | P41: Basic Rate Avail for Dividends - Slice - Post | Q41: =MAX(0,Q40-S40) -> 0 | R41: Basic Rate still to tax - Dividend - Slice - Post | S41: =MIN(O41,Q41) -> 0 | T41: Basic Rate used - Dividend - Slice - Post | U41: =MAX(0,O41-S41) -> 37700 | V41: Basic Rate UNUSED - Dividend - Slice - Post | Y41: =AND(B41=O41) -> TRUE | Z41: =AND(D41=Q41) -> TRUE | AA41: =AND(F41=S41) -> TRUE | AB41: =AND(H41=U41) -> TRUE
A42: Higher Rate | B42: =H33-J42 -> 87440 | C42: Higher Rate Avail for Dividends - Slice | D42: =MAX(0,D41-F41) -> 0 | E42: HIgher Rate still to tax - Dividend - Slice | F42: =MIN(B42,D42) -> 0 | G42: HIgher Rate used - Dividend - Slice | H42: =MAX(0,'Workings (Top Slicing Full)'!$B$42-'Workings (Top Slicing Full)'!$F$42) -> 87440 | I42: HIgher Rate UNUSED - Dividend - Slice | J42: =MIN(H33,MAX(0,F40-H32)) -> 0 | K42: Dividend HR Adjustment for PSA and SRS Bands - Slice | L42: Dividend Slicing Income Calcs 4 | N42: Higher Rate | O42: =U33-W42 -> 87440 | P42: Higher Rate Avail for Dividends - Slice - Post | Q42: =MAX(0,Q41-S41) -> 0 | R42: HIgher Rate still to tax - Dividend - Slice - Post | S42: =MIN(O42,Q42) -> 0 | T42: HIgher Rate used - Dividend - Slice - Post | U42: =MAX(0,O42-S42) -> 87440 | V42: HIgher Rate UNUSED - Dividend - Slice - Post | W42: =MIN(U33,MAX(0,S40-U32)) -> 0 | X42: Dividend HR Adjustment for PSA and SRS Bands - Slice - Post | Y42: =AND(B42=O42) -> TRUE | Z42: =AND(D42=Q42) -> TRUE | AA42: =AND(F42=S42) -> TRUE | AB42: =AND(H42=U42) -> TRUE
A43: Additional Rate | D43: =MAX(0,'Workings (Top Slicing Full)'!$D$42-'Workings (Top Slicing Full)'!$F$42) -> 0 | E43: Additional Rate still to tax - Dividend - Slice | F43: ='Workings (Top Slicing Full)'!$D$43 -> 0 | H43: NA | L43: Dividend Slicing Income Calcs 5 | N43: Additional Rate | Q43: =MAX(0,Q42-S42) -> 0 | R43: Additional Rate still to tax - Dividend - Slice - Post | S43: =Q43 -> 0 | U43: NA | Y43: =AND(B43=O43) -> TRUE | Z43: =AND(D43=Q43) -> TRUE | AA43: =AND(F43=S43) -> TRUE | AB43: =AND(H43=U43) -> TRUE
A45: Redundancy Payment Tax Band Apportionment - set to £0 as excluded from calcs | N45: Redundancy Payment Tax Band Apportionment - set to £0 as excluded from calcs
B46: Allowances | D46: Still to tax | F46: Used | H46: Unused | O46: Allowances | Q46: Still to tax | S46: Used | U46: Unused
A47: Gross Pension Contributions | B47: =H12 -> 0 | C47: Gross Pension UNUSED - NSND Slice | D47: 0 | E47: Slicing Zero | F47: =MIN('Income Calcs'!B90,(MIN(B47,D47))) -> 0 | G47: Gross Pension Used for Redundancy - Slice | H47: =MAX(0,B47-F47) -> 0 | I47: Gross Pension UNUSED for Redundancy - Slice | N47: Gross Pension Contributions | O47: =U12 -> 0 | P47: Gross Pension UNUSED - NSND Slice - Post | Q47: 0 | R47: Slicing Zero | S47: =MIN('Income Calcs'!B90,(MIN(N47,P47))) -> 0 | T47: Gross Pension Used for Redundancy - Slice - Post | U47: =MAX(0,O47-S47) -> 0 | V47: Gross Pension UNUSED for Redundancy - Slice - Post | Y47: =AND(B47=O47) -> TRUE | Z47: =AND(D47=Q47) -> TRUE | AA47: =AND(F47=S47) -> TRUE | AB47: =AND(H47=U47) -> TRUE
A48: Personal Allowance | B48: =H39 -> 12570 | C48: Personal Allowance UNUSED - Dividends - Slice | D48: =MAX(0,D47-F47) -> 0 | E48: Slicing Zero | F48: =MIN('Workings (Top Slicing Full)'!$B$48,'Workings (Top Slicing Full)'!$D$48) -> 0 | G48: Personal Allowance Used - Redundancy - Slice | H48: =MAX(0,'Workings (Top Slicing Full)'!$B$48 - 'Workings (Top Slicing Full)'!$F$48) -> 12570 | I48: Personal Allowance UNUSED - Redundancy - Slice | N48: =A48 -> Personal Allowance | O48: =U39 -> 12570 | P48: Personal Allowance UNUSED - Dividends - Slice - Post | Q48: =MAX(0,Q47-S47) -> 0 | R48: Slicing Zero | S48: =MIN(O48,Q48) -> 0 | T48: Personal Allowance Used - Redundancy - Slice - Post | U48: =MAX(0,O48-S48) -> 12570 | V48: Personal Allowance UNUSED - Redundancy - Slice - Post | Y48: =AND(B48=O48) -> TRUE | Z48: =AND(D48=Q48) -> TRUE | AA48: =AND(F48=S48) -> TRUE | AB48: =AND(H48=U48) -> TRUE
A49: Basic Rate | B49: =H41 -> 37700 | C49: Basic Rate UNUSED - Dividend - Slice | D49: =MAX(0,D48-F48) -> 0 | E49: Basic Rate still to tax - Redundancy - Slice | F49: =MIN('Workings (Top Slicing Full)'!$B$49,'Workings (Top Slicing Full)'!$D$49) -> 0 | G49: Basic Rate Used - Redundancy - Slice | H49: =MAX(0,'Workings (Top Slicing Full)'!$B$49-'Workings (Top Slicing Full)'!$F$49) -> 37700 | I49: Basic Rate UNUSED - Redundancy - Slice | N49: =A49 -> Basic Rate | O49: =U41 -> 37700 | P49: Basic Rate UNUSED - Dividend - Slice - Post | Q49: =MAX(0,Q48-S48) -> 0 | R49: Basic Rate still to tax - Redundancy - Slice - Post | S49: =MIN(O49,Q49) -> 0 | T49: Basic Rate Used - Redundancy - Slice - Post | U49: =MAX(0,O49-S49) -> 37700 | V49: Basic Rate UNUSED - Redundancy - Slice - Post | Y49: =AND(B49=O49) -> TRUE | Z49: =AND(D49=Q49) -> TRUE | AA49: =AND(F49=S49) -> TRUE | AB49: =AND(H49=U49) -> TRUE
A50: Higher Rate | B50: =H42 -> 87440 | C50: HIgher Rate UNUSED - Dividend - Slice | D50: =MAX(0,D49-F49) -> 0 | E50: Hiigher Rate still to tax - Redundancy - Slice | F50: =MIN('Workings (Top Slicing Full)'!$B$50,'Workings (Top Slicing Full)'!$D$50) -> 0 | G50: HIgher Rate Used - Redundancy - Slice | H50: =MAX(0,'Workings (Top Slicing Full)'!$B$50-'Workings (Top Slicing Full)'!$F$50) -> 87440 | I50: Higher Rate UNUSED - Redundancy - Slice | N50: =A50 -> Higher Rate | O50: =U42 -> 87440 | P50: HIgher Rate UNUSED - Dividend - Slice - Post | Q50: =MAX(0,Q49-S49) -> 0 | R50: Hiigher Rate still to tax - Redundancy - Slice - Post | S50: =MIN(O50,Q50) -> 0 | T50: HIgher Rate Used - Redundancy - Slice - Post | U50: =MAX(0,O50-S50) -> 87440 | V50: Higher Rate UNUSED - Redundancy - Slice - Post | Y50: =AND(B50=O50) -> TRUE | Z50: =AND(D50=Q50) -> TRUE | AA50: =AND(F50=S50) -> TRUE | AB50: =AND(H50=U50) -> TRUE
A51: =IF(Inputs!$C$8="Yes","Top Rate","Additional Rate") -> Additional Rate | D51: =MAX(0,'Workings (Top Slicing Full)'!$D$50-'Workings (Top Slicing Full)'!$F$50) -> 0 | E51: Additional Rate still to tax - Redundancy - Slice | F51: =D51 -> 0 | H51: NA | N51: =A51 -> Additional Rate | Q51: =MAX(0,Q50-S50) -> 0 | R51: Additional Rate still to tax - Redundancy - Slice - Post | S51: =Q51 -> 0 | U51: NA | Y51: =AND(B51=O51) -> TRUE | Z51: =AND(D51=Q51) -> TRUE | AA51: =AND(F51=S51) -> TRUE | AB51: =AND(H51=U51) -> TRUE
A53: Total Gain Tax Band Apportionment | N53: Total Gain Tax Band Apportionment
B54: Allowances | D54: Still to tax | F54: Used | H54: Unused | O54: Allowances | Q54: Still to tax | S54: Used | U54: Unused
A55: Personal Allowance | B55: =H48 -> 12570 | C55: Personal Allowance UNUSED - Redundancy - Slice | D55: ='Income Calcs'!B23 -> 0 | E55: Total Bond still to tax - Pers Allow - Slice | F55: =MIN('Workings (Top Slicing Full)'!$B$55,'Workings (Top Slicing Full)'!$D$55) -> 0 | G55: Personal Allowance Used - Total - Slice | H55: =MAX(0,'Workings (Top Slicing Full)'!$B$55-'Workings (Top Slicing Full)'!$F$55) -> 12570 | I55: Personal Allowance UNUSED - Total - Slice | N55: =A55 -> Personal Allowance | O55: =U48 -> 12570 | P55: Personal Allowance UNUSED - Redundancy - Slice - Post | Q55: =D55 -> 0 | R55: Total Bond still to tax - Pers Allow - Slice - Post | S55: =MIN(O55,Q55) -> 0 | T55: Personal Allowance Used - Total - Slice - Post | U55: =MAX(0,O55-S55) -> 12570
A56: Starting Rate | B56: =MAX(0,H30-J56) -> 0 | C56: Starting Rate to use Onshore - Slice | D56: =MAX(0,D55-F55) -> 0 | E56: Total Bond Gains | F56: =MIN('Workings (Top Slicing Full)'!$B$56,'Workings (Top Slicing Full)'!$D$55) -> 0 | G56: Starting Rate used Total - Slice | H56: =MAX(0,'Workings (Top Slicing Full)'!$B$56-'Workings (Top Slicing Full)'!$F$56) -> 0 | I56: Starting Rate UNUSED Total - Slice | J56: =F40+F41+F49 -> 0 | K56: Starting Rate used by Income - Slice | N56: Starting Rate | O56: =MAX(0,U30-W56) -> 0 | P56: Starting Rate to use Onshore - Slice - Post | Q56: =MAX(0,Q55-S55) -> 0 | R56: Total Bond Gains | S56: =MIN(O56,Q56) -> 0 | T56: Starting Rate used Total - Slice - Post | U56: =MAX(0,O56-S56) -> 0 | V56: Starting Rate UNUSED Total - Slice - Post | W56: =S40+S41+S49 -> 0 | X56: Starting Rate used by Income - Slice - Post | Y56: =AND(B56=O56) -> TRUE | Z56: =AND(D55=Q56) -> TRUE | AA56: =AND(F56=S56) -> TRUE | AB56: =AND(H56=U56) -> TRUE
A57: Personal Savings Allowance | B57: =H31 -> 0 | C57: PSA UNUSED - Offshore Bond - Slice | D57: =MAX(0,D56-F56) -> 0 | E57: Total Bond still to tax - PSA - Slice | F57: =MIN('Workings (Top Slicing Full)'!$B$57,'Workings (Top Slicing Full)'!$D$57) -> 0 | G57: PSA Used - Total Bond - Slice | H57: =MAX(0,'Workings (Top Slicing Full)'!$B$57-'Workings (Top Slicing Full)'!$F$57) -> 0 | I57: PSA UNUSED - Total Bond - Slice | N57: Personal Savings Allowance | O57: =U31 -> 0 | P57: PSA UNUSED - Offshore Bond - Slice - Post | Q57: =MAX(0,Q56-S56) -> 0 | R57: Total Bond still to tax - PSA - Slice - Post | S57: =MIN(O57,Q57) -> 0 | T57: PSA Used - Total Bond - Slice - Post | U57: =MAX(0,O57-S57) -> 0 | V57: PSA UNUSED - Total Bond - Slice - Post | Y57: =AND(B57=O57) -> TRUE | Z57: =AND(D57=Q57) -> TRUE | AA57: =AND(F57=S57) -> TRUE | AB57: =AND(H57=U57) -> TRUE
A58: Basic Rate | B58: =MAX(0,H49-SUM(F56:F57)) -> 37700 | C58: Basic Rate avail for Total - Slice | D58: =MAX(0,D57-F57) -> 0 | E58: Basic Rate still to tax - Total - Slice | F58: =MIN('Workings (Top Slicing Full)'!$B$58,'Workings (Top Slicing Full)'!$D$58) -> 0 | G58: Basic Rate used - Total - Slice | H58: =MAX(0,'Workings (Top Slicing Full)'!$B$58-'Workings (Top Slicing Full)'!$F$58) -> 37700 | I58: Basic Rate UNUSED - Total - Slice | N58: Basic Rate | O58: =MAX(0,U49-SUM(S56:S57)) -> 37700 | P58: Basic Rate avail for Total - Slice - Post | Q58: =MAX(0,Q57-S57) -> 0 | R58: Basic Rate still to tax - Total - Slice - Post | S58: =MIN(O58,Q58) -> 0 | T58: Basic Rate used - Total - Slice - Post | U58: =MAX(0,O58-S58) -> 37700 | V58: Basic Rate UNUSED - Total - Slice - Post | Y58: =AND(B58=O58) -> TRUE | Z58: =AND(D58=Q58) -> TRUE | AA58: =AND(F58=S58) -> TRUE | AB58: =AND(H58=U58) -> TRUE
A59: Higher Rate | B59: =H50-J59 -> 87440 | C59: Higher Rate avail for Total - Slice | D59: =MAX(0,'Workings (Top Slicing Full)'!$D$58 - 'Workings (Top Slicing Full)'!$F$58) -> 0 | E59: Higher Rate still to tax - Total - Slice | F59: =MIN('Workings (Top Slicing Full)'!$B$59,'Workings (Top Slicing Full)'!$D$59) -> 0 | G59: HIgher Rate used - Total - Slice | H59: =MAX(0,'Workings (Top Slicing Full)'!$B$59-'Workings (Top Slicing Full)'!$F$59) -> 87440 | I59: HIgher Rate UNUSED - Total - Slice | J59: =MIN(H50,MAX(0,F57-H49)) -> 0 | K59: Total HR Adjustment for PSA and SRS Bands - Slice | N59: Higher Rate | O59: =U50-W59 -> 87440 | P59: Higher Rate avail for Total - Slice - Post | Q59: =MAX(0,Q58-S58) -> 0 | R59: Higher Rate still to tax - Total - Slice - Post | S59: =MIN(O59,Q59) -> 0 | T59: HIgher Rate used - Total - Slice - Post | U59: =MAX(0,O59-S59) -> 87440 | V59: HIgher Rate UNUSED - Total - Slice - Post | W59: =MIN(U50,MAX(0,S57-U49)) -> 0 | X59: Total HR Adjustment for PSA and SRS Bands - Slice - Post | Y59: =AND(B59=O59) -> TRUE | Z59: =AND(D59=Q59) -> TRUE | AA59: =AND(F59=S59) -> TRUE | AB59: =AND(H59=U59) -> TRUE
A60: Additional Rate | D60: =MAX(0,'Workings (Top Slicing Full)'!$D$59 - 'Workings (Top Slicing Full)'!$F$59) -> 0 | E60: Additional Rate still to tax - Total - Slice | F60: =D60 -> 0 | H60: NA | N60: Additional Rate | Q60: =MAX(0,Q59-S59) -> 0 | R60: Additional Rate still to tax - Total - Slice - Post | S60: =Q60 -> 0 | U60: NA | Y60: =AND(B60=O60) -> TRUE | Z60: =AND(D60=Q60) -> TRUE | AA60: =AND(F60=S60) -> TRUE | AB60: =AND(H60=U60) -> TRUE

Sheet Workings (Top Slicing Slice) (hidden)
A1: Existing Position | N1: New Position
A3: Allowances: | N3: Allowances: | Z3: =COUNTIF(Z4:Z60,FALSE) -> 0 | AA3: =COUNTIF(AA4:AA60,FALSE) -> 0 | AB3: =COUNTIF(AB4:AB60,FALSE) -> 0 | AC3: =COUNTIF(AC4:AC60,FALSE) -> 0
A4: Silv_Pers_Allow_Adj | B4: ='Personal allowance'!B14*-1 -> 0 | N4: Silv_New_Pers_Allow_Adj | O4: ='Personal allowance'!E14*-1 -> 0 | Z4: =AND(B4=O4) -> TRUE
A5: Silv_Tot_Pers_Allow | B5: ='Workings (Top Slicing Slice)'!$B$4+Parameters!$B$1 -> 12570 | N5: Silv_New_Tot_Pers_Allow | O5: ='Workings (Top Slicing Slice)'!$O$4+Parameters!$B$1 -> 12570 | Z5: =AND(B5=O5) -> TRUE
A6: Pers_Sav_Allow | B6: =Workings!B6 -> 0 | N6: New_Pers_Sav_Allow | O6: =Workings!N6 -> 0 | Z6: =AND(B6=O6) -> TRUE
A9: Non Savings Income Apportionment | N9: Non Savings Income Apportionment
B11: Allowances | D11: Still to tax | F11: Used | H11: Unused | O11: Allowances | Q11: Still to tax | S11: Used | U11: Unused
A12: Gross Pension Contributions | B12: ='Income Calcs'!B28 -> 0 | C12: Gross Pension Contributions | D12: ='Income Calcs'!B50 -> 0 | E12: Total income Relevant and Non Excl Redundancy | F12: =MIN('Income Calcs'!B49,(MIN(B12,D12))) -> 0 | G12: Gross Pension Used - NSND Sliced | H12: =MAX(0,Workings!B12 - Workings!F12) -> 0 | I12: Gross Pension UNUSED - NSND Sliced | L12: NSND Sliced Income Calcs 1 | N12: Gross Pension Contributions | O12: ='Income Calcs'!B31 -> 0 | P12: Post - Gross Pension Contributions | Q12: =D12 -> 0 | R12: Total income Relevant and Non Excl Redundancy | S12: =MIN('Income Calcs'!B49,(MIN(O12,Q12))) -> 0 | T12: Gross Pension Used - NSND Sliced - Post | U12: =MAX(0,Workings!N12 - Workings!R12) -> 0 | V12: Gross Pension UNUSED - NSND Sliced - Post | Z12: =AND(B12=O12) -> TRUE | AA12: =AND(D12=Q12) -> TRUE | AB12: =AND(F12=S12) -> TRUE | AC12: =AND(H12=U12) -> TRUE
A13: Personal Allowance | B13: =B5 -> 12570 | C13: Personal Allowance To Use | D13: =MAX(0,D12-F12) -> 0 | E13: PA still to tax - NSND - Sliced | F13: =MIN('Workings (Top Slicing Slice)'!$B$13,'Workings (Top Slicing Slice)'!$D$13) -> 0 | G13: PA Used - NSND - Sliced | H13: =MAX(0,'Workings (Top Slicing Slice)'!$B$13 - 'Workings (Top Slicing Slice)'!$F$13) -> 12570 | I13: PA UNUSED - NSND - Slice | L13: NSND Sliced Income Calcs 2 | N13: =A13 -> Personal Allowance | O13: =O5 -> 12570 | P13: Post - Personal Allowance To Use | Q13: =MAX(0,Q12-S12) -> 0 | R13: PA still to tax - NSND - Sliced - Post | S13: =MIN('Workings (Top Slicing Slice)'!$O$13,'Workings (Top Slicing Slice)'!$Q$13) -> 0 | T13: PA Used - NSND - Sliced - Post | U13: =MAX(0,'Workings (Top Slicing Slice)'!$O$13 - 'Workings (Top Slicing Slice)'!$S$13) -> 12570 | V13: PA UNUSED - NSND - Slice - Post | Z13: =AND(B13=O13) -> TRUE | AA13: =AND(D13=Q13) -> TRUE | AB13: =AND(F13=S13) -> TRUE | AC13: =AND(H13=U13) -> TRUE
A14: Basic Rate | B14: =Parameters!B22+'Income Calcs'!B29 -> 37700 | C14: UK BRB to use - Slicing | D14: =MAX(0,D13-F13) -> 0 | E14: NSND BRB still to tax - Sliced | F14: =MIN('Workings (Top Slicing Slice)'!$B$14,'Workings (Top Slicing Slice)'!$D$14) -> 0 | G14: BRB Used - NSND - Sliced | H14: =MAX(0,'Workings (Top Slicing Slice)'!$B$14-'Workings (Top Slicing Slice)'!$F$14) -> 37700 | I14: BRB UNUSED - NSND - Slice | L14: NSND Sliced Income Calcs 3 | N14: =A14 -> Basic Rate | O14: =Parameters!B22+'Income Calcs'!B32 -> 37700 | P14: UK BRB to use - Slicing - Post | Q14: =MAX(0,Q13-S13) -> 0 | R14: NSND BRB still to tax - Sliced - Post | S14: =MIN('Workings (Top Slicing Slice)'!$O$14,'Workings (Top Slicing Slice)'!$Q$14) -> 0 | T14: BRB Used - NSND - Sliced - Post | U14: =MAX(0,'Workings (Top Slicing Slice)'!$O$14-'Workings (Top Slicing Slice)'!$S$14) -> 37700 | V14: BRB UNUSED - NSND - Slice - Post | Z14: =AND(B14=O14) -> TRUE | AA14: =AND(D14=Q14) -> TRUE | AB14: =AND(F14=S14) -> TRUE | AC14: =AND(H14=U14) -> TRUE
A15: Higher Rate | B15: =Parameters!B28-Parameters!B22 -> 87440 | C15: UK HRT Band in Legislation | D15: =MAX(0,D14-F14) -> 0 | E15: NSND HRB still to tax - Sliced | F15: =MIN('Workings (Top Slicing Slice)'!$B$15,'Workings (Top Slicing Slice)'!$D$15) -> 0 | G15: HRB Used - NSND - Sliced | H15: =MAX(0,'Workings (Top Slicing Slice)'!$B$15-'Workings (Top Slicing Slice)'!$F$15) -> 87440 | I15: HRB UNUSED - NSND - Slice | L15: NSND Sliced Income Calcs 4 | N15: =A15 -> Higher Rate | O15: =B15 -> 87440 | P15: UK HRT Band in Legislation | Q15: =MAX(0,Q14-S14) -> 0 | R15: NSND HRB still to tax - Sliced - Post | S15: =MIN('Workings (Top Slicing Slice)'!$O$15,'Workings (Top Slicing Slice)'!$Q$15) -> 0 | T15: HRB Used - NSND - Sliced - Post | U15: =MAX(0,'Workings (Top Slicing Slice)'!$O$15-'Workings (Top Slicing Slice)'!$S$15) -> 87440 | V15: HRB UNUSED - NSND - Slice - Post | Z15: =AND(B15=O15) -> TRUE | AA15: =AND(D15=Q15) -> TRUE | AB15: =AND(F15=S15) -> TRUE | AC15: =AND(H15=U15) -> TRUE
A16: =IF(Inputs!$C$8="Yes","Top Rate","Additional Rate") -> Additional Rate | D16: =MAX(0,'Workings (Top Slicing Slice)'!$D$15-'Workings (Top Slicing Slice)'!$F$15) -> 0 | E16: NSND ARB still to tax - Sliced | F16: ='Workings (Top Slicing Slice)'!$D$16 -> 0 | H16: NA | L16: NSND Sliced Income Calcs 5 | N16: =A16 -> Additional Rate | Q16: =MAX(0,'Workings (Top Slicing Slice)'!$Q$15-'Workings (Top Slicing Slice)'!$S$15) -> 0 | R16: NSND ARB still to tax - Sliced - Post | S16: ='Workings (Top Slicing Slice)'!$Q$16 -> 0 | U16: NA | Z16: =AND(B16=O16) -> TRUE | AA16: =AND(D16=Q16) -> TRUE | AB16: =AND(F16=S16) -> TRUE | AC16: =AND(H16=U16) -> TRUE
A18: Savings Income Tax Band Apportionment | N18: Savings Income Tax Band Apportionment
B19: Allowances | D19: Still to tax | F19: Used | H19: Unused | O19: Allowances | Q19: Still to tax | S19: Used | U19: Unused
A20: Personal Allowance | B20: =H13 -> 12570 | C20: PA UNUSED - NSND - Slice | D20: ='Income Calcs'!B51 -> 0 | E20: PA Savings still to tax - Sliced | F20: =MIN(B20,D20) -> 0 | G20: PA Used on Savings - Sliced | H20: =MAX(0,'Workings (Top Slicing Slice)'!$B$20-'Workings (Top Slicing Slice)'!$F$20) -> 12570 | I20: PA UNUSED on Savings - Sliced | L20: Savings Sliced Income Calcs 3 | N20: =A20 -> Personal Allowance | O20: =U13 -> 12570 | P20: PA UNUSED - NSND - Slice - Post | Q20: =D20 -> 0 | R20: PA Savings still to tax - Sliced - Post | S20: =MIN(O20,Q20) -> 0 | T20: PA Used on Savings - Sliced - Post | U20: =MAX(0,'Workings (Top Slicing Slice)'!$O$20 - 'Workings (Top Slicing Slice)'!$S$20) -> 12570
A21: Starting Rate | B21: ='Income Calcs'!B58 -> 0 | C21: Available Starting Rate for Savings | D21: =MAX(0,D20-F20) -> 0 | E21: Savings | F21: =MIN(B21,D21) -> 0 | G21: Starting Rate used - Savings - Sliced | H21: =MAX(0,'Workings (Top Slicing Slice)'!$B$21-'Workings (Top Slicing Slice)'!$F$21) -> 0 | I21: Starting Rate UNUSED - Savings - Sliced | L21: Savings Sliced Income Calcs 1 | N21: Starting Rate | O21: ='Income Calcs'!B61 -> 0 | P21: Post Available Starting Rate for Savings | Q21: =MAX(0,Q20-S20) -> 0 | R21: Savings | S21: =MIN(O21,Q21) -> 0 | T21: Starting Rate used - Savings - Sliced - Post | U21: =MAX(0,'Workings (Top Slicing Slice)'!$O$21 - 'Workings (Top Slicing Slice)'!$S$21) -> 0 | V21: Starting Rate UNUSED - Savings - Sliced - Post | Z21: =AND(B21=O21) -> TRUE | AA21: =AND(D20=Q21) -> TRUE | AB21: =AND(F21=S21) -> TRUE | AC21: =AND(H21=U21) -> TRUE
A22: Personal Savings Allowance | B22: =B6 -> 0 | C22: PSA to be used | D22: =MAX(0,D21-F21) -> 0 | E22: Savings still to tax - Slice | F22: =MIN(B22,D22) -> 0 | G22: PSA used - Savings - Sliced | H22: =MAX(0,'Workings (Top Slicing Slice)'!$B$22-'Workings (Top Slicing Slice)'!$F$22) -> 0 | I22: PSA UNUSED - Savings - Sliced | L22: Savings Sliced Income Calcs 2 | N22: Personal Savings Allowance | O22: =O6 -> 0 | P22: PSA to be used - Post | Q22: =MAX(0,Q21-S21) -> 0 | R22: Savings still to tax - Slice - Post | S22: =MIN(O22,Q22) -> 0 | T22: PSA used - Savings - Sliced - Post | U22: =MAX(0,'Workings (Top Slicing Slice)'!$O$22 - 'Workings (Top Slicing Slice)'!$S$22) -> 0 | V22: PSA UNUSED - Savings - Sliced - Post | Z22: =AND(B22=O22) -> TRUE | AA22: =AND(D22=Q22) -> TRUE | AB22: =AND(F22=S22) -> TRUE | AC22: =AND(H22=U22) -> TRUE
A23: Basic Rate | B23: =MAX(0,H14-SUM(F21:F22)) -> 37700 | C23: Savings BRB to used - Sliced | D23: =MAX(0,D22-F22) -> 0 | E23: Basic Rate still to tax - Savings - Sliced | F23: =MIN(B23,D23) -> 0 | G23: Basic Rate used - Savings - Sliced | H23: =MAX(0,'Workings (Top Slicing Slice)'!$B$23-'Workings (Top Slicing Slice)'!$F$23) -> 37700 | I23: Basic Rate UNUSED - Savings - Sliced | L23: Savings Sliced Income Calcs 4 | N23: Basic Rate | O23: =MAX(0,(U14-SUM(S21:S22))) -> 37700 | P23: Savings BRB to used - Sliced - Post | Q23: =MAX(0,Q22-S22) -> 0 | R23: Basic Rate still to tax - Savings - Sliced - Post | S23: =MIN(O23,Q23) -> 0 | T23: Basic Rate used - Savings - Sliced - Post | U23: =MAX(0,'Workings (Top Slicing Slice)'!$O$23- 'Workings (Top Slicing Slice)'!$S$23) -> 37700 | V23: Basic Rate UNUSED - Savings - Sliced - Post | Z23: =AND(B23=O23) -> TRUE | AA23: =AND(D23=Q23) -> TRUE | AB23: =AND(F23=S23) -> TRUE | AC23: =AND(H23=U23) -> TRUE
A24: Higher Rate | B24: =H15-J24 -> 87440 | C24: Higher Rate Available for Savings - Sliced | D24: =MAX(0,D23-F23) -> 0 | E24: Higher Rate still to tax - Savings - Sliced | F24: =MIN(B24,D24) -> 0 | G24: Higher Rate used - Savings - Sliced | H24: =MAX(0,'Workings (Top Slicing Slice)'!$B$24 -'Workings (Top Slicing Slice)'!$F$24) -> 87440 | I24: Higher Rate UNUSED - Savings - Sliced | J24: =MIN(H15,MAX(0,F22-H14)) -> 0 | K24: Higher Rate Adjustment for PSA and SRS Bands - Sliced | L24: Savings Sliced Income Calcs 5 | N24: Higher Rate | O24: =U15-W24 -> 87440 | P24: Higher Rate Available for Savings - Sliced - Post | Q24: =MAX(0,Q23-S23) -> 0 | R24: Higher Rate still to tax - Savings - Sliced - Post | S24: =MIN(O24,Q24) -> 0 | T24: Higher Rate used - Savings - Sliced - Post | U24: =MAX(0,'Workings (Top Slicing Slice)'!$O$24 - 'Workings (Top Slicing Slice)'!$S$24) -> 87440 | V24: Higher Rate UNUSED - Savings - Sliced - Post | W24: =MIN(U15,MAX(0,S22-U14)) -> 0 | X24: Higher Rate Adjustment for PSA and SRS Bands - Sliced - Post | Z24: =AND(B24=O24) -> TRUE | AA24: =AND(D24=Q24) -> TRUE | AB24: =AND(F24=S24) -> TRUE | AC24: =AND(H24=U24) -> TRUE
A25: Additional Rate | D25: =MAX(0,D24-F24) -> 0 | E25: Additional Rate still to tax - Savings - Sliced | F25: =D25 -> 0 | H25: NA | L25: Savings Sliced Income Calcs 6 | N25: Additional Rate | Q25: =MAX(0,Q24-S24) -> 0 | R25: Additional Rate still to tax - Savings - Sliced - Post | S25: =Q25 -> 0 | U25: NA | Z25: =AND(B25=O25) -> TRUE | AA25: =AND(D25=Q25) -> TRUE | AB25: =AND(F25=S25) -> TRUE | AC25: =AND(H25=U25) -> TRUE
A27: Offshore Bond Gain Tax Band Apportionment - - set to £0 as included at total gain below | N27: Offshore Bond Gain Tax Band Apportionment - - set to £0 as included at total gain below
B28: Allowances | D28: Still to tax | F28: Used | H28: Unused | O28: Allowances | Q28: Still to tax | S28: Used | U28: Unused
A29: Personal Allowance | B29: =H20 -> 12570 | C29: PA UNUSED on Savings - Sliced | D29: 0 | E29: Offshore Bond still to tax - Personal Allowance - Sliced | F29: =MIN(B29,D29) -> 0 | G29: Personal Allowance Used - Offshore Bond - Sliced | H29: =MAX(0,'Workings (Top Slicing Slice)'!$B$29-'Workings (Top Slicing Slice)'!$F$29) -> 12570 | I29: Personal Allowance UNUSED - Offshore - Sliced | N29: =A29 -> Personal Allowance | O29: =U20 -> 12570 | P29: PA UNUSED on Savings - Sliced - Post | Q29: =D29 -> 0 | R29: Offshore Bond still to tax - Personal Allowance - Sliced - Post | S29: =MIN(O29,Q29) -> 0 | T29: Personal Allowance Used - Offshore Bond - Sliced - Post | U29: =MAX(0,O29-S29) -> 12570
A30: Starting Rate | B30: =H21 -> 0 | C30: Starting Rate UNUSED - Savings - Sliced | D30: =MAX(0,D29-F29) -> 0 | E30: Slicing Zero | F30: =MIN(B30,D30) -> 0 | G30: Starting Rate Used Offshore - Sliced | H30: =MAX(0,'Workings (Top Slicing Slice)'!$B$30-'Workings (Top Slicing Slice)'!$F$30) -> 0 | I30: Starting Rate UNUSED Offshore - Sliced | N30: Starting Rate | O30: =U21 -> 0 | P30: Starting Rate UNUSED - Savings - Sliced - Post | Q30: =MAX(0,Q29-S29) -> 0 | R30: Slicing Zero | S30: =MIN(O30,Q30) -> 0 | T30: Starting Rate Used Offshore - Sliced - Post | U30: =MAX(0,O30-S30) -> 0 | V30: Starting Rate UNUSED Offshore - Sliced - Post | Z30: =AND(B30=O30) -> TRUE | AA30: =AND(D30=Q30) -> TRUE | AB30: =AND(F30=S30) -> TRUE | AC30: =AND(H30=U30) -> TRUE
A31: Personal Savings Allowance | B31: =H22 -> 0 | C31: PSA UNUSED - Savings - Sliced | D31: =MAX(0,D30-F30) -> 0 | E31: Offshore Bond still to tax - PSA - Sliced | F31: =MIN(B31,D31) -> 0 | G31: PSA Used - Offshore Bond - Sliced | H31: =MAX(0,'Workings (Top Slicing Slice)'!$B$31-'Workings (Top Slicing Slice)'!$F$31) -> 0 | I31: PSA UNUSED - Offshore Bond - Sliced | N31: Personal Savings Allowance | O31: =U22 -> 0 | P31: PSA UNUSED - Savings - Sliced - Post | Q31: =MAX(0,Q30-S30) -> 0 | R31: Offshore Bond still to tax - PSA - Sliced - Post | S31: =MIN(O31,Q31) -> 0 | T31: PSA Used - Offshore Bond - Sliced - Post | U31: =MAX(0,O31-S31) -> 0 | V31: PSA UNUSED - Offshore Bond - Sliced - Post | Z31: =AND(B31=O31) -> TRUE | AA31: =AND(D31=Q31) -> TRUE | AB31: =AND(F31=S31) -> TRUE | AC31: =AND(H31=U31) -> TRUE
A32: Basic Rate | B32: =MAX(0,H23-SUM(F30:F31)) -> 37700 | C32: Basic Rate avail for Offshore - Sliced | D32: =MAX(0,D31-F31) -> 0 | E32: Basic Rate still to tax - Offshore - Sliced | F32: =MIN(B32,D32) -> 0 | G32: Basic Rate Used - Offshore Bond - Sliced | H32: =MAX(0,'Workings (Top Slicing Slice)'!$B$32-'Workings (Top Slicing Slice)'!$F$32) -> 37700 | I32: Basic Rate UNUSED - Offshore - Sliced | N32: Basic Rate | O32: =MAX(0,U23-SUM(S30:S31)) -> 37700 | P32: Basic Rate avail for Offshore - Sliced - Post | Q32: =MAX(0,Q31-S31) -> 0 | R32: Basic Rate still to tax - Offshore - Sliced - Post | S32: =MIN(O32,Q32) -> 0 | T32: Basic Rate Used - Offshore Bond - Sliced - Post | U32: =MAX(0,O32-S32) -> 37700 | V32: Basic Rate UNUSED - Offshore - Sliced - Post | Z32: =AND(B32=O32) -> TRUE | AA32: =AND(D32=Q32) -> TRUE | AB32: =AND(F32=S32) -> TRUE | AC32: =AND(H32=U32) -> TRUE
A33: Higher Rate | B33: =H24-J33 -> 87440 | C33: Higher Rate avail Offshore - Sliced | D33: =MAX(0,D32-F32) -> 0 | E33: Higher Rate still to tax - Offshore - Sliced | F33: =MIN(B33,D33) -> 0 | G33: Higher Rate Used - Offshore Bond - Sliced | H33: =MAX(0,'Workings (Top Slicing Slice)'!$B$33-'Workings (Top Slicing Slice)'!$F$33) -> 87440 | I33: Higher Rate UNUSED - Offshore Bond - Sliced | J33: =MIN(H24,MAX(0,F31-H23)) -> 0 | K33: Offshore HR Adjustment for PSA and SRS Bands - Sliced | N33: Higher Rate | O33: =U24-W33 -> 87440 | P33: Higher Rate avail Offshore - Sliced - Post | Q33: =MAX(0,Q32-S32) -> 0 | R33: Higher Rate still to tax - Offshore - Sliced - Post | S33: =MIN(O33,Q33) -> 0 | T33: Higher Rate Used - Offshore Bond - Sliced - Post | U33: =MAX(0,O33-S33) -> 87440 | V33: Higher Rate UNUSED - Offshore Bond - Sliced - Post | W33: =MIN(U24,MAX(0,S31-U23)) -> 0 | X33: Offshore HR Adjustment for PSA and SRS Bands - Sliced - Post | Z33: =AND(B33=O33) -> TRUE | AA33: =AND(D33=Q33) -> TRUE | AB33: =AND(F33=S33) -> TRUE | AC33: =AND(H33=U33) -> TRUE
A34: Additional Rate | D34: =MAX(0,D33-F33) -> 0 | E34: Additional Rate still to tax - Offshore - Sliced | F34: =D34 -> 0 | H34: NA | N34: Additional Rate | Q34: =MAX(0,Q33-S33) -> 0 | R34: Additional Rate still to tax - Offshore - Sliced - Post | S34: =Q34 -> 0 | U34: NA | Z34: =AND(B34=O34) -> TRUE | AA34: =AND(D34=Q34) -> TRUE | AB34: =AND(F34=S34) -> TRUE | AC34: =AND(H34=U34) -> TRUE
A37: Dividend Income Tax Band Apportionment | N37: Dividend Income Tax Band Apportionment
B38: Allowances | D38: Still to tax | F38: Used | H38: Unused | O38: Allowances | Q38: Still to tax | S38: Used | U38: Unused
A39: Personal Allowance | B39: =H29 -> 12570 | C39: Personal Allowance UNUSED - Offshore - Sliced | D39: ='Income Calcs'!$B$37 -> 0 | E39: Dividend Still to Tax Pers Allow - Sliced | F39: =MIN(B39,D39) -> 0 | G39: Personal Allowance Used - Dividends - Sliced | H39: =MAX(0,'Workings (Top Slicing Slice)'!$B$39 - 'Workings (Top Slicing Slice)'!$F$39) -> 12570 | I39: Personal Allowance UNUSED - Dividends - Sliced | N39: Personal Allowance | O39: =U29 -> 12570 | P39: Personal Allowance UNUSED - Offshore - Sliced - Post | Q39: =D39 -> 0 | R39: Dividend Still to Tax Pers Allow - Sliced - Post | S39: =MIN(O39,Q39) -> 0 | T39: Personal Allowance Used - Dividends - Sliced - Post | U39: =MAX(0,O39-S39) -> 12570
A40: Dividend Allowance | B40: ='Income Calcs'!B38 -> 0 | C40: Dividend Zero Rate Band | D40: =MAX(0,D39-F39) -> 0 | E40: Dividend | F40: =MIN(B40,D40) -> 0 | G40: Dividend Zero Rate Used - Sliced | H40: =MAX(0,'Workings (Top Slicing Slice)'!$B$40-'Workings (Top Slicing Slice)'!$F$40) -> 0 | I40: Dividend Zero Rate Unused - Sliced | N40: Dividend Allowance | O40: =B40 -> 0 | P40: Dividend Zero Rate Band | Q40: =MAX(0,Q39-S39) -> 0 | R40: Dividend | S40: =MIN(O40,Q40) -> 0 | T40: Dividend Zero Rate Used - Sliced - Post | U40: =MAX(0,O40-S40) -> 0 | V40: Dividend Zero Rate Unused - Sliced - Post | Z40: =AND(B40=O40) -> TRUE | AA40: =AND(D39=Q39) -> TRUE | AB40: =AND(F40=S40) -> TRUE | AC40: =AND(H40=U40) -> TRUE
A41: Basic Rate | B41: =MAX(0,H32-F40) -> 37700 | C41: Basic Rate Avail for Dividends - Sliced | D41: =MAX(0,D40-F40) -> 0 | E41: Basic Rate still to tax - Dividend - Sliced | F41: =MIN(B41,D41) -> 0 | G41: Basic Rate used - Dividend - Sliced | H41: =MAX(0,'Workings (Top Slicing Slice)'!$B$41-'Workings (Top Slicing Slice)'!$F$41) -> 37700 | I41: Basic Rate UNUSED - Dividend - Sliced | N41: Basic Rate | O41: =MAX(0,U32-S40) -> 37700 | P41: Basic Rate Avail for Dividends - Sliced - Post | Q41: =MAX(0,Q40-S40) -> 0 | R41: Basic Rate still to tax - Dividend - Sliced - Post | S41: =MIN(O41,Q41) -> 0 | T41: Basic Rate used - Dividend - Sliced - Post | U41: =MAX(0,O41-S41) -> 37700 | V41: Basic Rate UNUSED - Dividend - Sliced - Post | Z41: =AND(B41=O41) -> TRUE | AA41: =AND(D41=Q41) -> TRUE | AB41: =AND(F41=S41) -> TRUE | AC41: =AND(H41=U41) -> TRUE
A42: Higher Rate | B42: =H33-J42 -> 87440 | C42: Higher Rate Avail for Dividends - Sliced | D42: =MAX(0,D41-F41) -> 0 | E42: HIgher Rate still to tax - Dividend - Sliced | F42: =MIN(B42,D42) -> 0 | G42: HIgher Rate used - Dividend - Sliced | H42: =MAX(0,'Workings (Top Slicing Slice)'!$B$42-'Workings (Top Slicing Slice)'!$F$42) -> 87440 | I42: HIgher Rate UNUSED - Dividend - Sliced | J42: =MIN(H33,MAX(0,F40-H32)) -> 0 | K42: Dividend HR Adjustment for PSA and SRS Bands - Sliced | N42: Higher Rate | O42: =U33-W42 -> 87440 | P42: Higher Rate Avail for Dividends - Sliced - Post | Q42: =MAX(0,Q41-S41) -> 0 | R42: HIgher Rate still to tax - Dividend - Sliced - Post | S42: =MIN(O42,Q42) -> 0 | T42: HIgher Rate used - Dividend - Sliced - Post | U42: =MAX(0,O42-S42) -> 87440 | V42: HIgher Rate UNUSED - Dividend - Sliced - Post | W42: =MIN(U33,MAX(0,S40-U32)) -> 0 | X42: Dividend HR Adjustment for PSA and SRS Bands - Sliced - Post | Z42: =AND(B42=O42) -> TRUE | AA42: =AND(D42=Q42) -> TRUE | AB42: =AND(F42=S42) -> TRUE | AC42: =AND(H42=U42) -> TRUE
A43: Additional Rate | D43: =MAX(0,D42-F42) -> 0 | E43: Additional Rate still to tax - Dividend - Sliced | F43: =D43 -> 0 | H43: NA | N43: Additional Rate | Q43: =MAX(0,Q42-S42) -> 0 | R43: Additional Rate still to tax - Dividend - Sliced - Post | S43: =MIN(O43,Q43) -> 0 | U43: NA | Z43: =AND(B43=O43) -> TRUE | AA43: =AND(D43=Q43) -> TRUE | AB43: =AND(F43=S43) -> TRUE | AC43: =AND(H43=U43) -> TRUE
A45: Redundancy Payment Tax Band Apportionment - set to £0 as excluded from calcs | N45: Redundancy Payment Tax Band Apportionment - set to £0 as excluded from calcs
B46: Allowances | D46: Still to tax | F46: Used | H46: Unused | O46: Allowances | Q46: Still to tax | S46: Used | U46: Unused
A47: Gross Pension Contributions | B47: =H12 -> 0 | C47: Gross Pension UNUSED - NSND Sliced | D47: 0 | E47: Slicing Zero | F47: =MIN('Income Calcs'!B90,(MIN(B47,D47))) -> 0 | G47: Gross Pension Used for Redundancy - Sliced | H47: =MAX(0,Workings!B47 - Workings!F47) -> 0 | I47: Gross Pension UNUSED for Redundancy - Sliced | N47: Gross Pension Contributions | O47: =U12 -> 0 | P47: Gross Pension UNUSED - NSND Sliced - Post | Q47: =D47 -> 0 | R47: Slicing Zero | S47: =MIN('Income Calcs'!B90,(MIN(O47,Q47))) -> 0 | T47: Gross Pension Used for Redundancy - Sliced - Post | U47: =MAX(0,Workings!N47 - Workings!R47) -> 0 | V47: Gross Pension UNUSED for Redundancy - Sliced - Post | Z47: =AND(B47=O47) -> TRUE | AA47: =AND(D47=Q47) -> TRUE | AB47: =AND(F47=S47) -> TRUE | AC47: =AND(H47=U47) -> TRUE
A48: Personal Allowance | B48: =H39 -> 12570 | C48: Personal Allowance UNUSED - Dividends - Sliced | D48: =MAX(0,D47-F47) -> 0 | E48: Slicing Zero | F48: =MIN('Workings (Top Slicing Slice)'!$B$48,'Workings (Top Slicing Slice)'!$D$48) -> 0 | G48: Personal Allowance Used - Redundancy - Sliced | H48: =MAX(0,'Workings (Top Slicing Slice)'!$B$48 - 'Workings (Top Slicing Slice)'!$F$48) -> 12570 | I48: Personal Allowance UNUSED - Redundancy - Sliced | N48: =A48 -> Personal Allowance | O48: =U39 -> 12570 | P48: Personal Allowance UNUSED - Dividends - Sliced - Post | Q48: =MAX(0,Q47-S47) -> 0 | R48: Slicing Zero | S48: =MIN(O48,Q48) -> 0 | T48: Personal Allowance Used - Redundancy - Sliced - Post | U48: =MAX(0,O48-S48) -> 12570 | V48: Personal Allowance UNUSED - Redundancy - Sliced - Post | Z48: =AND(B48=O48) -> TRUE | AA48: =AND(D48=Q48) -> TRUE | AB48: =AND(F48=S48) -> TRUE | AC48: =AND(H48=U48) -> TRUE
A49: Basic Rate | B49: =H41 -> 37700 | C49: Basic Rate UNUSED - Dividend - Sliced | D49: =MAX(0,D48-F48) -> 0 | E49: Basic Rate still to tax - Redundancy - Sliced | F49: =MIN('Workings (Top Slicing Slice)'!$B$49,'Workings (Top Slicing Slice)'!$D$49) -> 0 | G49: Basic Rate Used - Redundancy - Sliced | H49: =MAX(0,'Workings (Top Slicing Slice)'!$B$49-'Workings (Top Slicing Slice)'!$F$49) -> 37700 | I49: Basic Rate UNUSED - Redundancy - Sliced | N49: =A49 -> Basic Rate | O49: =U41 -> 37700 | P49: Basic Rate UNUSED - Dividend - Sliced - Post | Q49: =MAX(0,Q48-S48) -> 0 | R49: Basic Rate still to tax - Redundancy - Sliced - Post | S49: =MIN(O49,Q49) -> 0 | T49: Basic Rate Used - Redundancy - Sliced - Post | U49: =MAX(0,O49-S49) -> 37700 | V49: Basic Rate UNUSED - Redundancy - Sliced - Post | Z49: =AND(B49=O49) -> TRUE | AA49: =AND(D49=Q49) -> TRUE | AB49: =AND(F49=S49) -> TRUE | AC49: =AND(H49=U49) -> TRUE
A50: Higher Rate | B50: =H42 -> 87440 | C50: HIgher Rate UNUSED - Dividend - Sliced | D50: =MAX(0,D49-F49) -> 0 | E50: Hiigher Rate still to tax - Redundancy - Sliced | F50: =MIN('Workings (Top Slicing Slice)'!$B$50,'Workings (Top Slicing Slice)'!$D$50) -> 0 | G50: HIgher Rate Used - Redundancy - Sliced | H50: =MAX(0,'Workings (Top Slicing Slice)'!$B$50-'Workings (Top Slicing Slice)'!$F$50) -> 87440 | I50: Higher Rate UNUSED - Redundancy - Sliced | N50: =A50 -> Higher Rate | O50: =U42 -> 87440 | P50: HIgher Rate UNUSED - Dividend - Sliced - Post | Q50: =MAX(0,Q49-S49) -> 0 | R50: Hiigher Rate still to tax - Redundancy - Sliced - Post | S50: =MIN(O50,Q50) -> 0 | T50: HIgher Rate Used - Redundancy - Sliced - Post | U50: =MAX(0,O50-S50) -> 87440 | V50: Higher Rate UNUSED - Redundancy - Sliced - Post | Z50: =AND(B50=O50) -> TRUE | AA50: =AND(D50=Q50) -> TRUE | AB50: =AND(F50=S50) -> TRUE | AC50: =AND(H50=U50) -> TRUE
A51: =IF(Inputs!$C$8="Yes","Top Rate","Additional Rate") -> Additional Rate | D51: =MAX(0,D50-F50) -> 0 | E51: Additional Rate still to tax - Redundancy - Sliced | F51: =D51 -> 0 | H51: NA | N51: =A51 -> Additional Rate | Q51: =MAX(0,Q50-S50) -> 0 | R51: Additional Rate still to tax - Redundancy - Sliced - Post | S51: =Q51 -> 0 | U51: NA | Z51: =AND(B51=O51) -> TRUE | AA51: =AND(D51=Q51) -> TRUE | AB51: =AND(F51=S51) -> TRUE | AC51: =AND(H51=U51) -> TRUE
A53: Total Gain Slices Tax Band Apportionment | N53: Total Gain Slices Tax Band Apportionment
B54: Allowances | D54: Still to tax | F54: Used | H54: Unused | O54: Allowances | Q54: Still to tax | S54: Used | U54: Unused
A55: Personal Allowance | B55: =H48 -> 12570 | C55: Personal Allowance UNUSED - Redundancy - Sliced | D55: ='Income Calcs'!B24 -> 0 | E55: Total Bond still to tax - Pers Allow - Sliced | F55: =MIN(B55,D55) -> 0 | G55: Personal Allowance Used - Total - Sliced | H55: =MAX(0,'Workings (Top Slicing Slice)'!$B$55-'Workings (Top Slicing Slice)'!$F$55) -> 12570 | I55: Personal Allowance UNUSED - Total - Sliced | N55: =A55 -> Personal Allowance | O55: =U48 -> 12570 | P55: Personal Allowance UNUSED - Redundancy - Sliced - Post | Q55: =D55 -> 0 | R55: Total Bond still to tax - Pers Allow - Sliced - Post | S55: =MIN(O55,Q55) -> 0 | T55: Personal Allowance Used - Total - Sliced - Post | U55: =MAX(0,O55-S55) -> 12570
A56: Starting Rate | B56: =MAX(0,H30-J56) -> 0 | C56: Starting Rate to use Onshore - Sliced | D56: =MAX(0,D55-F55) -> 0 | E56: Total Slices | F56: =MIN('Workings (Top Slicing Slice)'!$B$56,'Workings (Top Slicing Slice)'!$D$56) -> 0 | G56: Starting Rate used Total - Sliced | H56: =MAX(0,'Workings (Top Slicing Slice)'!$B$56-'Workings (Top Slicing Slice)'!$F$56) -> 0 | I56: Starting Rate UNUSED Total - Sliced | J56: =F40+F41+F49 -> 0 | K56: Starting Rate used by Income - Sliced | N56: Starting Rate | O56: =MAX(0,U30-W56) -> 0 | P56: Starting Rate to use Onshore - Sliced - Post | Q56: =MAX(0,Q55-S55) -> 0 | R56: Total Slices | S56: =MIN(O56,Q56) -> 0 | T56: Starting Rate used Total - Sliced - Post | U56: =MAX(0,O56-S56) -> 0 | V56: Starting Rate UNUSED Total - Sliced - Post | W56: =S40+S41+S49 -> 0 | X56: Starting Rate used by Income - Sliced - Post | Z56: =AND(B56=O56) -> TRUE | AA56: =AND(D55=Q56) -> TRUE | AB56: =AND(F56=S56) -> TRUE | AC56: =AND(H56=U56) -> TRUE
A57: Personal Savings Allowance | B57: =H31 -> 0 | C57: PSA UNUSED - Offshore Bond - Sliced | D57: =MAX(0,D56-F56) -> 0 | E57: Total Bond still to tax - PSA - Sliced | F57: =MIN('Workings (Top Slicing Slice)'!$B$57,'Workings (Top Slicing Slice)'!$D$57) -> 0 | G57: PSA Used - Total Bond - Sliced | H57: =MAX(0,'Workings (Top Slicing Slice)'!$B$57-'Workings (Top Slicing Slice)'!$F$57) -> 0 | I57: PSA UNUSED - Total Bond - Sliced | N57: Personal Savings Allowance | O57: =U31 -> 0 | P57: PSA UNUSED - Offshore Bond - Sliced - Post | Q57: =MAX(0,Q56-S56) -> 0 | R57: Total Bond still to tax - PSA - Sliced - Post | S57: =MIN(O57,Q57) -> 0 | T57: PSA Used - Total Bond - Sliced - Post | U57: =MAX(0,O57-S57) -> 0 | V57: PSA UNUSED - Total Bond - Sliced - Post | Z57: =AND(B57=O57) -> TRUE | AA57: =AND(D57=Q57) -> TRUE | AB57: =AND(F57=S57) -> TRUE | AC57: =AND(H57=U57) -> TRUE
A58: Basic Rate | B58: =MAX(0,H49-SUM(F56:F57)) -> 37700 | C58: Basic Rate avail for Total - Sliced | D58: =MAX(0,D57-F57) -> 0 | E58: Basic Rate still to tax - Total - Sliced | F58: =MIN('Workings (Top Slicing Slice)'!$B$58,'Workings (Top Slicing Slice)'!$D$58) -> 0 | G58: Basic Rate used - Total - Sliced | H58: =MAX(0,'Workings (Top Slicing Slice)'!$B$58-'Workings (Top Slicing Slice)'!$F$58) -> 37700 | I58: Basic Rate UNUSED - Total - Sliced | N58: Basic Rate | O58: =MAX(0,U49-SUM(S56:S57)) -> 37700 | P58: Basic Rate avail for Total - Sliced - Post | Q58: =MAX(0,Q57-S57) -> 0 | R58: Basic Rate still to tax - Total - Sliced - Post | S58: =MIN(O58,Q58) -> 0 | T58: Basic Rate used - Total - Sliced - Post | U58: =MAX(0,O58-S58) -> 37700 | V58: Basic Rate UNUSED - Total - Sliced - Post | Z58: =AND(B58=O58) -> TRUE | AA58: =AND(D58=Q58) -> TRUE | AB58: =AND(F58=S58) -> TRUE | AC58: =AND(H58=U58) -> TRUE
A59: Higher Rate | B59: =H50-J59 -> 87440 | C59: Higher Rate avail for Total - Sliced | D59: =MAX(0,D58-F58) -> 0 | E59: Higher Rate still to tax - Total - Sliced | F59: =MIN('Workings (Top Slicing Slice)'!$B$59,'Workings (Top Slicing Slice)'!$D$59) -> 0 | G59: HIgher Rate used - Total - Sliced | H59: =MAX(0,'Workings (Top Slicing Slice)'!$B$59-'Workings (Top Slicing Slice)'!$F$59) -> 87440 | I59: HIgher Rate UNUSED - Total - Sliced | J59: =MIN(H50,MAX(0,F57-H49)) -> 0 | K59: Total HR Adjustment for PSA and SRS Bands - Sliced | N59: Higher Rate | O59: =U50-W59 -> 87440 | P59: Higher Rate avail for Total - Sliced - Post | Q59: =MAX(0,Q58-S58) -> 0 | R59: Higher Rate still to tax - Total - Sliced - Post | S59: =MIN(O59,Q59) -> 0 | T59: HIgher Rate used - Total - Sliced - Post | U59: =MAX(0,O59-S59) -> 87440 | V59: HIgher Rate UNUSED - Total - Sliced - Post | W59: =MIN(U50,MAX(0,S57-U49)) -> 0 | X59: Total HR Adjustment for PSA and SRS Bands - Sliced - Post | Z59: =AND(B59=O59) -> TRUE | AA59: =AND(D59=Q59) -> TRUE | AB59: =AND(F59=S59) -> TRUE | AC59: =AND(H59=U59) -> TRUE
A60: Additional Rate | D60: =MAX(0,D59-F59) -> 0 | E60: Additional Rate still to tax - Total - Sliced | F60: =D60 -> 0 | H60: NA | N60: Additional Rate | Q60: =MAX(0,Q59-S59) -> 0 | R60: Additional Rate still to tax - Total - Sliced - Post | S60: =Q60 -> 0 | U60: NA | Z60: =AND(B60=O60) -> TRUE | AA60: =AND(D60=Q60) -> TRUE | AB60: =AND(F60=S60) -> TRUE | AC60: =AND(H60=U60) -> TRUE
B62: 29657 | D62: =D58*2 -> 0
B63: =B58-B62 -> 8043
D68: -1500 | E68: -3000
D69: =MAX(0,D68-E68) -> 1500

Sheet Home
B1: Tax Relief Modeller Tool built by M&G | E1: Tax Year 2023/24
B5: This tool is for UK financial advisers only.
B7: Important information about this tool
B8: This calculator is designed to give an estimation of a person’s tax liability and also how pension contributions can have an effect on someone’s tax position. It does not take into account all the possible individual circumstances that may impact on the tax position of the individual. It should not be taken as offering advice or any recommendation. You should be satisfied that the information you have entered into the calculator is correct, for example this tool will assume that any pension contributions and/or gift aid contributions are valid. You should ensure that the outputs are correct for your client. Please note: This tool will not calculate the liability if there are transitional profits from the basis period alignment to tax years from 2023/24 to 2027/28. The information in this modeller is based on our current understanding of legislation and HMRC practice as at March 2022 all which is subject to change without notice. Please not that this tol will cease to operate at the end of the tax year displayed above. Every care has been taken as to its accuracy, but it must be appreciated that neither M&G nor its representatives can accept any responsibility for loss, however caused, suffered by any person who has acted or refrained from acting as a result of material contained in this tool. Certain areas have been omitted from this model for simplicity and ease of use including National Insurance, some sources of income and other reliefs, allowances and tax charges.
B23: Important information about the calculations
B25: Personal allowance is allocated to taxable income following the statutory order of income taxation, more beneficial ordering may be possible in some cases. Beneficial ordering is not applied to the top-slicing calculations. The tool assumes any pension contributions and/or gift aid payments made are valid. Annual Allowance is not taken into account. Gross pension contributions include net pay and relief on making a claim. They are allocated to any relevant earnings first and then allocated to redundancy payments. Where the number of children is added the calculator assumes that child benefit is claimed. Child benefit is calculated using 52 weeks of child benefit claimed. The "total income" displayed is based on the total inputs, the full amount of child benefit and before tax, gift aid and pension contributions. The “bank balance” displayed is based on total inputs (excluding benefits in kind) less taxation, gift aid and pension contributions.
AE30: CRIT Relief at Source - GROSS
V31: Gross RAS Cont | W31: =IF(C6="Under 75", J17*(1/(1-Parameters!$B$10)),0) -> 0 | Y31: Check on Contn: | AB31: SRIT Relief at Source - GROSS | AC31: CRIT Gross RAS Cont 1 | AD31: =IF(C6="Under 75",J17*(1/(1-Parameters!$B$25)),0) -> 0
V32: Exist Gross Cont | W32: =J18 -> 0 | Y32: Relief at Source - GROSS | Z32: SRIT Gross RAS Cont 1 | AA32: =IF(C6="Under 75",J17*(1/(1-Parameters!$B$5)),0) -> 0
Y33: =IF(J18<500000,"OK","Error, contribution exceeds maximum of £500,000 allowed") -> OK | AB33: =TODAY() -> 2023-04-04 | AC33: 2020-07-02

Sheet Inputs
B1: Tax Relief Modeller Tool built by M&G | E1: =Home!E1 -> Tax Year 2023/24
B4: ABOUT YOUR CLIENT | E4: CHARGEABLE EVENTS - BOND GAINS
B6: What is the client's age? | C6: Under 75 | E6: Onshore Gain 1 | H6: Years Gain 1 (N) | J6: Slice 1 | K6: =IF(I6="","",F6/I6) -> 
E7: Onshore Gain 2 | H7: Years Gain 2 (N) | J7: Slice 2 | K7: =IF(I7="","",F7/I7) -> 
B8: Scottish Tax Payer? | C8: No | E8: Onshore Gain 3 | H8: Years Gain 3 (N) | J8: Slice 3 | K8: =IF(I8="","",F8/I8) -> 
E9: Onshore Gain 4 | H9: Years Gain 4 (N) | J9: Slice 4 | K9: =IF(I9="","",F9/I9) -> 
B10: Number of Children
E11: Offshore Gain 1 | H11: Years Gain 1 (N) | J11: Slice 1 | K11: =IF(I11="","",F11/I11) -> 
B12: Gift Aid (Gross amt) | E12: Offshore Gain 2 | H12: Years Gain 2 (N) | J12: Slice 2 | K12: =IF(I12="","",F12/I12) -> 
E13: Offshore Gain 3 | H13: Years Gain 3 (N) | J13: Slice 3 | K13: =IF(I13="","",F13/I13) -> 
E14: Offshore Gain 4 | H14: Years Gain 4 (N) | J14: Slice 4 | K14: =IF(I14="","",F14/I14) -> 
B16: INCOME SOURCES | H16: EXISTING PENSION CONTRIBUTIONS
B18: Employment Income | E18: Gross Savings Interest | H18: Relief at Source (Net Amount)
B19: Benefits in Kind | E19: Dividends | H19: Contributions paid gross
B20: Taxable Self Employed Profits | E20: Taxable Capital Gains (10%/20%)
B21: UFPLS (taxable element) | E21: Taxable Capital Gains (18%/28%) | H21: NEW PENSION CONTRIBUTIONS
B22: Drawdown / Annuity Income | E22: Taxable Redundancy Payment
B23: State Pension Income | E23: Rental Income - Relevant | H23: Relief at Source (Net Amount)
B24: Purchased Life Annuity Income | E24: Rental Income - Not relevant | H24: Contributions paid gross
B27: BEFORE NEW CONTRIBUTIONS | E27: AFTER NEW CONTRIBUTIONS | H27: DIFFERENCE | I27: PENSION SUMMARY
I28: =IF(C6="Over 75","+++ No contributions allowed +++",IF(K32<3600.01,"",IF(K32>K29,"+++ Contributions exceed limit +++",""))) -> 
B29: "Total Income" | C29: =SUM(C18:C24,F18:F24,F6:F14)+Tax!F63 -> 0 | E29: "Total Income" | F29: =C29 -> 0 | H29: =C29-F29 -> 0 | I29: Relevant Earnings | K29: =C18+C19+C20+F22+F23 -> 0
B30: Adjusted Net Income | C30: =Tax!C5 -> 0 | E30: =B30 -> Adjusted Net Income | F30: =Tax!J5 -> 0 | H30: =F30-C30 -> 0 | I30: Contributions: Existing | K30: =((J18/(1-Parameters!B10))+Inputs!J19) -> 0 | AE30: CRIT Relief at Source - GROSS
B31: Personal Allowance | C31: =Tax!$C$8 -> 12570 | E31: Personal Allowance | F31: =Tax!$J$8 -> 12570 | H31: =F31-C31 -> 0 | I31: =IF(C6="Over 75","+++ No contributions allowed +++",IF(K30<3600.01,"",IF(K30>K29,"+++ Contributions exceed limit +++",""))) ->  | J31: New | K31: =(J23/(1-Parameters!B10))+Inputs!J24 -> 0 | V31: Gross RAS Cont | W31: =IF(C6="Under 75", J18*(1/(1-Parameters!$B$10)),0) -> 0 | Y31: Check on Contn: | AB31: SRIT Relief at Source - GROSS | AC31: CRIT Gross RAS Cont 1 | AD31: =IF(C6="Under 75",J18*(1/(1-Parameters!$B$25)),0) -> 0
B32: Personal Savings Allowance | C32: =Workings!B6 -> 0 | E32: Personal Savings Allowance | F32: =Workings!N6 -> 0 | H32: =F32-C32 -> 0 | J32: Total | K32: =K30+K31 -> 0 | V32: Exist Gross Cont | W32: =J19 -> 0 | Y32: Relief at Source - GROSS | Z32: SRIT Gross RAS Cont 1 | AA32: =IF(C6="Under 75",J18*(1/(1-Parameters!$B$5)),0) -> 0
B33: Child Benefit Charge | C33: =Tax!$G$65 -> 0 | E33: Child Benefit Charge | F33: =Tax!N65 -> 0 | H33: =F33-C33 -> 0 | Y33: =IF(J19<500000,"OK","Error, contribution exceeds maximum of £500,000 allowed") -> OK | AB33: =TODAY() -> 2023-04-04 | AC33: 2020-07-02
B34: Capital Gains Tax | C34: =Tax!G71 -> 0 | E34: Capital Gains Tax | F34: =Tax!N71 -> 0 | H34: =F34-C34 -> 0 | I34: Effective Rate of Tax Relief (on new contributions) | K34: =IF(C8="No",Tax!N85,'Tax (Scotland)'!AE86) -> 0
B36: Tax Liability | C36: =IF(C8="No",Tax!G73,Tax!X75) -> 0 | E36: Tax Liability | F36: =IF(C8="No",Tax!N73,Tax!AE75) -> 0 | H36: =F36-C36 -> 0
S37: Total - UK Rates | T37: =SUM(W31:W32)+SUM(W37:W38) -> 0 | V37: New Gross Cont | W37: =J24 -> 0 | Y37: Check on Contn: | AE37: Post - CRIT Relief at Source - GROSS
B38: Bond Gains Summary | E38: Bond Gains Summary | S38: Total - SRIT | T38: =W32+AA32+W37+AA39 -> 0 | V38: New RAS Cont Gross | W38: =IF(C6="Under 75",J23*(1/(1-Parameters!$B$10)),0) -> 0 | Y38: =IF(Inputs!$J$23<500000,"OK","Error, contribution exceeds maximum of £500,000 allowed") -> OK | AB38: Post - SRIT Relief at Source - GROSS | AC38: New CRIT RAS Cont Gross | AD38: =IF(C6="Under 75",J23*(1/(1-Parameters!$B$25)),0) -> 0
B39: Tax on gains | C39: =Tax!G31+Tax!G53 -> 0 | E39: Tax on gains | F39: =Tax!N31+Tax!N53 -> 0 | H39: =C39-F39 -> 0 | I39: Please navigate between workings and inputs using the tabs at the bottom of the sheet. | S39: Age 75 | T39: =IF(AND(T37>0,C6="Over 75")=TRUE,"Client is over 75 Contributions should not be entered","") ->  | Y39: Post Relief at Source - GROSS | Z39: New SRIT RAS Cont Gross | AA39: =IF(C6="Under 75",J23*(1/(1-Parameters!$B$5)),0) -> 0
B40: Onshore Tax Credit | C40: =Tax!F57 -> 0 | E40: Onshore Tax Credit | F40: =Tax!M57 -> 0 | H40: =C40-F40 -> 0 | S40: Relevant Earnings - UK | T40: =IF(SUM(W31:W31)+W38<=Parameters!B50,"",IF(T37>'Income Calcs'!B47,"Contribution limit is higher of £3,600 and relevant earnings","")) -> 
B41: Top slicing relief | C41: =Tax!F58 -> 0 | E41: Top slicing relief | F41: =Tax!M58 -> 0 | H41: =F41-C41 -> 0 | S41: Gross Contributions | T41: =IF(SUM(W32:W32)+W37>'Income Calcs'!B47,"Net Pay contributions cannot exceed relevant earnings","") -> 
B42: Liability | C42: =MAX(0,C39-C40-C41) -> 0 | E42: Liability | F42: =MAX(0,F39-F40-F41) -> 0 | H42: =F42-C42 -> 0 | S42: Relevant Earnings - SRIT | T42: =IF(SUM(AA32:AA32)+AA39<=Parameters!B50,"",IF(T38>'Income Calcs'!B47,"Contribution limit is higher of £3,600 and relevant earnings","")) -> 
B44: "Bank Balance" | C44: =C29-((C12*(1-Parameters!B10)+C36+C19+J18+J19)) -> 0 | E44: "Bank Balance" | F44: =C29-((C12*(1-Parameters!B10)+F36+C19+J18+J19+J23+J24)) -> 0 | H44: =F44-C44 -> 0
B47: Important Information Before using this tool you should read the Important information about this tool and Important information about the calculations included on the "Home" tab. Hover over the red tags beside fields for further information.

Sheet Tax (Scotland)
B1: Tax Calculation UK (excluding Scotland) | F1: =Inputs!E1 -> Tax Year 2023/24 | S1: Tax Calculation Scotland | T1: =F1 -> Tax Year 2023/24
A3: Existing Position | H3: New Position | S3: Existing Position | Z3: New Position | AY3: CRIT
B4: Personal Allowance | I4: Personal Allowance | S4: Personal Allowance | Z4: Personal Allowance
B5: Adjusted Net Income (for allowance purposes) | C5: ='Income Calcs'!B66 -> 0 | I5: Adjusted Net Income (for allowance purposes) | J5: ='Income Calcs'!B67 -> 0 | S5: Adjusted Net Income (for allowance purposes) | T5: =C5 -> 0 | Z5: Adjusted Net Income (for allowance purposes) | AA5: =J5 -> 0
B6: Personal Allowance | C6: =Parameters!$B$1 -> 12570 | I6: Personal Allowance | J6: =Parameters!$B$1 -> 12570 | S6: Personal Allowance | T6: =C6 -> 12570 | Z6: Personal Allowance | AA6: =J6 -> 12570
B7: Adjustment | C7: =Workings!$B$4 -> 0 | I7: Adjustment | J7: =Workings!$N$4 -> 0 | S7: Adjustment | T7: =C7 -> 0 | Z7: Adjustment | AA7: =J7 -> 0
B8: Total Allowance | C8: =SUM(C6:C7) -> 12570 | I8: Total Allowance | J8: =SUM(J6:J7) -> 12570 | S8: Total Allowance | T8: =C8 -> 12570 | Z8: Total Allowance | AA8: =J8 -> 12570
B10: Non Savings Income | I10: Non Savings Income | S10: Non Savings Income | Z10: Non Savings Income
B11: Gross Pension Contributions | C11: =Workings!F12 -> 0 | D11: @ | E11: 0 | F11: =C11*E11 -> 0 | I11: Gross Pension Contributions | J11: =Workings!R12 -> 0 | K11: @ | L11: =E11 -> 0 | M11: =J11*L11 -> 0 | S11: Gross Pension Contributions | T11: =Workings!AJ11 -> 0 | U11: @ | V11: 0 | W11: =T11*V11 -> 0 | Z11: =S11 -> Gross Pension Contributions | AA11: =Workings!AV11 -> 0 | AB11: @ | AC11: =V11 -> 0 | AD11: =AA11*AC11 -> 0 | BX11: =AND(#REF!=#REF!) ->  | BY11: =AND(#REF!=#REF!) ->  | BZ11: =AND(#REF!=#REF!) ->  | CA11: =AND(F5=O5) -> TRUE
B12: Personal Allowance | C12: =Workings!F13 -> 0 | D12: @ | E12: 0 | F12: =C12*E12 -> 0 | I12: Personal Allowance | J12: =Workings!R13 -> 0 | K12: @ | L12: =E12 -> 0 | M12: =J12*L12 -> 0 | S12: Personal Allowance | T12: =Workings!AJ12 -> 0 | U12: @ | V12: 0 | W12: 0 | Z12: Personal Allowance | AA12: =Workings!AV12 -> 0 | AB12: @ | AC12: 0 | AD12: 0 | BX12: =AND(B6=I6) -> TRUE | BY12: =AND(#REF!=#REF!) ->  | BZ12: =AND(C6=J6) -> TRUE | CA12: =AND(#REF!=#REF!) -> 
B13: Basic Rate | C13: =Workings!F14 -> 0 | D13: @ | E13: =Parameters!B10 -> 0.2 | F13: =C13*E13 -> 0 | I13: Basic Rate | J13: =Workings!R14 -> 0 | K13: @ | L13: =E13 -> 0.2 | M13: =J13*L13 -> 0 | S13: Starter Rate | T13: =Workings!AJ13 -> 0 | U13: @ | V13: =Parameters!B4 -> 0.19 | W13: 0 | Z13: Starter Rate | AA13: =Workings!AV13 -> 0 | AB13: @ | AC13: 0.19 | AD13: 0 | BX13: =AND(B7=I7) -> TRUE | BY13: =AND(#REF!=#REF!) ->  | BZ13: =AND(C7=J7) -> TRUE | CA13: =AND(F6=O6) -> TRUE
B14: Higher Rate | C14: =Workings!F15 -> 0 | D14: @ | E14: =Parameters!B11 -> 0.4 | F14: =C14*E14 -> 0 | I14: Higher Rate | J14: =Workings!R15 -> 0 | K14: @ | L14: =E14 -> 0.4 | M14: =J14*L14 -> 0 | S14: Basic Rate | T14: =Workings!AJ14 -> 0 | U14: @ | V14: =Parameters!B5 -> 0.2 | W14: 0 | Z14: Basic Rate | AA14: =Workings!AV14 -> 0 | AB14: @ | AC14: 0.2 | AD14: 0 | BX14: =AND(B8=I8) -> TRUE | BY14: =AND(#REF!=#REF!) ->  | BZ14: =AND(C8=J8) -> TRUE | CA14: =AND(F7=O7) -> TRUE
B15: =IF(Inputs!$C$8="Yes","Top Rate","Additional Rate") -> Additional Rate | C15: =Workings!F16 -> 0 | D15: @ | E15: =Parameters!B12 -> 0.45 | F15: =C15*E15 -> 0 | G15: =SUM(F11:F15) -> 0 | I15: =IF(Inputs!$C$8="Yes","Top Rate","Additional Rate") -> Additional Rate | J15: =Workings!R16 -> 0 | K15: @ | L15: =E15 -> 0.45 | M15: =J15*L15 -> 0 | N15: =SUM(M11:M15) -> 0 | S15: Intermediate Rate | T15: =Workings!AJ15 -> 0 | U15: @ | V15: =Parameters!B6 -> 0.21 | W15: 0 | Z15: Intermediate Rate | AA15: =Workings!AV15 -> 0 | AB15: @ | AC15: 0.21 | AD15: 0 | BX15: =AND(B9=#REF!) ->  | BY15: =AND(C9=#REF!) ->  | BZ15: =AND(D9=M8) -> TRUE | CA15: =AND(F8=O8) -> TRUE
S16: Higher Rate | T16: =Workings!AJ16 -> 0 | U16: @ | V16: =Parameters!B7 -> 0.42 | W16: 0 | Z16: Higher Rate | AA16: =Workings!AV16 -> 0 | AB16: @ | AC16: 0.42 | AD16: 0 | BB16: Existing Position | BM16: New Position | CA16: =AND(#REF!=J9) ->  | CB16: =AND(#REF!=K9) ->  | CC16: =AND(#REF!=M9) ->  | CD16: =AND(F9=O9) -> TRUE
B17: Savings Income | I17: Savings Income | S17: Top Rate | T17: =Workings!AJ17 -> 0 | U17: @ | V17: =Parameters!B8 -> 0.47 | W17: 0 | X17: =SUM(W11:W17) -> 0 | Z17: Top Rate | AA17: =Workings!AV17 -> 0 | AB17: @ | AC17: 0.47 | AD17: 0 | AE17: =SUM(AD11:AD17) -> 0 | CA17: =AND(#REF!=#REF!) ->  | CB17: =AND(#REF!=#REF!) ->  | CC17: =AND(#REF!=#REF!) ->  | CD17: =AND(#REF!=#REF!) -> 
B18: Starting Rate | C18: =Workings!F20 -> 0 | D18: @ | E18: 0 | F18: =C18*E18 -> 0 | I18: Starting Rate | J18: =Workings!R20 -> 0 | K18: @ | L18: =E18 -> 0 | M18: =J18*L18 -> 0 | CA18: =AND(#REF!=#REF!) ->  | CB18: =AND(#REF!=#REF!) ->  | CC18: =AND(#REF!=#REF!) ->  | CD18: =AND(#REF!=#REF!) -> 
B19: Personal Savings Allowance | C19: =Workings!F21 -> 0 | D19: @ | E19: 0 | F19: 0 | I19: Personal Savings Allowance | J19: =Workings!R21 -> 0 | K19: @ | L19: 0 | M19: 0 | S19: Savings Income | Z19: Savings Income | BC19: =B10 -> Non Savings Income | BM19: =J10 -> 0 | CA19: =AND(B10=J10) -> FALSE | CB19: =AND(D10=L10) -> TRUE | CC19: =AND(E10=M10) -> TRUE | CD19: =AND(F10=O10) -> TRUE
B20: Personal Allowance | C20: =Workings!F22 -> 0 | D20: @ | E20: 0 | F20: 0 | I20: Personal Allowance | J20: =Workings!R22 -> 0 | K20: @ | L20: 0 | M20: 0 | S20: =B18 -> Starting Rate | T20: 0 | U20: @ | V20: 0 | W20: 0 | Z20: =S20 -> Starting Rate | AA20: =J18 -> 0 | AB20: =U20 -> @ | AC20: 0 | AD20: =M18 -> 0 | AZ20: Gross Pension Contributions | BA20: =C11 -> 0 | BB20: Gross Pension Used NSND | BC20: =D11 -> @ | BD20: =E11 -> 0 | BE20: Gross Pension in PA Rate | BF20: =BA20*BD20 -> 0 | BG20: Gross Pension in PA Tax (UK Rates used) | BK20: =J11 -> 0 | BL20: Post - Gross Pension Used NSND | BM20: =K11 -> @ | BN20: =L11 -> 0 | BO20: Gross Pension in PA Rate | BP20: =BK20*BN20 -> 0 | BQ20: Post - Gross Pension in PA Tax (UK Rates used) | BY20: =AND(C11=J11) -> TRUE | BZ20: TRUE | CA20: TRUE | CB20: TRUE
B21: Basic Rate | C21: =Workings!F23 -> 0 | D21: @ | E21: =E13 -> 0.2 | F21: 0 | I21: Basic Rate | J21: =Workings!R23 -> 0 | K21: @ | L21: 0.2 | M21: 0 | S21: Personal Savings Allowance | T21: 0 | U21: @ | V21: 0 | W21: 0 | Z21: Personal Savings Allowance | AA21: 0 | AB21: @ | AC21: 0 | AD21: 0 | AZ21: Personal Allowance | BA21: =C12 -> 0 | BB21: PA Used | BC21: =D12 -> @ | BD21: =E12 -> 0 | BE21: PA Tax (UK Rates) | BF21: =BA21*BD21 -> 0 | BG21: PA Tax (UK Rates used) | BK21: =J12 -> 0 | BL21: Post - PA Used | BM21: =K12 -> @ | BN21: =L12 -> 0 | BO21: PA Tax (UK Rates) | BP21: =BK21*BN21 -> 0 | BQ21: Post - PA Tax (UK Rates used) | BY21: TRUE | BZ21: TRUE | CA21: TRUE | CB21: TRUE
B22: Higher Rate | C22: =Workings!F24 -> 0 | D22: @ | E22: =E14 -> 0.4 | F22: 0 | I22: Higher Rate | J22: =Workings!R24 -> 0 | K22: @ | L22: 0.4 | M22: 0 | S22: Personal Allowance | T22: 0 | U22: @ | V22: 0 | W22: 0 | Z22: Personal Allowance | AA22: 0 | AB22: @ | AC22: 0 | AD22: 0 | AZ22: Basic Rate | BA22: =C13 -> 0 | BB22: CRIT BRB Used | BC22: =D13 -> @ | BD22: =Parameters!B25 -> 0.2 | BE22: CRIT BR RATE | BF22: =BA22*BD22 -> 0 | BG22: CRIT BR NSND Tax | BK22: =J13 -> 0 | BL22: Post - CRIT BRB Used | BM22: =K13 -> @ | BN22: =BD22 -> 0.2 | BO22: CRIT BR RATE | BP22: =BK22*BN22 -> 0 | BQ22: Post - CRIT BR NSND Tax | BY22: TRUE | BZ22: TRUE | CA22: TRUE | CB22: TRUE
B23: Additional Rate | C23: =Workings!F25 -> 0 | D23: @ | E23: =E15 -> 0.45 | F23: 0 | G23: =SUM(F18:F23) -> 0 | I23: Additional Rate | J23: =Workings!R25 -> 0 | K23: @ | L23: 0.45 | M23: 0 | N23: =SUM(M18:M23) -> 0 | S23: Basic Rate | T23: 0 | U23: @ | V23: 0.2 | W23: 0 | Z23: Basic Rate | AA23: 0 | AB23: @ | AC23: 0.2 | AD23: 0 | AY23: Higher Rate | AZ23: =C14 -> 0 | BA23: CRIT HRB Used | BB23: =D14 -> @ | BC23: =Parameters!B26 -> 0.4 | BD23: CRIT HR RATE | BE23: =AZ23*BC23 -> 0 | BF23: CRIT HR NSND Tax | BJ23: =J14 -> 0 | BK23: Post - CRIT HRB Used | BL23: =K14 -> @ | BM23: =BC23 -> 0.4 | BN23: CRIT HR RATE | BO23: =BJ23*BM23 -> 0 | BP23: Post - CRIT HR NSND Tax | BX23: =AND(C14=J14) -> TRUE | BY23: TRUE | BZ23: TRUE | CA23: TRUE
S24: Higher Rate | T24: 0 | U24: @ | V24: 0.4 | W24: 0 | Z24: Higher Rate | AA24: 0 | AB24: @ | AC24: 0.4 | AD24: 0 | AY24: =IF(Inputs!$C$8="Yes","Top Rate","Additional Rate") -> Additional Rate | AZ24: =C15 -> 0 | BA24: CRIT ARB Still to Tax | BB24: =D15 -> @ | BC24: =Parameters!B27 -> 0.45 | BD24: CRIT AR RATE | BE24: =AZ24*BC24 -> 0 | BF24: CRIT AR NSND Tax | BG24: =SUM(BF20:BF24) -> 0 | BH24: Total CRIT NSND Tax | BJ24: =J15 -> 0 | BK24: CRIT ARB Still to Tax | BL24: =K15 -> @ | BM24: =BC24 -> 0.45 | BN24: CRIT AR RATE | BO24: =BJ24*BM24 -> 0 | BP24: Post - CRIT AR NSND Tax | BQ24: =SUM(BP20:BP24) -> 0 | BR24: Post - Total CRIT NSND Tax | BX24: TRUE | BY24: TRUE | BZ24: TRUE | CA24: TRUE
B25: Offshore Bond Gain | I25: Offshore Bond Gain | S25: Additional Rate | T25: 0 | U25: @ | V25: 0.45 | W25: 0 | X25: =G23 -> 0 | Z25: Additional Rate | AA25: 0 | AB25: @ | AC25: 0.45 | AD25: 0 | AE25: =N23 -> 0 | BX25: TRUE | BY25: TRUE | BZ25: TRUE | CA25: TRUE
B26: Starting Rate | C26: =Workings!F29 -> 0 | D26: @ | E26: 0 | F26: =C26*E26 -> 0 | I26: Starting Rate | J26: =Workings!R29 -> 0 | K26: @ | L26: =E26 -> 0 | M26: =J26*L26 -> 0 | AZ26: =B17 -> Savings Income | BJ26: =J17 -> 0 | BX26: =AND(B17=J17) -> FALSE | BY26: TRUE | BZ26: TRUE | CA26: TRUE
B27: Personal Savings Allowance | C27: =Workings!F30 -> 0 | D27: @ | E27: =Parameters!$B$3 -> 0 | F27: 0 | I27: Personal Savings Allowance | J27: =Workings!R30 -> 0 | K27: @ | L27: 0 | M27: 0 | S27: Offshore Bond Gain | Z27: Offshore Bond Gain | AY27: Starting Rate | AZ27: =C18 -> 0 | BB27: =D18 -> @ | BC27: 0 | BE27: =F18 -> 0 | BJ27: 0 | BL27: =K18 -> @ | BM27: 0 | BO27: =M18 -> 0 | BX27: =AND(C18=J18) -> TRUE | BY27: TRUE | BZ27: TRUE | CA27: TRUE
B28: Personal Allowance | C28: =Workings!F31 -> 0 | D28: @ | E28: 0 | F28: 0 | I28: Personal Allowance | J28: =Workings!R31 -> 0 | K28: @ | L28: 0 | M28: 0 | S28: =B26 -> Starting Rate | T28: 0 | U28: @ | V28: 0 | W28: 0 | Z28: =S28 -> Starting Rate | AA28: =J26 -> 0 | AB28: =U28 -> @ | AC28: 0 | AD28: =M26 -> 0 | AY28: Personal Savings Allowance | AZ28: 0 | BB28: @ | BC28: 0 | BE28: 0 | BJ28: 0 | BL28: @ | BM28: 0 | BO28: 0 | BX28: TRUE | BY28: TRUE | BZ28: TRUE | CA28: TRUE
B29: Basic Rate | C29: =Workings!F32 -> 0 | D29: @ | E29: =E21 -> 0.2 | F29: 0 | I29: Basic Rate | J29: =Workings!R32 -> 0 | K29: @ | L29: 0.2 | M29: 0 | S29: Personal Savings Allowance | T29: 0 | U29: @ | V29: 0 | W29: 0 | Z29: Personal Savings Allowance | AA29: 0 | AB29: @ | AC29: 0 | AD29: 0 | AY29: Personal Allowance | AZ29: 0 | BB29: @ | BC29: 0 | BE29: 0 | BJ29: 0 | BL29: @ | BM29: 0 | BO29: 0 | BX29: TRUE | BY29: TRUE | BZ29: TRUE | CA29: TRUE
B30: Higher Rate | C30: =Workings!F33 -> 0 | D30: @ | E30: =E22 -> 0.4 | F30: 0 | I30: Higher Rate | J30: =Workings!R33 -> 0 | K30: @ | L30: 0.4 | M30: 0 | S30: Personal Allowance | T30: 0 | U30: @ | V30: 0 | W30: 0 | Z30: Personal Allowance | AA30: 0 | AB30: @ | AC30: 0 | AD30: 0 | AY30: Basic Rate | AZ30: 0 | BB30: @ | BC30: 0.2 | BE30: 0 | BJ30: 0 | BL30: @ | BM30: 0.2 | BO30: 0 | BX30: TRUE | BY30: TRUE | BZ30: TRUE | CA30: TRUE
B31: Additional Rate | C31: =Workings!F34 -> 0 | D31: @ | E31: =E23 -> 0.45 | F31: 0 | G31: =SUM(F26:F31) -> 0 | I31: Additional Rate | J31: =Workings!R34 -> 0 | K31: @ | L31: 0.45 | M31: 0 | N31: =SUM(M26:M31) -> 0 | S31: Basic Rate | T31: 0 | U31: @ | V31: 0.2 | W31: 0 | Z31: Basic Rate | AA31: 0 | AB31: @ | AC31: 0.2 | AD31: 0 | AY31: Higher Rate | AZ31: 0 | BB31: @ | BC31: 0.4 | BE31: 0 | BJ31: 0 | BL31: @ | BM31: 0.4 | BO31: 0 | BX31: TRUE | BY31: TRUE | BZ31: TRUE | CA31: TRUE
S32: Higher Rate | T32: 0 | U32: @ | V32: 0.4 | W32: 0 | Z32: Higher Rate | AA32: 0 | AB32: @ | AC32: 0.4 | AD32: 0 | AY32: Additional Rate | AZ32: 0 | BB32: @ | BC32: 0.45 | BE32: 0 | BG32: =G23 -> 0 | BJ32: 0 | BL32: @ | BM32: 0.45 | BO32: 0 | BQ32: =N23 -> 0 | BX32: TRUE | BY32: TRUE | BZ32: TRUE | CA32: TRUE
B33: Dividend | I33: Dividend | S33: Additional Rate | T33: 0 | U33: @ | V33: 0.45 | W33: 0 | X33: =G31 -> 0 | Z33: Additional Rate | AA33: 0 | AB33: @ | AC33: 0.45 | AD33: 0 | AE33: =N31 -> 0 | BX33: TRUE | BY33: TRUE | BZ33: TRUE | CA33: TRUE
B34: Dividend Allowance | C34: =Workings!F39 -> 0 | D34: @ | E34: 0 | F34: =C34*E34 -> 0 | I34: Dividend Allowance | J34: =Workings!R39 -> 0 | K34: @ | L34: =E34 -> 0 | M34: =J34*L34 -> 0 | AZ34: =B25 -> Offshore Bond Gain | BJ34: =J25 -> 0 | BX34: =AND(B25=J25) -> FALSE | BY34: TRUE | BZ34: TRUE | CA34: TRUE
B35: Personal Allowance | C35: =Workings!F40 -> 0 | D35: @ | E35: 0 | F35: =C35*E35 -> 0 | I35: Personal Allowance | J35: =Workings!R40 -> 0 | K35: @ | L35: =E35 -> 0 | M35: =J35*L35 -> 0 | S35: Dividend | Z35: Dividend | AY35: Starting Rate | AZ35: =C26 -> 0 | BB35: =D26 -> @ | BC35: 0 | BE35: =F26 -> 0 | BJ35: 0 | BL35: =K26 -> @ | BM35: 0 | BO35: =M26 -> 0 | BX35: =AND(C26=J26) -> TRUE | BY35: TRUE | BZ35: TRUE | CA35: TRUE
B36: Basic Rate | C36: =Workings!F41 -> 0 | D36: @ | E36: =Parameters!$B$13 -> 0.0875 | F36: =C36*E36 -> 0 | I36: Basic Rate | J36: =Workings!R41 -> 0 | K36: @ | L36: =E36 -> 0.0875 | M36: =J36*L36 -> 0 | S36: =B34 -> Dividend Allowance | T36: 0 | U36: @ | V36: 0 | W36: 0 | Z36: =S36 -> Dividend Allowance | AA36: =J34 -> 0 | AB36: =U36 -> @ | AC36: 0 | AD36: =M34 -> 0 | AY36: Personal Savings Allowance | AZ36: 0 | BB36: @ | BC36: 0 | BE36: 0 | BJ36: 0 | BL36: @ | BM36: 0 | BO36: 0 | BX36: TRUE | BY36: TRUE | BZ36: TRUE | CA36: TRUE
B37: Higher Rate | C37: =Workings!F42 -> 0 | D37: @ | E37: =Parameters!$B$14 -> 0.3375 | F37: =C37*E37 -> 0 | I37: Higher Rate | J37: =Workings!R42 -> 0 | K37: @ | L37: =E37 -> 0.3375 | M37: =J37*L37 -> 0 | S37: Personal Allowance | T37: 0 | U37: @ | V37: 0 | W37: 0 | Z37: =S37 -> Personal Allowance | AA37: =J35 -> 0 | AB37: @ | AC37: 0 | AD37: =M35 -> 0 | AY37: Personal Allowance | AZ37: 0 | BB37: @ | BC37: 0 | BE37: 0 | BJ37: 0 | BL37: @ | BM37: 0 | BO37: 0 | BX37: TRUE | BY37: TRUE | BZ37: TRUE | CA37: TRUE
B38: Additional Rate | C38: =Workings!F43 -> 0 | D38: @ | E38: =Parameters!$B$15 -> 0.3935 | F38: =C38*E38 -> 0 | G38: =SUM(F34:F38) -> 0 | I38: Additional Rate | J38: =Workings!R43 -> 0 | K38: @ | L38: =E38 -> 0.3935 | M38: =J38*L38 -> 0 | N38: =SUM(M34:M38) -> 0 | S38: Basic Rate | T38: 0 | U38: @ | V38: 0.0875 | W38: 0 | Z38: =S38 -> Basic Rate | AA38: =J36 -> 0 | AB38: @ | AC38: 0.0875 | AD38: =M36 -> 0 | AY38: Basic Rate | AZ38: 0 | BB38: @ | BC38: 0.2 | BE38: 0 | BJ38: 0 | BL38: @ | BM38: 0.2 | BO38: 0 | BX38: TRUE | BY38: TRUE | BZ38: TRUE | CA38: TRUE
S39: Higher Rate | T39: 0 | U39: @ | V39: 0.3375 | W39: 0 | Z39: =S39 -> Higher Rate | AA39: =J37 -> 0 | AB39: @ | AC39: 0.3375 | AD39: =M37 -> 0 | AY39: Higher Rate | AZ39: 0 | BB39: @ | BC39: 0.4 | BE39: 0 | BJ39: 0 | BL39: @ | BM39: 0.4 | BO39: 0 | BX39: TRUE | BY39: TRUE | BZ39: TRUE | CA39: TRUE
B40: Redundancy Payment | I40: Redundancy Payment | S40: Additional Rate | T40: 0 | U40: @ | V40: 0.3935 | W40: 0 | X40: =G38 -> 0 | Z40: =S40 -> Additional Rate | AA40: =J38 -> 0 | AB40: @ | AC40: 0.3935 | AD40: =M38 -> 0 | AE40: =N38 -> 0 | AY40: Additional Rate | AZ40: 0 | BB40: @ | BC40: 0.45 | BE40: 0 | BG40: =G31 -> 0 | BJ40: 0 | BL40: @ | BM40: 0.45 | BO40: 0 | BQ40: =N31 -> 0 | BX40: TRUE | BY40: TRUE | BZ40: TRUE | CA40: TRUE
B41: Gross Pension Contributions | C41: =Workings!F47 -> 0 | D41: @ | E41: 0 | F41: =C41*E41 -> 0 | I41: Gross Pension Contributions | J41: =Workings!N47 -> 0 | K41: @ | L41: =E41 -> 0 | M41: =J41*L41 -> 0 | S41: Redundancy Payment | Z41: Redundancy Payment | BX41: TRUE | BY41: TRUE | BZ41: TRUE | CA41: TRUE
B42: Personal Allowance | C42: =Workings!F48 -> 0 | D42: @ | E42: 0 | F42: =C42*E42 -> 0 | I42: Personal Allowance | J42: =Workings!R48 -> 0 | K42: @ | L42: =E42 -> 0 | M42: =J42*L42 -> 0 | S42: Gross Pension Contributions | T42: =Workings!AJ49 -> 0 | U42: @ | V42: 0 | W42: =T42*V42 -> 0 | Z42: =S42 -> Gross Pension Contributions | AA42: =Workings!AV49 -> 0 | AB42: @ | AC42: =V42 -> 0 | AD42: =AA42*AC42 -> 0 | AZ42: =B33 -> Dividend | BJ42: =J33 -> 0 | BX42: =AND(B33=J33) -> FALSE | BY42: TRUE | BZ42: TRUE | CA42: TRUE
B43: Basic Rate | C43: =Workings!F49 -> 0 | D43: @ | E43: =E21 -> 0.2 | F43: =C43*E43 -> 0 | I43: Basic Rate | J43: =Workings!R49 -> 0 | K43: @ | L43: =E43 -> 0.2 | M43: =J43*L43 -> 0 | S43: Personal Allowance | T43: =Workings!AJ50 -> 0 | U43: @ | V43: 0 | W43: 0 | Z43: Personal Allowance | AA43: =Workings!AV50 -> 0 | AB43: @ | AC43: 0 | AD43: 0 | AY43: Dividend Allowance | AZ43: =C34 -> 0 | BB43: =D34 -> @ | BC43: 0 | BE43: =F34 -> 0 | BJ43: 0 | BL43: =K34 -> @ | BM43: 0 | BO43: =M34 -> 0 | BX43: =AND(C34=J34) -> TRUE | BY43: TRUE | BZ43: TRUE | CA43: TRUE
B44: Higher Rate | C44: =Workings!F50 -> 0 | D44: @ | E44: =E22 -> 0.4 | F44: =C44*E44 -> 0 | I44: Higher Rate | J44: =Workings!R50 -> 0 | K44: @ | L44: =E44 -> 0.4 | M44: =J44*L44 -> 0 | S44: Starter Rate | T44: =Workings!AJ51 -> 0 | U44: @ | V44: =Parameters!B4 -> 0.19 | W44: 0 | Z44: Starter Rate | AA44: =Workings!AV51 -> 0 | AB44: @ | AC44: 0.19 | AD44: 0 | AY44: Personal Allowance | AZ44: =C35 -> 0 | BB44: @ | BC44: 0 | BE44: =F35 -> 0 | BJ44: 0 | BL44: @ | BM44: 0 | BO44: =M35 -> 0 | BX44: TRUE | BY44: TRUE | BZ44: TRUE | CA44: TRUE
B45: =IF(Inputs!$C$8="Yes","Top Rate","Additional Rate") -> Additional Rate | C45: =Workings!F51 -> 0 | D45: @ | E45: =E23 -> 0.45 | F45: =C45*E45 -> 0 | G45: =SUM(F41:F45) -> 0 | I45: =IF(Inputs!$C$8="Yes","Top Rate","Additional Rate") -> Additional Rate | J45: =Workings!R51 -> 0 | K45: @ | L45: =E45 -> 0.45 | M45: =J45*L45 -> 0 | N45: =SUM(M41:M45) -> 0 | S45: Basic Rate | T45: =Workings!AJ52 -> 0 | U45: @ | V45: =Parameters!B5 -> 0.2 | W45: 0 | Z45: Basic Rate | AA45: =Workings!AV52 -> 0 | AB45: @ | AC45: 0.2 | AD45: 0 | AY45: Basic Rate | AZ45: =C36 -> 0 | BB45: @ | BC45: 0.0875 | BE45: =F36 -> 0 | BJ45: 0 | BL45: @ | BM45: 0.0875 | BO45: =M36 -> 0 | BX45: TRUE | BY45: TRUE | BZ45: TRUE | CA45: TRUE
S46: Intermediate Rate | T46: =Workings!AJ53 -> 0 | U46: @ | V46: =Parameters!B6 -> 0.21 | W46: 0 | Z46: Intermediate Rate | AA46: =Workings!AV53 -> 0 | AB46: @ | AC46: 0.21 | AD46: 0 | AY46: Higher Rate | AZ46: =C37 -> 0 | BB46: @ | BC46: 0.3375 | BE46: =F37 -> 0 | BJ46: 0 | BL46: @ | BM46: 0.3375 | BO46: =M37 -> 0 | BX46: TRUE | BY46: TRUE | BZ46: TRUE | CA46: TRUE
B47: Onshore Bond Gain | I47: Onshore Bond Gain | S47: Higher Rate | T47: =Workings!AJ54 -> 0 | U47: @ | V47: =Parameters!B7 -> 0.42 | W47: 0 | Z47: Higher Rate | AA47: =Workings!AV54 -> 0 | AB47: @ | AC47: 0.42 | AD47: 0 | AY47: Additional Rate | AZ47: =C38 -> 0 | BB47: @ | BC47: 0.3935 | BE47: =F38 -> 0 | BG47: =G38 -> 0 | BJ47: 0 | BL47: @ | BM47: 0.3935 | BO47: =M38 -> 0 | BQ47: =N38 -> 0 | BX47: TRUE | BY47: TRUE | BZ47: TRUE | CA47: TRUE
B48: Starting Rate | C48: =Workings!F55 -> 0 | D48: @ | E48: 0 | F48: =C48*E48 -> 0 | I48: Starting Rate | J48: =Workings!R55 -> 0 | K48: @ | L48: =E48 -> 0 | M48: =J48*L48 -> 0 | S48: Top Rate | T48: =Workings!AJ55 -> 0 | U48: @ | V48: =Parameters!B8 -> 0.47 | W48: 0 | X48: =SUM(W42:W48) -> 0 | Z48: Top Rate | AA48: =Workings!AV55 -> 0 | AB48: @ | AC48: 0.47 | AD48: 0 | AE48: =SUM(AD42:AD48) -> 0 | BX48: TRUE | BY48: TRUE | BZ48: TRUE | CA48: TRUE
B49: Personal Savings Allowance | C49: =Workings!F56 -> 0 | D49: @ | E49: =Parameters!$B$3 -> 0 | F49: 0 | I49: Personal Savings Allowance | J49: =Workings!R56 -> 0 | K49: @ | L49: 0 | M49: 0 | S49: Onshore Bond Gain | Z49: Onshore Bond Gain | AZ49: =B40 -> Redundancy Payment | BJ49: =J40 -> 0 | BX49: =AND(B40=J40) -> FALSE | BY49: TRUE | BZ49: TRUE | CA49: TRUE
B50: Personal Allowance | C50: =Workings!F57 -> 0 | D50: @ | E50: 0 | F50: 0 | I50: Personal Allowance | J50: =Workings!R57 -> 0 | K50: @ | L50: 0 | M50: 0 | S50: =B48 -> Starting Rate | T50: 0 | U50: @ | V50: 0 | W50: 0 | Z50: =S50 -> Starting Rate | AA50: =J48 -> 0 | AB50: =U50 -> @ | AC50: 0 | AD50: =M48 -> 0 | AY50: Gross Pension Contributions | AZ50: =C41 -> 0 | BA50: Gross Pension Used for Redundancy | BB50: =D41 -> @ | BC50: =E41 -> 0 | BD50: Gross Pension in PA Rate | BE50: =AZ50*BC50 -> 0 | BF50: Gross Pension in PA Tax - CRIT - Redundancy (UK Rates used) | BJ50: 0 | BK50: Gross Pension Used for Redundancy - Post | BL50: =K41 -> @ | BM50: =L41 -> 0 | BN50: Gross Pension in PA Rate | BO50: =BJ50*BM50 -> 0 | BP50: Post - Gross Pension in PA Tax - CRIT - Redundancy (UK Rates used) | BX50: =AND(C41=J41) -> TRUE | BY50: TRUE | BZ50: TRUE | CA50: TRUE
B51: Basic Rate | C51: =Workings!F58 -> 0 | D51: @ | E51: =E43 -> 0.2 | F51: 0 | I51: Basic Rate | J51: =Workings!R58 -> 0 | K51: @ | L51: 0.2 | M51: 0 | S51: Personal Savings Allowance | T51: 0 | U51: @ | V51: 0 | W51: 0 | Z51: Personal Savings Allowance | AA51: 0 | AB51: @ | AC51: 0 | AD51: 0 | AY51: Personal Allowance | AZ51: =C42 -> 0 | BA51: Personal Allowance Used - Redundancy | BB51: =D42 -> @ | BC51: =E42 -> 0 | BD51: PA Tax Rate | BE51: =AZ51*BC51 -> 0 | BF51: PA Tax - CRIT - Redundancy (UK Rates used) | BJ51: 0 | BK51: Personal Allowance Used - Redundancy - Post | BL51: =K42 -> @ | BM51: =L42 -> 0 | BN51: PA Tax Rate | BO51: =BJ51*BM51 -> 0 | BP51: Post - PA Tax - CRIT - Redundancy (UK Rates used) | BX51: TRUE | BY51: TRUE | BZ51: TRUE | CA51: TRUE
B52: Higher Rate | C52: =Workings!F59 -> 0 | D52: @ | E52: =E44 -> 0.4 | F52: 0 | I52: Higher Rate | J52: =Workings!R59 -> 0 | K52: @ | L52: 0.4 | M52: 0 | S52: Personal Allowance | T52: 0 | U52: @ | V52: 0 | W52: 0 | Z52: Personal Allowance | AA52: 0 | AB52: @ | AC52: 0 | AD52: 0 | AY52: Basic Rate | AZ52: =C43 -> 0 | BA52: CRIT Redundancy BR Used | BB52: =D43 -> @ | BC52: =Parameters!B25 -> 0.2 | BD52: CRIT BRB Rate | BE52: =AZ52*BC52 -> 0 | BF52: CRIT BRB Tax - Redundancy | BJ52: 0 | BK52: Post - CRIT Redundancy BR Used | BL52: =K43 -> @ | BM52: =BC52 -> 0.2 | BN52: CRIT BRB Rate | BO52: =BJ52*BM52 -> 0 | BP52: Post - CRIT BRB Tax - Redundancy | BX52: TRUE | BY52: TRUE | BZ52: TRUE | CA52: TRUE
B53: Additional Rate | C53: =Workings!F60 -> 0 | D53: @ | E53: =E45 -> 0.45 | F53: 0 | G53: =SUM(F48:F53) -> 0 | I53: Additional Rate | J53: =Workings!R60 -> 0 | K53: @ | L53: 0.45 | M53: 0 | N53: =SUM(M48:M53) -> 0 | S53: Basic Rate | T53: 0 | U53: @ | V53: 0.2 | W53: 0 | Z53: Basic Rate | AA53: 0 | AB53: @ | AC53: 0.2 | AD53: 0 | AY53: Higher Rate | AZ53: =C44 -> 0 | BA53: CRIT Redundancy HR Used | BB53: =D44 -> @ | BC53: =Parameters!B26 -> 0.4 | BD53: CRIT HRB Rate | BE53: =AZ53*BC53 -> 0 | BF53: CRIT HRB Tax - Redundancy | BJ53: 0 | BK53: Post - CRIT Redundancy HR Used | BL53: =K44 -> @ | BM53: =BC53 -> 0.4 | BN53: CRIT HRB Rate | BO53: =BJ53*BM53 -> 0 | BP53: Post - CRIT HRB Tax - Redundancy | BX53: TRUE | BY53: TRUE | BZ53: TRUE | CA53: TRUE
S54: Higher Rate | T54: 0 | U54: @ | V54: 0.4 | W54: 0 | Z54: Higher Rate | AA54: 0 | AB54: @ | AC54: 0.4 | AD54: 0 | AY54: =IF(Inputs!$C$8="Yes","Top Rate","Additional Rate") -> Additional Rate | AZ54: =C45 -> 0 | BA54: CRIT Redundancy AR Still to Tax | BB54: =D45 -> @ | BC54: =Parameters!B27 -> 0.45 | BD54: CRIT ARB Rate | BE54: =AZ54*BC54 -> 0 | BF54: CRIT ARB Tax - Redundancy | BG54: =SUM(BE50:BE54) -> 0 | BJ54: 0 | BK54: Post - CRIT Redundancy AR Still to Tax | BL54: =K45 -> @ | BM54: =BC54 -> 0.45 | BN54: CRIT ARB Rate | BO54: =BJ54*BM54 -> 0 | BP54: Post - CRIT ARB Tax - Redundancy | BQ54: =SUM(BO50:BO54) -> 0 | BX54: TRUE | BY54: TRUE | BZ54: TRUE | CA54: TRUE
B55: Step 5 Total | G55: =SUM(G15:G53) -> 0 | J55: =B55 -> Step 5 Total | N55: =SUM(N15:N53) -> 0 | S55: Additional Rate | T55: 0 | U55: @ | V55: 0.45 | W55: 0 | X55: =G53 -> 0 | Z55: Additional Rate | AA55: 0 | AB55: @ | AC55: 0.45 | AD55: 0 | AE55: =N53 -> 0 | BX55: TRUE | BY55: TRUE | BZ55: TRUE | CA55: TRUE
AZ56: =B47 -> Onshore Bond Gain | BJ56: =J47 -> 0 | BX56: =AND(B47=J47) -> FALSE | BY56: TRUE | BZ56: TRUE | CA56: TRUE
B57: Less Onshore Bond Tax Credit | F57: =(Workings!D55-Workings!F57)*Parameters!B10 -> 0 | J57: Less Onshore Bond Tax Credit | M57: =(Workings!P55-Workings!R57)*Parameters!B10 -> 0 | T57: Step 5 Total | X57: =SUM(X17:X55) -> 0 | AA57: Step 5 Total | AE57: =SUM(AE17:AE55) -> 0 | AY57: Starting Rate | AZ57: =C48 -> 0 | BB57: =D48 -> @ | BC57: 0 | BE57: =F48 -> 0 | BJ57: 0 | BL57: =K48 -> @ | BM57: 0 | BO57: =M48 -> 0 | BX57: =AND(C48=J48) -> TRUE | BY57: TRUE | BZ57: TRUE | CA57: TRUE
B58: Less Top Slicing Relief | F58: ='Top Slicing'!G35 -> 0 | G58: =SUM(F57:F58) -> 0 | J58: Less Top Slicing Relief | M58: ='Top Slicing'!N35 -> 0 | N58: =SUM(M57:M58) -> 0 | AY58: Personal Savings Allowance | AZ58: 0 | BB58: @ | BC58: 0 | BE58: 0 | BJ58: 0 | BL58: @ | BM58: 0 | BO58: 0 | BX58: TRUE | BY58: TRUE | BZ58: TRUE | CA58: TRUE
T59: Less Onshore Bond Tax Credit | W59: =F57 -> 0 | AA59: Less Onshore Bond Tax Credit | AD59: =M57 -> 0 | AY59: Personal Allowance | AZ59: 0 | BB59: @ | BC59: 0 | BE59: 0 | BJ59: 0 | BL59: @ | BM59: 0 | BO59: 0 | BX59: TRUE | BY59: TRUE | BZ59: TRUE | CA59: TRUE
C60: Income Tax payable | G60: =MAX(0,G55-G58) -> 0 | J60: =C60 -> Income Tax payable | N60: =MAX(0,N55-N58) -> 0 | T60: Less Top Slicing Relief | W60: =F58 -> 0 | X60: =SUM(W59:W60) -> 0 | AA60: Less Top Slicing Relief | AD60: =M58 -> 0 | AE60: =SUM(AD59:AD60) -> 0 | AY60: Basic Rate | AZ60: 0 | BB60: @ | BC60: 0.2 | BE60: 0 | BJ60: 0 | BL60: @ | BM60: 0.2 | BO60: 0 | BX60: TRUE | BY60: TRUE | BZ60: TRUE | CA60: TRUE
AY61: Higher Rate | AZ61: 0 | BB61: @ | BC61: 0.4 | BE61: 0 | BJ61: 0 | BL61: @ | BM61: 0.4 | BO61: 0 | BX61: TRUE | BY61: TRUE | BZ61: TRUE | CA61: TRUE
C62: Child Benefit Tax Charge | J62: Child Benefit Tax Charge | T62: Income Tax payable | X62: =MAX(0,X57-X60) -> 0 | AA62: Income Tax payable | AE62: =MAX(0,AE57-AE60) -> 0 | AY62: Additional Rate | AZ62: 0 | BB62: @ | BC62: 0.45 | BE62: 0 | BG62: =G53 -> 0 | BJ62: 0 | BL62: @ | BM62: 0.45 | BO62: 0 | BQ62: =N53 -> 0 | BX62: TRUE | BY62: TRUE | BZ62: TRUE | CA62: TRUE
C63: Total Benefit | F63: =ROUNDDOWN('Child Benefit Saving'!B8,0) -> 0 | J63: Total Benefit | M63: =ROUNDDOWN('Child Benefit Saving'!E8,0) -> 0 | BX63: TRUE | BY63: TRUE | BZ63: TRUE | CA63: TRUE
C64: excess over ANI | F64: ='Child Benefit Saving'!B5 -> 0 | J64: excess over ANI | M64: ='Child Benefit Saving'!E5 -> 0 | T64: Child Benefit Tax Charge | AA64: Child Benefit Tax Charge | AZ64: Total | BG64: =SUM(BG24:BG62) -> 0 | BJ64: Total | BQ64: =SUM(BQ24:BQ62) -> 0 | BX64: =AND(B55=#REF!) ->  | BY64: =AND(#REF!=#REF!) ->  | BZ64: =AND(C55=J55) -> FALSE | CA64: =AND(#REF!=M55) -> 
C65: Charge | F65: ='Child Benefit Saving'!B7 -> 0 | G65: ='Child Benefit Saving'!B9 -> 0 | J65: Charge | M65: ='Child Benefit Saving'!E7 -> 0 | N65: ='Child Benefit Saving'!E9 -> 0 | T65: Total Benefit | W65: =ROUNDDOWN('Child Benefit Saving'!B8,0) -> 0 | AA65: Total Benefit | AD65: =ROUNDDOWN('Child Benefit Saving'!E8,0) -> 0 | BX65: =AND(#REF!=J56) ->  | BY65: =AND(D56=#REF!) ->  | BZ65: =AND(C56=L56) -> TRUE | CA65: =AND(#REF!=M56) -> 
C66: Net Benefit | F66: =F63-G65 -> 0 | J66: Net Benefit | M66: =M63-N65 -> 0 | T66: excess over ANI | W66: ='Child Benefit Saving'!B5 -> 0 | AA66: excess over ANI | AD66: ='Child Benefit Saving'!E5 -> 0
B67: Capital Gain | I67: Capital Gain | T67: Charge | W67: ='Child Benefit Saving'!B7 -> 0 | X67: ='Child Benefit Saving'!B9 -> 0 | AA67: Charge | AD67: ='Child Benefit Saving'!E7 -> 0 | AE67: ='Child Benefit Saving'!E9 -> 0
B68: Basic Rate | C68: ='Capital Gains Tax'!B13 -> 0 | D68: @ | E68: =Parameters!$B$30 -> 0.1 | F68: =C68*E68 -> 0 | I68: Basic Rate | J68: ='Capital Gains Tax'!F13 -> 0 | K68: @ | L68: =E68 -> 0.1 | M68: =J68*L68 -> 0 | T68: Net Benefit | W68: =W65-X67 -> 0 | AA68: Net Benefit | AD68: =AD65-AE67 -> 0
B69: Higher Rate | C69: ='Capital Gains Tax'!B14 -> 0 | D69: @ | E69: =Parameters!$B$31 -> 0.2 | F69: =C69*E69 -> 0 | I69: Higher Rate | J69: ='Capital Gains Tax'!F14 -> 0 | K69: @ | L69: =E69 -> 0.2 | M69: =J69*L69 -> 0 | T69: Capital Gain | AA69: Capital Gain
B70: Total gain subject to additional tax (res prop/carried interest) | C70: =Inputs!F21 -> 0 | D70: @ | E70: =Parameters!$B$32 -> 0.08 | F70: =C70*E70 -> 0 | I70: Total gain subject to additional tax (res prop/carried interest) | J70: =Inputs!F21 -> 0 | K70: @ | L70: =E70 -> 0.08 | M70: =J70*L70 -> 0 | S70: Basic Rate | T70: =C68 -> 0 | U70: @ | V70: =Parameters!$B$30 -> 0.1 | W70: =F68 -> 0 | Z70: Basic Rate | AA70: =J68 -> 0 | AB70: @ | AC70: =Parameters!$B$30 -> 0.1 | AD70: =M68 -> 0
C71: CGT payable | G71: =SUM(F68:F70) -> 0 | J71: =C71 -> CGT payable | N71: =SUM(M68:M70) -> 0 | S71: Higher Rate | T71: =C69 -> 0 | U71: @ | V71: =Parameters!$B$31 -> 0.2 | W71: =F69 -> 0 | Z71: Higher Rate | AA71: =J69 -> 0 | AB71: @ | AC71: =Parameters!$B$31 -> 0.2 | AD71: =M69 -> 0
S72: =B70 -> Total gain subject to additional tax (res prop/carried interest) | T72: =Inputs!F21 -> 0 | U72: @ | V72: =Parameters!$B$32 -> 0.08 | W72: =F70 -> 0 | Z72: =S72 -> Total gain subject to additional tax (res prop/carried interest) | AA72: =T72 -> 0 | AB72: @ | AC72: =Parameters!$B$32 -> 0.08 | AD72: =M70 -> 0
F73: Total tax | G73: =G71+G60+G65 -> 0 | M73: =F73 -> Total tax | N73: =N71+N60+N65 -> 0 | T73: CGT payable | X73: =SUM(W70:W72) -> 0 | AA73: CGT payable | AE73: =SUM(AD70:AD72) -> 0
AZ74: Less Onshore Bond Tax Credit | BE74: =F57 -> 0 | BJ74: Less Onshore Bond Tax Credit | BO74: =M57 -> 0 | BX74: =AND(B57=J57) -> TRUE | BY74: =AND(#REF!=#REF!) ->  | BZ74: =AND(#REF!=#REF!) ->  | CA74: =AND(F57=M57) -> TRUE
B75: Important Information This calculator is designed to give an estimation of a person’s tax liability and also how pension contributions can have an effect on someone’s tax position. The calculations produced in this modeller are based on our current understanding of legislation and HMRC practice all which is subject to change without notice. Every care has been taken as to its accuracy, but it must be appreciated that neither M&G Prudential nor its representatives can accept any responsibility for loss, however caused, suffered by any person who has acted or refrained from acting as a result of material contained in this tool. Certain areas have been omitted from this model for simplicity and ease of use including National Insurance, some sources of income and other reliefs and allowances. It does not take into account all the possible individual circumstances that may impact on the tax position of the individual. It should not be taken as offering advice or any recommendation. You should be satisfied that the information you have entered into the calculator is correct, for example this tool will assume that any pension contributions and/or gift aid contributions are valid. You should ensure that the outputs are correct for your client. | W75: Total tax | X75: =X73+X62+X67 -> 0 | AD75: Total tax | AE75: =AE73+AE62+AE67 -> 0 | AZ75: Less Top Slicing Relief | BE75: =F58 -> 0 | BG75: =SUM(BE74:BE75) -> 0 | BJ75: Less Top Slicing Relief | BO75: =M58 -> 0 | BQ75: =SUM(BO74:BO75) -> 0 | BX75: =AND(B58=J58) -> TRUE | BY75: =AND(#REF!=#REF!) ->  | BZ75: =AND(#REF!=#REF!) ->  | CA75: =AND(F58=M58) -> TRUE
J76: Effective rate of tax relief on new contributions | BX76: =AND(#REF!=J59) ->  | BY76: =AND(B59=#REF!) ->  | BZ76: =AND(C59=L59) -> TRUE | CA76: =AND(D59=M59) -> TRUE
S77: Important Information This calculator is designed to give an estimation of a person’s tax liability and also how pension contributions can have an effect on someone’s tax position. The calculations produced in this modeller are based on our current understanding of legislation and HMRC practice all which is subject to change without notice. Every care has been taken as to its accuracy, but it must be appreciated that neither M&G Prudential nor its representatives can accept any responsibility for loss, however caused, suffered by any person who has acted or refrained from acting as a result of material contained in this tool. Certain areas have been omitted from this model for simplicity and ease of use including National Insurance, some sources of income and other reliefs and allowances. It does not take into account all the possible individual circumstances that may impact on the tax position of the individual. It should not be taken as offering advice or any recommendation. You should be satisfied that the information you have entered into the calculator is correct, for example this tool will assume that any pension contributions and/or gift aid contributions are valid. You should ensure that the outputs are correct for your client. | AA77: Effective rate of tax relief on new contributions | AZ77: Income Tax payable | BG77: =MAX(0,BG64-BG75) -> 0 | BJ77: Income Tax payable | BQ77: =MAX(0,BQ64-BQ75) -> 0 | BX77: =AND(C60=J60) -> TRUE | BY77: =AND(#REF!=#REF!) ->  | BZ77: =AND(#REF!=L60) ->  | CA77: =AND(#REF!=M60) -> 
K78: Total Contributions (gross) | N78: =Inputs!W37+Inputs!W38 -> 0 | O78: a
J79: Relief: | AB79: Total Contributions (gross) | AE79: =Inputs!W37+Inputs!W38 -> 0 | AF79: a | AZ79: Child Benefit Tax Charge | BG79: =G65 -> 0 | BJ79: Child Benefit Tax Charge | BQ79: =N65 -> 0 | BX79: =AND(C62=J62) -> TRUE | BY79: =AND(#REF!=#REF!) ->  | BZ79: =AND(#REF!=L62) ->  | CA79: =AND(#REF!=#REF!) -> 
J80: at source | M80: =Inputs!W38-Inputs!J23 -> 0 | AA80: Relief:
J81: reduction in income tax bill | M81: =G60-N60 -> 0 | AA81: at source | AD81: =Inputs!AA39-Inputs!J23 -> 0 | AZ81: Capital Gain | BJ81: Capital Gain | BX81: =AND(B67=J67) -> FALSE | BY81: =AND(D67=K67) -> TRUE | BZ81: TRUE | CA81: TRUE
J82: reduction in CGT bill | M82: =G71-N71 -> 0 | AA82: reduction in income tax bill | AD82: =X62-AE62 -> 0 | AY82: Basic Rate | AZ82: =C68 -> 0 | BB82: @ | BC82: =Parameters!$B$30 -> 0.1 | BE82: =F68 -> 0 | BI82: Basic Rate | BJ82: =J68 -> 0 | BL82: @ | BM82: =Parameters!$B$30 -> 0.1 | BO82: =M68 -> 0 | BX82: =AND(C68=J68) -> TRUE | BY82: TRUE | BZ82: TRUE | CA82: TRUE
J83: child benefit tax charge saving | M83: =G65-N65 -> 0 | N83: =SUM(M80:M83) -> 0 | O83: b | AA83: reduction in CGT bill | AD83: =X73-AE73 -> 0 | AY83: Higher Rate | AZ83: =C69 -> 0 | BB83: @ | BC83: =Parameters!$B$31 -> 0.2 | BE83: =F69 -> 0 | BI83: Higher Rate | BJ83: =J69 -> 0 | BL83: @ | BM83: =Parameters!$B$31 -> 0.2 | BO83: =M69 -> 0 | BX83: =AND(C69=J69) -> TRUE | BY83: TRUE | BZ83: TRUE | CA83: TRUE
AA84: child benefit tax charge saving | AD84: =X67-AE67 -> 0 | AE84: =SUM(AD81:AD84) -> 0 | AF84: b | AY84: =B70 -> Total gain subject to additional tax (res prop/carried interest) | AZ84: =C70 -> 0 | BB84: @ | BC84: =Parameters!$B$31 -> 0.2 | BE84: =F70 -> 0 | BI84: =AY84 -> Total gain subject to additional tax (res prop/carried interest) | BJ84: =J70 -> 0 | BL84: @ | BM84: =Parameters!$B$31 -> 0.2 | BO84: =M70 -> 0 | BX84: =AND(C70=J70) -> TRUE | BY84: TRUE | BZ84: TRUE | CA84: TRUE
J85: Effective Rate (b divided by a) | N85: =IF(N78=0,0,N83/N78) -> 0 | AZ85: CGT payable | BG85: =SUM(BE82:BE83) -> 0 | BJ85: CGT payable | BQ85: =SUM(BO82:BO83) -> 0 | BX85: =AND(C71=J71) -> TRUE | BY85: =AND(#REF!=K71) ->  | BZ85: =AND(E71=#REF!) ->  | CA85: =AND(F71=M71) -> TRUE
AA86: Effective Rate (b divided by a) | AE86: =IF(AE79=0,0,AE84/AE79) -> 0 | BX86: =AND(C72=J72) -> TRUE | BY86: =AND(D72=K72) -> TRUE | BZ86: =AND(E72=L72) -> TRUE | CA86: =AND(F72=M72) -> TRUE
AZ87: Total tax payable | BG87: =BG85+BG77+BG79 -> 0 | BJ87: Total tax payable | BQ87: =BQ85+BQ77+BQ79 -> 0 | BX87: =AND(F73=M73) -> TRUE | BY87: =AND(D73=K73) -> TRUE | BZ87: =AND(E73=L73) -> TRUE | CA87: =AND(#REF!=#REF!) -> 

Sheet Tax
B1: Tax Calculation UK (excluding Scotland) | F1: =Inputs!E1 -> Tax Year 2023/24 | S1: Tax Calculation Scotland | T1: =F1 -> Tax Year 2023/24
B3: Existing Position | H3: New Position | S3: Existing Position | Z3: New Position | AY3: CRIT
B4: Personal Allowance | I4: Personal Allowance | S4: Personal Allowance | Z4: Personal Allowance
B5: Adjusted Net Income (for allowance purposes) | C5: ='Income Calcs'!B66 -> 0 | I5: Adjusted Net Income (for allowance purposes) | J5: ='Income Calcs'!B67 -> 0 | S5: Adjusted Net Income (for allowance purposes) | T5: =C5 -> 0 | Z5: Adjusted Net Income (for allowance purposes) | AA5: =J5 -> 0
B6: Personal Allowance | C6: =Parameters!$B$1 -> 12570 | I6: Personal Allowance | J6: =Parameters!$B$1 -> 12570 | S6: Personal Allowance | T6: =C6 -> 12570 | Z6: Personal Allowance | AA6: =J6 -> 12570
B7: Adjustment | C7: =Workings!$B$4 -> 0 | I7: Adjustment | J7: =Workings!$N$4 -> 0 | S7: Adjustment | T7: =C7 -> 0 | Z7: Adjustment | AA7: =J7 -> 0
B8: Total Allowance | C8: =SUM(C6:C7) -> 12570 | I8: Total Allowance | J8: =SUM(J6:J7) -> 12570 | S8: Total Allowance | T8: =C8 -> 12570 | Z8: Total Allowance | AA8: =J8 -> 12570
B10: Non Savings Income | I10: Non Savings Income | S10: Non Savings Income | Z10: Non Savings Income
B11: Gross Pension Contributions | C11: =Workings!F12 -> 0 | D11: @ | E11: 0 | F11: =C11*E11 -> 0 | I11: Gross Pension Contributions | J11: =Workings!R12 -> 0 | K11: @ | L11: =E11 -> 0 | M11: =J11*L11 -> 0 | S11: Gross Pension Contributions | T11: =Workings!AJ11 -> 0 | U11: @ | V11: 0 | W11: =T11*V11 -> 0 | Z11: =S11 -> Gross Pension Contributions | AA11: =Workings!AV11 -> 0 | AB11: @ | AC11: =V11 -> 0 | AD11: =AA11*AC11 -> 0 | BX11: =AND(#REF!=#REF!) ->  | BY11: =AND(#REF!=#REF!) ->  | BZ11: =AND(#REF!=#REF!) ->  | CA11: =AND(F5=O5) -> TRUE
B12: Personal Allowance | C12: =Workings!F13 -> 0 | D12: @ | E12: 0 | F12: =C12*E12 -> 0 | I12: Personal Allowance | J12: =Workings!R13 -> 0 | K12: @ | L12: =E12 -> 0 | M12: =J12*L12 -> 0 | S12: Personal Allowance | T12: =Workings!AJ12 -> 0 | U12: @ | V12: 0 | W12: 0 | Z12: Personal Allowance | AA12: =Workings!AV12 -> 0 | AB12: @ | AC12: 0 | AD12: 0 | BX12: =AND(B6=I6) -> TRUE | BY12: =AND(#REF!=#REF!) ->  | BZ12: =AND(C6=J6) -> TRUE | CA12: =AND(#REF!=#REF!) -> 
B13: Basic Rate | C13: =Workings!F14 -> 0 | D13: @ | E13: =Parameters!B10 -> 0.2 | F13: =C13*E13 -> 0 | I13: Basic Rate | J13: =Workings!R14 -> 0 | K13: @ | L13: =E13 -> 0.2 | M13: =J13*L13 -> 0 | S13: Starter Rate | T13: =Workings!AJ13 -> 0 | U13: @ | V13: =Parameters!B4 -> 0.19 | W13: 0 | Z13: Starter Rate | AA13: =Workings!AV13 -> 0 | AB13: @ | AC13: 0.19 | AD13: 0 | BX13: =AND(B7=I7) -> TRUE | BY13: =AND(#REF!=#REF!) ->  | BZ13: =AND(C7=J7) -> TRUE | CA13: =AND(F6=O6) -> TRUE
B14: Higher Rate | C14: =Workings!F15 -> 0 | D14: @ | E14: =Parameters!B11 -> 0.4 | F14: =C14*E14 -> 0 | I14: Higher Rate | J14: =Workings!R15 -> 0 | K14: @ | L14: =E14 -> 0.4 | M14: =J14*L14 -> 0 | S14: Basic Rate | T14: =Workings!AJ14 -> 0 | U14: @ | V14: =Parameters!B5 -> 0.2 | W14: 0 | Z14: Basic Rate | AA14: =Workings!AV14 -> 0 | AB14: @ | AC14: 0.2 | AD14: 0 | BX14: =AND(B8=I8) -> TRUE | BY14: =AND(#REF!=#REF!) ->  | BZ14: =AND(C8=J8) -> TRUE | CA14: =AND(F7=O7) -> TRUE
B15: =IF(Inputs!$C$8="Yes","Top Rate","Additional Rate") -> Additional Rate | C15: =Workings!F16 -> 0 | D15: @ | E15: =Parameters!B12 -> 0.45 | F15: =C15*E15 -> 0 | G15: =SUM(F11:F15) -> 0 | I15: =IF(Inputs!$C$8="Yes","Top Rate","Additional Rate") -> Additional Rate | J15: =Workings!R16 -> 0 | K15: @ | L15: =E15 -> 0.45 | M15: =J15*L15 -> 0 | N15: =SUM(M11:M15) -> 0 | S15: Intermediate Rate | T15: =Workings!AJ15 -> 0 | U15: @ | V15: =Parameters!B6 -> 0.21 | W15: 0 | Z15: Intermediate Rate | AA15: =Workings!AV15 -> 0 | AB15: @ | AC15: 0.21 | AD15: 0 | BX15: =AND(B9=#REF!) ->  | BY15: =AND(C9=#REF!) ->  | BZ15: =AND(D9=M8) -> TRUE | CA15: =AND(F8=O8) -> TRUE
S16: Higher Rate | T16: =Workings!AJ16 -> 0 | U16: @ | V16: =Parameters!B7 -> 0.42 | W16: 0 | Z16: Higher Rate | AA16: =Workings!AV16 -> 0 | AB16: @ | AC16: 0.42 | AD16: 0 | BB16: Existing Position | BM16: New Position | CA16: =AND(#REF!=J9) ->  | CB16: =AND(#REF!=K9) ->  | CC16: =AND(#REF!=M9) ->  | CD16: =AND(F9=O9) -> TRUE
B17: Savings Income | I17: Savings Income | S17: Top Rate | T17: =Workings!AJ17 -> 0 | U17: @ | V17: =Parameters!B8 -> 0.47 | W17: 0 | X17: =SUM(W11:W17) -> 0 | Z17: Top Rate | AA17: =Workings!AV17 -> 0 | AB17: @ | AC17: 0.47 | AD17: 0 | AE17: =SUM(AD11:AD17) -> 0 | CA17: =AND(#REF!=#REF!) ->  | CB17: =AND(#REF!=#REF!) ->  | CC17: =AND(#REF!=#REF!) ->  | CD17: =AND(#REF!=#REF!) -> 
B18: Starting Rate | C18: =Workings!F20 -> 0 | D18: @ | E18: 0 | F18: =C18*E18 -> 0 | I18: Starting Rate | J18: =Workings!R20 -> 0 | K18: @ | L18: =E18 -> 0 | M18: =J18*L18 -> 0 | CA18: =AND(#REF!=#REF!) ->  | CB18: =AND(#REF!=#REF!) ->  | CC18: =AND(#REF!=#REF!) ->  | CD18: =AND(#REF!=#REF!) -> 
B19: Personal Savings Allowance | C19: =Workings!F21 -> 0 | D19: @ | E19: 0 | F19: 0 | I19: Personal Savings Allowance | J19: =Workings!R21 -> 0 | K19: @ | L19: 0 | M19: 0 | S19: Savings Income | Z19: Savings Income | BC19: =B10 -> Non Savings Income | BM19: =J10 -> 0 | CA19: =AND(B10=J10) -> FALSE | CB19: =AND(D10=L10) -> TRUE | CC19: =AND(E10=M10) -> TRUE | CD19: =AND(F10=O10) -> TRUE
B20: Personal Allowance | C20: =Workings!F22 -> 0 | D20: @ | E20: 0 | F20: 0 | I20: Personal Allowance | J20: =Workings!R22 -> 0 | K20: @ | L20: 0 | M20: 0 | S20: =B18 -> Starting Rate | T20: 0 | U20: @ | V20: 0 | W20: 0 | Z20: =S20 -> Starting Rate | AA20: =J18 -> 0 | AB20: =U20 -> @ | AC20: 0 | AD20: =M18 -> 0 | AZ20: Gross Pension Contributions | BA20: =C11 -> 0 | BB20: Gross Pension Used NSND | BC20: =D11 -> @ | BD20: =E11 -> 0 | BE20: Gross Pension in PA Rate | BF20: =BA20*BD20 -> 0 | BG20: Gross Pension in PA Tax (UK Rates used) | BK20: =J11 -> 0 | BL20: Post - Gross Pension Used NSND | BM20: =K11 -> @ | BN20: =L11 -> 0 | BO20: Gross Pension in PA Rate | BP20: =BK20*BN20 -> 0 | BQ20: Post - Gross Pension in PA Tax (UK Rates used) | BY20: =AND(C11=J11) -> TRUE | BZ20: TRUE | CA20: TRUE | CB20: TRUE
B21: Basic Rate | C21: =Workings!F23 -> 0 | D21: @ | E21: =E13 -> 0.2 | F21: 0 | I21: Basic Rate | J21: =Workings!R23 -> 0 | K21: @ | L21: 0.2 | M21: 0 | S21: Personal Savings Allowance | T21: 0 | U21: @ | V21: 0 | W21: 0 | Z21: Personal Savings Allowance | AA21: 0 | AB21: @ | AC21: 0 | AD21: 0 | AZ21: Personal Allowance | BA21: =C12 -> 0 | BB21: PA Used | BC21: =D12 -> @ | BD21: =E12 -> 0 | BE21: PA Tax (UK Rates) | BF21: =BA21*BD21 -> 0 | BG21: PA Tax (UK Rates used) | BK21: =J12 -> 0 | BL21: Post - PA Used | BM21: =K12 -> @ | BN21: =L12 -> 0 | BO21: PA Tax (UK Rates) | BP21: =BK21*BN21 -> 0 | BQ21: Post - PA Tax (UK Rates used) | BY21: TRUE | BZ21: TRUE | CA21: TRUE | CB21: TRUE
B22: Higher Rate | C22: =Workings!F24 -> 0 | D22: @ | E22: =E14 -> 0.4 | F22: 0 | I22: Higher Rate | J22: =Workings!R24 -> 0 | K22: @ | L22: 0.4 | M22: 0 | S22: Personal Allowance | T22: 0 | U22: @ | V22: 0 | W22: 0 | Z22: Personal Allowance | AA22: 0 | AB22: @ | AC22: 0 | AD22: 0 | AZ22: Basic Rate | BA22: =C13 -> 0 | BB22: CRIT BRB Used | BC22: =D13 -> @ | BD22: =Parameters!B25 -> 0.2 | BE22: CRIT BR RATE | BF22: =BA22*BD22 -> 0 | BG22: CRIT BR NSND Tax | BK22: =J13 -> 0 | BL22: Post - CRIT BRB Used | BM22: =K13 -> @ | BN22: =BD22 -> 0.2 | BO22: CRIT BR RATE | BP22: =BK22*BN22 -> 0 | BQ22: Post - CRIT BR NSND Tax | BY22: TRUE | BZ22: TRUE | CA22: TRUE | CB22: TRUE
B23: Additional Rate | C23: =Workings!F25 -> 0 | D23: @ | E23: =E15 -> 0.45 | F23: 0 | G23: =SUM(F18:F23) -> 0 | I23: Additional Rate | J23: =Workings!R25 -> 0 | K23: @ | L23: 0.45 | M23: 0 | N23: =SUM(M18:M23) -> 0 | S23: Basic Rate | T23: 0 | U23: @ | V23: 0.2 | W23: 0 | Z23: Basic Rate | AA23: 0 | AB23: @ | AC23: 0.2 | AD23: 0 | AY23: Higher Rate | AZ23: =C14 -> 0 | BA23: CRIT HRB Used | BB23: =D14 -> @ | BC23: =Parameters!B26 -> 0.4 | BD23: CRIT HR RATE | BE23: =AZ23*BC23 -> 0 | BF23: CRIT HR NSND Tax | BJ23: =J14 -> 0 | BK23: Post - CRIT HRB Used | BL23: =K14 -> @ | BM23: =BC23 -> 0.4 | BN23: CRIT HR RATE | BO23: =BJ23*BM23 -> 0 | BP23: Post - CRIT HR NSND Tax | BX23: =AND(C14=J14) -> TRUE | BY23: TRUE | BZ23: TRUE | CA23: TRUE
S24: Higher Rate | T24: 0 | U24: @ | V24: 0.4 | W24: 0 | Z24: Higher Rate | AA24: 0 | AB24: @ | AC24: 0.4 | AD24: 0 | AY24: =IF(Inputs!$C$8="Yes","Top Rate","Additional Rate") -> Additional Rate | AZ24: =C15 -> 0 | BA24: CRIT ARB Still to Tax | BB24: =D15 -> @ | BC24: =Parameters!B27 -> 0.45 | BD24: CRIT AR RATE | BE24: =AZ24*BC24 -> 0 | BF24: CRIT AR NSND Tax | BG24: =SUM(BF20:BF24) -> 0 | BH24: Total CRIT NSND Tax | BJ24: =J15 -> 0 | BK24: CRIT ARB Still to Tax | BL24: =K15 -> @ | BM24: =BC24 -> 0.45 | BN24: CRIT AR RATE | BO24: =BJ24*BM24 -> 0 | BP24: Post - CRIT AR NSND Tax | BQ24: =SUM(BP20:BP24) -> 0 | BR24: Post - Total CRIT NSND Tax | BX24: TRUE | BY24: TRUE | BZ24: TRUE | CA24: TRUE
B25: Offshore Bond Gain | I25: Offshore Bond Gain | S25: Additional Rate | T25: 0 | U25: @ | V25: 0.45 | W25: 0 | X25: =G23 -> 0 | Z25: Additional Rate | AA25: 0 | AB25: @ | AC25: 0.45 | AD25: 0 | AE25: =N23 -> 0 | BX25: TRUE | BY25: TRUE | BZ25: TRUE | CA25: TRUE
B26: Starting Rate | C26: =Workings!F29 -> 0 | D26: @ | E26: 0 | F26: =C26*E26 -> 0 | I26: Starting Rate | J26: =Workings!R29 -> 0 | K26: @ | L26: =E26 -> 0 | M26: =J26*L26 -> 0 | AZ26: =B17 -> Savings Income | BJ26: =J17 -> 0 | BX26: =AND(B17=J17) -> FALSE | BY26: =AND(D17=K17) -> TRUE | BZ26: =AND(E17=L17) -> TRUE | CA26: =AND(F17=M17) -> TRUE
B27: Personal Savings Allowance | C27: =Workings!F30 -> 0 | D27: @ | E27: =Parameters!$B$3 -> 0 | F27: 0 | I27: Personal Savings Allowance | J27: =Workings!R30 -> 0 | K27: @ | L27: 0 | M27: 0 | S27: Offshore Bond Gain | Z27: Offshore Bond Gain | AY27: Starting Rate | AZ27: =C18 -> 0 | BB27: =D18 -> @ | BC27: 0 | BE27: =F18 -> 0 | BJ27: 0 | BL27: =K18 -> @ | BM27: 0 | BO27: =M18 -> 0 | BX27: =AND(C18=J18) -> TRUE | BY27: TRUE | BZ27: TRUE | CA27: TRUE
B28: Personal Allowance | C28: =Workings!F31 -> 0 | D28: @ | E28: 0 | F28: 0 | I28: Personal Allowance | J28: =Workings!R31 -> 0 | K28: @ | L28: 0 | M28: 0 | S28: =B26 -> Starting Rate | T28: 0 | U28: @ | V28: 0 | W28: 0 | Z28: =S28 -> Starting Rate | AA28: =J26 -> 0 | AB28: =U28 -> @ | AC28: 0 | AD28: =M26 -> 0 | AY28: Personal Savings Allowance | AZ28: 0 | BB28: @ | BC28: 0 | BE28: 0 | BJ28: 0 | BL28: @ | BM28: 0 | BO28: 0 | BX28: TRUE | BY28: TRUE | BZ28: TRUE | CA28: TRUE
B29: Basic Rate | C29: =Workings!F32 -> 0 | D29: @ | E29: =E21 -> 0.2 | F29: 0 | I29: Basic Rate | J29: =Workings!R32 -> 0 | K29: @ | L29: 0.2 | M29: 0 | S29: Personal Savings Allowance | T29: 0 | U29: @ | V29: 0 | W29: 0 | Z29: Personal Savings Allowance | AA29: 0 | AB29: @ | AC29: 0 | AD29: 0 | AY29: Personal Allowance | AZ29: 0 | BB29: @ | BC29: 0 | BE29: 0 | BJ29: 0 | BL29: @ | BM29: 0 | BO29: 0 | BX29: TRUE | BY29: TRUE | BZ29: TRUE | CA29: TRUE
B30: Higher Rate | C30: =Workings!F33 -> 0 | D30: @ | E30: =E22 -> 0.4 | F30: 0 | I30: Higher Rate | J30: =Workings!R33 -> 0 | K30: @ | L30: 0.4 | M30: 0 | S30: Personal Allowance | T30: 0 | U30: @ | V30: 0 | W30: 0 | Z30: Personal Allowance | AA30: 0 | AB30: @ | AC30: 0 | AD30: 0 | AY30: Basic Rate | AZ30: 0 | BB30: @ | BC30: 0.2 | BE30: 0 | BJ30: 0 | BL30: @ | BM30: 0.2 | BO30: 0 | BX30: TRUE | BY30: TRUE | BZ30: TRUE | CA30: TRUE
B31: Additional Rate | C31: =Workings!F34 -> 0 | D31: @ | E31: =E23 -> 0.45 | F31: 0 | G31: =SUM(F26:F31) -> 0 | I31: Additional Rate | J31: =Workings!R34 -> 0 | K31: @ | L31: 0.45 | M31: 0 | N31: =SUM(M26:M31) -> 0 | S31: Basic Rate | T31: 0 | U31: @ | V31: 0.2 | W31: 0 | Z31: Basic Rate | AA31: 0 | AB31: @ | AC31: 0.2 | AD31: 0 | AY31: Higher Rate | AZ31: 0 | BB31: @ | BC31: 0.4 | BE31: 0 | BJ31: 0 | BL31: @ | BM31: 0.4 | BO31: 0 | BX31: TRUE | BY31: TRUE | BZ31: TRUE | CA31: TRUE
S32: Higher Rate | T32: 0 | U32: @ | V32: 0.4 | W32: 0 | Z32: Higher Rate | AA32: 0 | AB32: @ | AC32: 0.4 | AD32: 0 | AY32: Additional Rate | AZ32: 0 | BB32: @ | BC32: 0.45 | BE32: 0 | BG32: =G23 -> 0 | BJ32: 0 | BL32: @ | BM32: 0.45 | BO32: 0 | BQ32: =N23 -> 0 | BX32: TRUE | BY32: TRUE | BZ32: TRUE | CA32: TRUE
B33: Dividend | I33: Dividend | S33: Additional Rate | T33: 0 | U33: @ | V33: 0.45 | W33: 0 | X33: =G31 -> 0 | Z33: Additional Rate | AA33: 0 | AB33: @ | AC33: 0.45 | AD33: 0 | AE33: =N31 -> 0 | BX33: TRUE | BY33: TRUE | BZ33: TRUE | CA33: TRUE
B34: Dividend Allowance | C34: =Workings!F39 -> 0 | D34: @ | E34: 0 | F34: =C34*E34 -> 0 | I34: Dividend Allowance | J34: =Workings!R39 -> 0 | K34: @ | L34: =E34 -> 0 | M34: =J34*L34 -> 0 | AA34: 0 | AZ34: =B25 -> Offshore Bond Gain | BJ34: =J25 -> 0 | BX34: =AND(B25=J25) -> FALSE | BY34: TRUE | BZ34: TRUE | CA34: TRUE
B35: Personal Allowance | C35: =Workings!F40 -> 0 | D35: @ | E35: 0 | F35: =C35*E35 -> 0 | I35: Personal Allowance | J35: =Workings!R40 -> 0 | K35: @ | L35: =E35 -> 0 | M35: =J35*L35 -> 0 | S35: Dividend | Z35: Dividend | AY35: Starting Rate | AZ35: =C26 -> 0 | BB35: =D26 -> @ | BC35: 0 | BE35: =F26 -> 0 | BJ35: 0 | BL35: =K26 -> @ | BM35: 0 | BO35: =M26 -> 0 | BX35: =AND(C26=J26) -> TRUE | BY35: TRUE | BZ35: TRUE | CA35: TRUE
B36: Basic Rate | C36: =Workings!F41 -> 0 | D36: @ | E36: =Parameters!$B$13 -> 0.0875 | F36: =C36*E36 -> 0 | I36: Basic Rate | J36: =Workings!R41 -> 0 | K36: @ | L36: =E36 -> 0.0875 | M36: =J36*L36 -> 0 | S36: =B34 -> Dividend Allowance | T36: 0 | U36: @ | V36: 0 | W36: 0 | Z36: =S36 -> Dividend Allowance | AA36: =J34 -> 0 | AB36: =U36 -> @ | AC36: 0 | AD36: =M34 -> 0 | AY36: Personal Savings Allowance | AZ36: 0 | BB36: @ | BC36: 0 | BE36: 0 | BJ36: 0 | BL36: @ | BM36: 0 | BO36: 0 | BX36: TRUE | BY36: TRUE | BZ36: TRUE | CA36: TRUE
B37: Higher Rate | C37: =Workings!F42 -> 0 | D37: @ | E37: =Parameters!$B$14 -> 0.3375 | F37: =C37*E37 -> 0 | I37: Higher Rate | J37: =Workings!R42 -> 0 | K37: @ | L37: =E37 -> 0.3375 | M37: =J37*L37 -> 0 | S37: Personal Allowance | T37: 0 | U37: @ | V37: 0 | W37: 0 | Z37: =S37 -> Personal Allowance | AA37: =J35 -> 0 | AB37: @ | AC37: 0 | AD37: =M35 -> 0 | AY37: Personal Allowance | AZ37: 0 | BB37: @ | BC37: 0 | BE37: 0 | BJ37: 0 | BL37: @ | BM37: 0 | BO37: 0 | BX37: TRUE | BY37: TRUE | BZ37: TRUE | CA37: TRUE
B38: Additional Rate | C38: =Workings!F43 -> 0 | D38: @ | E38: =Parameters!$B$15 -> 0.3935 | F38: =C38*E38 -> 0 | G38: =SUM(F34:F38) -> 0 | I38: Additional Rate | J38: =Workings!R43 -> 0 | K38: @ | L38: =E38 -> 0.3935 | M38: =J38*L38 -> 0 | N38: =SUM(M34:M38) -> 0 | S38: Basic Rate | T38: 0 | U38: @ | V38: 0.0875 | W38: 0 | Z38: =S38 -> Basic Rate | AA38: =J36 -> 0 | AB38: @ | AC38: 0.0875 | AD38: =M36 -> 0 | AY38: Basic Rate | AZ38: 0 | BB38: @ | BC38: 0.2 | BE38: 0 | BJ38: 0 | BL38: @ | BM38: 0.2 | BO38: 0 | BX38: TRUE | BY38: TRUE | BZ38: TRUE | CA38: TRUE
S39: Higher Rate | T39: 0 | U39: @ | V39: 0.3375 | W39: 0 | Z39: =S39 -> Higher Rate | AA39: =J37 -> 0 | AB39: @ | AC39: 0.3375 | AD39: =M37 -> 0 | AY39: Higher Rate | AZ39: 0 | BB39: @ | BC39: 0.4 | BE39: 0 | BJ39: 0 | BL39: @ | BM39: 0.4 | BO39: 0 | BX39: TRUE | BY39: TRUE | BZ39: TRUE | CA39: TRUE
B40: Redundancy Payment | I40: Redundancy Payment | S40: Additional Rate | T40: 0 | U40: @ | V40: 0.3935 | W40: 0 | X40: =G38 -> 0 | Z40: =S40 -> Additional Rate | AA40: =J38 -> 0 | AB40: @ | AC40: 0.3935 | AD40: =M38 -> 0 | AE40: =N38 -> 0 | AY40: Additional Rate | AZ40: 0 | BB40: @ | BC40: 0.45 | BE40: 0 | BG40: =G31 -> 0 | BJ40: 0 | BL40: @ | BM40: 0.45 | BO40: 0 | BQ40: =N31 -> 0 | BX40: TRUE | BY40: TRUE | BZ40: TRUE | CA40: TRUE
B41: Gross Pension Contributions | C41: =Workings!F47 -> 0 | D41: @ | E41: 0 | F41: =C41*E41 -> 0 | I41: Gross Pension Contributions | J41: =Workings!N47 -> 0 | K41: @ | L41: =E41 -> 0 | M41: =J41*L41 -> 0 | S41: Redundancy Payment | Z41: Redundancy Payment | BX41: TRUE | BY41: TRUE | BZ41: TRUE | CA41: TRUE
B42: Personal Allowance | C42: =Workings!F48 -> 0 | D42: @ | E42: 0 | F42: =C42*E42 -> 0 | I42: Personal Allowance | J42: =Workings!R48 -> 0 | K42: @ | L42: =E42 -> 0 | M42: =J42*L42 -> 0 | S42: Gross Pension Contributions | T42: =Workings!AJ49 -> 0 | U42: @ | V42: 0 | W42: =T42*V42 -> 0 | Z42: =S42 -> Gross Pension Contributions | AA42: =Workings!AV49 -> 0 | AB42: @ | AC42: =V42 -> 0 | AD42: =AA42*AC42 -> 0 | AZ42: =B33 -> Dividend | BJ42: =J33 -> 0 | BX42: =AND(B33=J33) -> FALSE | BY42: TRUE | BZ42: TRUE | CA42: TRUE
B43: Basic Rate | C43: =Workings!F49 -> 0 | D43: @ | E43: =E21 -> 0.2 | F43: =C43*E43 -> 0 | I43: Basic Rate | J43: =Workings!R49 -> 0 | K43: @ | L43: =E43 -> 0.2 | M43: =J43*L43 -> 0 | S43: Personal Allowance | T43: =Workings!AJ50 -> 0 | U43: @ | V43: 0 | W43: 0 | Z43: Personal Allowance | AA43: =Workings!AV50 -> 0 | AB43: @ | AC43: 0 | AD43: 0 | AY43: Dividend Allowance | AZ43: =C34 -> 0 | BB43: =D34 -> @ | BC43: 0 | BE43: =F34 -> 0 | BJ43: 0 | BL43: =K34 -> @ | BM43: 0 | BO43: =M34 -> 0 | BX43: =AND(C34=J34) -> TRUE | BY43: TRUE | BZ43: TRUE | CA43: TRUE
B44: Higher Rate | C44: =Workings!F50 -> 0 | D44: @ | E44: =E22 -> 0.4 | F44: =C44*E44 -> 0 | I44: Higher Rate | J44: =Workings!R50 -> 0 | K44: @ | L44: =E44 -> 0.4 | M44: =J44*L44 -> 0 | S44: Starter Rate | T44: =Workings!AJ51 -> 0 | U44: @ | V44: =Parameters!B4 -> 0.19 | W44: 0 | Z44: Starter Rate | AA44: =Workings!AV51 -> 0 | AB44: @ | AC44: 0.19 | AD44: 0 | AY44: Personal Allowance | AZ44: =C35 -> 0 | BB44: @ | BC44: 0 | BE44: =F35 -> 0 | BJ44: 0 | BL44: @ | BM44: 0 | BO44: =M35 -> 0 | BX44: TRUE | BY44: TRUE | BZ44: TRUE | CA44: TRUE
B45: =IF(Inputs!$C$8="Yes","Top Rate","Additional Rate") -> Additional Rate | C45: =Workings!F51 -> 0 | D45: @ | E45: =E23 -> 0.45 | F45: =C45*E45 -> 0 | G45: =SUM(F41:F45) -> 0 | I45: =IF(Inputs!$C$8="Yes","Top Rate","Additional Rate") -> Additional Rate | J45: =Workings!R51 -> 0 | K45: @ | L45: =E45 -> 0.45 | M45: =J45*L45 -> 0 | N45: =SUM(M41:M45) -> 0 | S45: Basic Rate | T45: =Workings!AJ52 -> 0 | U45: @ | V45: =Parameters!B5 -> 0.2 | W45: 0 | Z45: Basic Rate | AA45: =Workings!AV52 -> 0 | AB45: @ | AC45: 0.2 | AD45: 0 | AY45: Basic Rate | AZ45: =C36 -> 0 | BB45: @ | BC45: 0.0875 | BE45: =F36 -> 0 | BJ45: 0 | BL45: @ | BM45: 0.0875 | BO45: =M36 -> 0 | BX45: TRUE | BY45: TRUE | BZ45: TRUE | CA45: TRUE
S46: Intermediate Rate | T46: =Workings!AJ53 -> 0 | U46: @ | V46: =Parameters!B6 -> 0.21 | W46: 0 | Z46: Intermediate Rate | AA46: =Workings!AV53 -> 0 | AB46: @ | AC46: 0.21 | AD46: 0 | AY46: Higher Rate | AZ46: =C37 -> 0 | BB46: @ | BC46: 0.3375 | BE46: =F37 -> 0 | BJ46: 0 | BL46: @ | BM46: 0.3375 | BO46: =M37 -> 0 | BX46: TRUE | BY46: TRUE | BZ46: TRUE | CA46: TRUE
B47: Onshore Bond Gain | I47: Onshore Bond Gain | S47: Higher Rate | T47: =Workings!AJ54 -> 0 | U47: @ | V47: =Parameters!B7 -> 0.42 | W47: 0 | Z47: Higher Rate | AA47: =Workings!AV54 -> 0 | AB47: @ | AC47: 0.42 | AD47: 0 | AY47: Additional Rate | AZ47: =C38 -> 0 | BB47: @ | BC47: 0.3935 | BE47: =F38 -> 0 | BG47: =G38 -> 0 | BJ47: 0 | BL47: @ | BM47: 0.3935 | BO47: =M38 -> 0 | BQ47: =N38 -> 0 | BX47: TRUE | BY47: TRUE | BZ47: TRUE | CA47: TRUE
B48: Starting Rate | C48: =Workings!F55 -> 0 | D48: @ | E48: 0 | F48: =C48*E48 -> 0 | I48: Starting Rate | J48: =Workings!R55 -> 0 | K48: @ | L48: =E48 -> 0 | M48: =J48*L48 -> 0 | S48: Top Rate | T48: =Workings!AJ55 -> 0 | U48: @ | V48: =Parameters!B8 -> 0.47 | W48: 0 | X48: =SUM(W42:W48) -> 0 | Z48: Top Rate | AA48: =Workings!AV55 -> 0 | AB48: @ | AC48: 0.47 | AD48: 0 | AE48: =SUM(AD42:AD48) -> 0 | BX48: TRUE | BY48: TRUE | BZ48: TRUE | CA48: TRUE
B49: Personal Savings Allowance | C49: =Workings!F56 -> 0 | D49: @ | E49: =Parameters!$B$3 -> 0 | F49: 0 | I49: Personal Savings Allowance | J49: =Workings!R56 -> 0 | K49: @ | L49: 0 | M49: 0 | S49: Onshore Bond Gain | Z49: Onshore Bond Gain | AZ49: =B40 -> Redundancy Payment | BJ49: =J40 -> 0 | BX49: =AND(B40=J40) -> FALSE | BY49: TRUE | BZ49: TRUE | CA49: TRUE
B50: Personal Allowance | C50: =Workings!F57 -> 0 | D50: @ | E50: 0 | F50: 0 | I50: Personal Allowance | J50: =Workings!R57 -> 0 | K50: @ | L50: 0 | M50: 0 | S50: =B48 -> Starting Rate | T50: 0 | U50: @ | V50: 0 | W50: 0 | Z50: =S50 -> Starting Rate | AA50: =J48 -> 0 | AB50: =U50 -> @ | AC50: =V50 -> 0 | AD50: =M48 -> 0 | AY50: Gross Pension Contributions | AZ50: =C41 -> 0 | BA50: Gross Pension Used for Redundancy | BB50: =D41 -> @ | BC50: =E41 -> 0 | BD50: Gross Pension in PA Rate | BE50: =AZ50*BC50 -> 0 | BF50: Gross Pension in PA Tax - CRIT - Redundancy (UK Rates used) | BJ50: 0 | BK50: Gross Pension Used for Redundancy - Post | BL50: =K41 -> @ | BM50: =L41 -> 0 | BN50: Gross Pension in PA Rate | BO50: =BJ50*BM50 -> 0 | BP50: Post - Gross Pension in PA Tax - CRIT - Redundancy (UK Rates used) | BX50: =AND(C41=J41) -> TRUE | BY50: TRUE | BZ50: TRUE | CA50: TRUE
B51: Basic Rate | C51: =Workings!F58 -> 0 | D51: @ | E51: =E43 -> 0.2 | F51: 0 | I51: Basic Rate | J51: =Workings!R58 -> 0 | K51: @ | L51: 0.2 | M51: 0 | S51: Personal Savings Allowance | T51: 0 | U51: @ | V51: 0 | W51: 0 | Z51: Personal Savings Allowance | AA51: 0 | AB51: @ | AC51: 0 | AD51: 0 | AY51: Personal Allowance | AZ51: =C42 -> 0 | BA51: Personal Allowance Used - Redundancy | BB51: =D42 -> @ | BC51: =E42 -> 0 | BD51: PA Tax Rate | BE51: =AZ51*BC51 -> 0 | BF51: PA Tax - CRIT - Redundancy (UK Rates used) | BJ51: 0 | BK51: Personal Allowance Used - Redundancy - Post | BL51: =K42 -> @ | BM51: =L42 -> 0 | BN51: PA Tax Rate | BO51: =BJ51*BM51 -> 0 | BP51: Post - PA Tax - CRIT - Redundancy (UK Rates used) | BX51: TRUE | BY51: TRUE | BZ51: TRUE | CA51: TRUE
B52: Higher Rate | C52: =Workings!F59 -> 0 | D52: @ | E52: =E44 -> 0.4 | F52: 0 | I52: Higher Rate | J52: =Workings!R59 -> 0 | K52: @ | L52: 0.4 | M52: 0 | S52: Personal Allowance | T52: 0 | U52: @ | V52: 0 | W52: 0 | Z52: Personal Allowance | AA52: 0 | AB52: @ | AC52: 0 | AD52: 0 | AY52: Basic Rate | AZ52: =C43 -> 0 | BA52: CRIT Redundancy BR Used | BB52: =D43 -> @ | BC52: =Parameters!B25 -> 0.2 | BD52: CRIT BRB Rate | BE52: =AZ52*BC52 -> 0 | BF52: CRIT BRB Tax - Redundancy | BJ52: 0 | BK52: Post - CRIT Redundancy BR Used | BL52: =K43 -> @ | BM52: =BC52 -> 0.2 | BN52: CRIT BRB Rate | BO52: =BJ52*BM52 -> 0 | BP52: Post - CRIT BRB Tax - Redundancy | BX52: TRUE | BY52: TRUE | BZ52: TRUE | CA52: TRUE
B53: Additional Rate | C53: =Workings!F60 -> 0 | D53: @ | E53: =E45 -> 0.45 | F53: 0 | G53: =SUM(F48:F53) -> 0 | I53: Additional Rate | J53: =Workings!R60 -> 0 | K53: @ | L53: 0.45 | M53: 0 | N53: =SUM(M48:M53) -> 0 | S53: Basic Rate | T53: 0 | U53: @ | V53: 0.2 | W53: 0 | Z53: Basic Rate | AA53: 0 | AB53: @ | AC53: 0.2 | AD53: 0 | AY53: Higher Rate | AZ53: =C44 -> 0 | BA53: CRIT Redundancy HR Used | BB53: =D44 -> @ | BC53: =Parameters!B26 -> 0.4 | BD53: CRIT HRB Rate | BE53: =AZ53*BC53 -> 0 | BF53: CRIT HRB Tax - Redundancy | BJ53: 0 | BK53: Post - CRIT Redundancy HR Used | BL53: =K44 -> @ | BM53: =BC53 -> 0.4 | BN53: CRIT HRB Rate | BO53: =BJ53*BM53 -> 0 | BP53: Post - CRIT HRB Tax - Redundancy | BX53: TRUE | BY53: TRUE | BZ53: TRUE | CA53: TRUE
S54: Higher Rate | T54: 0 | U54: @ | V54: 0.4 | W54: 0 | Z54: Higher Rate | AA54: 0 | AB54: @ | AC54: 0.4 | AD54: 0 | AY54: =IF(Inputs!$C$8="Yes","Top Rate","Additional Rate") -> Additional Rate | AZ54: =C45 -> 0 | BA54: CRIT Redundancy AR Still to Tax | BB54: =D45 -> @ | BC54: =Parameters!B27 -> 0.45 | BD54: CRIT ARB Rate | BE54: =AZ54*BC54 -> 0 | BF54: CRIT ARB Tax - Redundancy | BG54: =SUM(BE50:BE54) -> 0 | BJ54: 0 | BK54: Post - CRIT Redundancy AR Still to Tax | BL54: =K45 -> @ | BM54: =BC54 -> 0.45 | BN54: CRIT ARB Rate | BO54: =BJ54*BM54 -> 0 | BP54: Post - CRIT ARB Tax - Redundancy | BQ54: =SUM(BO50:BO54) -> 0 | BX54: TRUE | BY54: TRUE | BZ54: TRUE | CA54: TRUE
B55: Step 5 Total | G55: =SUM(G15:G53) -> 0 | J55: =B55 -> Step 5 Total | N55: =SUM(N15:N53) -> 0 | S55: Additional Rate | T55: 0 | U55: @ | V55: 0.45 | W55: 0 | X55: =G53 -> 0 | Z55: Additional Rate | AA55: 0 | AB55: @ | AC55: 0.45 | AD55: 0 | AE55: =N53 -> 0 | BX55: TRUE | BY55: TRUE | BZ55: TRUE | CA55: TRUE
AZ56: =B47 -> Onshore Bond Gain | BJ56: =J47 -> 0 | BX56: =AND(B47=J47) -> FALSE | BY56: TRUE | BZ56: TRUE | CA56: TRUE
B57: Less Onshore Bond Tax Credit | F57: =(Workings!D55-Workings!F57)*Parameters!B10 -> 0 | J57: Less Onshore Bond Tax Credit | M57: =(Workings!P55-Workings!R57)*Parameters!B10 -> 0 | T57: Step 5 Total | X57: =SUM(X17:X55) -> 0 | AA57: Step 5 Total | AE57: =SUM(AE17:AE55) -> 0 | AY57: Starting Rate | AZ57: =C48 -> 0 | BB57: =D48 -> @ | BC57: 0 | BE57: =F48 -> 0 | BJ57: 0 | BL57: =K48 -> @ | BM57: 0 | BO57: =M48 -> 0 | BX57: =AND(C48=J48) -> TRUE | BY57: TRUE | BZ57: TRUE | CA57: TRUE
B58: Less Top Slicing Relief | F58: ='Top Slicing'!G35 -> 0 | G58: =SUM(F57:F58) -> 0 | J58: Less Top Slicing Relief | M58: ='Top Slicing'!N35 -> 0 | N58: =SUM(M57:M58) -> 0 | AY58: Personal Savings Allowance | AZ58: 0 | BB58: @ | BC58: 0 | BE58: 0 | BJ58: 0 | BL58: @ | BM58: 0 | BO58: 0 | BX58: TRUE | BY58: TRUE | BZ58: TRUE | CA58: TRUE
T59: Less Onshore Bond Tax Credit | W59: =F57 -> 0 | AA59: Less Onshore Bond Tax Credit | AD59: =M57 -> 0 | AY59: Personal Allowance | AZ59: 0 | BB59: @ | BC59: 0 | BE59: 0 | BJ59: 0 | BL59: @ | BM59: 0 | BO59: 0 | BX59: TRUE | BY59: TRUE | BZ59: TRUE | CA59: TRUE
C60: Income Tax payable | G60: =MAX(0,G55-G58) -> 0 | J60: =C60 -> Income Tax payable | N60: =MAX(0,N55-N58) -> 0 | T60: Less Top Slicing Relief | W60: =F58 -> 0 | X60: =SUM(W59:W60) -> 0 | AA60: Less Top Slicing Relief | AD60: =M58 -> 0 | AE60: =SUM(AD59:AD60) -> 0 | AY60: Basic Rate | AZ60: 0 | BB60: @ | BC60: 0.2 | BE60: 0 | BJ60: 0 | BL60: @ | BM60: 0.2 | BO60: 0 | BX60: TRUE | BY60: TRUE | BZ60: TRUE | CA60: TRUE
AY61: Higher Rate | AZ61: 0 | BB61: @ | BC61: 0.4 | BE61: 0 | BJ61: 0 | BL61: @ | BM61: 0.4 | BO61: 0 | BX61: TRUE | BY61: TRUE | BZ61: TRUE | CA61: TRUE
C62: Child Benefit Tax Charge | J62: Child Benefit Tax Charge | T62: Income Tax payable | X62: =MAX(0,X57-X60) -> 0 | AA62: Income Tax payable | AE62: =MAX(0,AE57-AE60) -> 0 | AY62: Additional Rate | AZ62: 0 | BB62: @ | BC62: 0.45 | BE62: 0 | BG62: =G53 -> 0 | BJ62: 0 | BL62: @ | BM62: 0.45 | BO62: 0 | BQ62: =N53 -> 0 | BX62: TRUE | BY62: TRUE | BZ62: TRUE | CA62: TRUE
C63: Total Benefit | F63: =ROUNDDOWN('Child Benefit Saving'!B8,0) -> 0 | J63: Total Benefit | M63: =ROUNDDOWN('Child Benefit Saving'!E8,0) -> 0 | BX63: TRUE | BY63: TRUE | BZ63: TRUE | CA63: TRUE
C64: excess over ANI | F64: ='Child Benefit Saving'!B5 -> 0 | J64: excess over ANI | M64: ='Child Benefit Saving'!E5 -> 0 | T64: Child Benefit Tax Charge | AA64: Child Benefit Tax Charge | AZ64: Total | BG64: =SUM(BG24:BG62) -> 0 | BJ64: Total | BQ64: =SUM(BQ24:BQ62) -> 0 | BX64: =AND(B55=#REF!) ->  | BY64: =AND(#REF!=#REF!) ->  | BZ64: =AND(C55=J55) -> FALSE | CA64: =AND(#REF!=M55) -> 
C65: Charge | F65: ='Child Benefit Saving'!B7 -> 0 | G65: ='Child Benefit Saving'!B9 -> 0 | J65: Charge | M65: ='Child Benefit Saving'!E7 -> 0 | N65: ='Child Benefit Saving'!E9 -> 0 | T65: Total Benefit | W65: =ROUNDDOWN('Child Benefit Saving'!B8,0) -> 0 | AA65: Total Benefit | AD65: =ROUNDDOWN('Child Benefit Saving'!E8,0) -> 0 | BX65: =AND(#REF!=J56) ->  | BY65: =AND(D56=#REF!) ->  | BZ65: =AND(C56=L56) -> TRUE | CA65: =AND(#REF!=M56) -> 
C66: Net Benefit | F66: =F63-G65 -> 0 | J66: Net Benefit | M66: =M63-N65 -> 0 | T66: excess over ANI | W66: ='Child Benefit Saving'!B5 -> 0 | AA66: excess over ANI | AD66: ='Child Benefit Saving'!E5 -> 0
B67: Capital Gain | I67: Capital Gain | T67: Charge | W67: ='Child Benefit Saving'!B7 -> 0 | X67: ='Child Benefit Saving'!B9 -> 0 | AA67: Charge | AD67: ='Child Benefit Saving'!E7 -> 0 | AE67: ='Child Benefit Saving'!E9 -> 0
B68: Basic Rate | C68: ='Capital Gains Tax'!B13 -> 0 | D68: @ | E68: =Parameters!$B$30 -> 0.1 | F68: =C68*E68 -> 0 | I68: Basic Rate | J68: ='Capital Gains Tax'!F13 -> 0 | K68: @ | L68: =E68 -> 0.1 | M68: =J68*L68 -> 0 | T68: Net Benefit | W68: =W65-X67 -> 0 | AA68: Net Benefit | AD68: =AD65-AE67 -> 0
B69: Higher Rate | C69: ='Capital Gains Tax'!B14 -> 0 | D69: @ | E69: =Parameters!$B$31 -> 0.2 | F69: =C69*E69 -> 0 | I69: Higher Rate | J69: ='Capital Gains Tax'!F14 -> 0 | K69: @ | L69: =E69 -> 0.2 | M69: =J69*L69 -> 0 | T69: Capital Gain | AA69: Capital Gain
B70: Total gain subject to additional tax (res prop/carried interest) | C70: =Inputs!F21 -> 0 | D70: @ | E70: =Parameters!$B$32 -> 0.08 | F70: =C70*E70 -> 0 | I70: Total gain subject to additional tax (res prop/carried interest) | J70: =C70 -> 0 | K70: @ | L70: =E70 -> 0.08 | M70: =J70*L70 -> 0 | S70: Basic Rate | T70: =C68 -> 0 | U70: @ | V70: =Parameters!$B$30 -> 0.1 | W70: =F68 -> 0 | Z70: Basic Rate | AA70: =J68 -> 0 | AB70: @ | AC70: =Parameters!$B$30 -> 0.1 | AD70: =M68 -> 0
C71: CGT payable | G71: =SUM(F68:F70) -> 0 | J71: =C71 -> CGT payable | N71: =SUM(M68:M70) -> 0 | S71: Higher Rate | T71: =C69 -> 0 | U71: @ | V71: =Parameters!$B$31 -> 0.2 | W71: =F69 -> 0 | Z71: Higher Rate | AA71: =J69 -> 0 | AB71: @ | AC71: =Parameters!$B$31 -> 0.2 | AD71: =M69 -> 0
S72: =B70 -> Total gain subject to additional tax (res prop/carried interest) | T72: =C70 -> 0 | U72: @ | V72: =Parameters!$B$32 -> 0.08 | W72: =F70 -> 0 | Z72: =S72 -> Total gain subject to additional tax (res prop/carried interest) | AA72: =J70 -> 0 | AB72: @ | AC72: =Parameters!$B$32 -> 0.08 | AD72: =M70 -> 0
F73: Total tax | G73: =G71+G60+G65 -> 0 | M73: =F73 -> Total tax | N73: =N71+N60+N65 -> 0 | T73: CGT payable | X73: =SUM(W70:W72) -> 0 | AA73: CGT payable | AE73: =SUM(AD70:AD72) -> 0
AZ74: Less Onshore Bond Tax Credit | BE74: =F57 -> 0 | BJ74: Less Onshore Bond Tax Credit | BO74: =M57 -> 0 | BX74: =AND(B57=J57) -> TRUE | BY74: =AND(#REF!=#REF!) ->  | BZ74: =AND(#REF!=#REF!) ->  | CA74: =AND(F57=M57) -> TRUE
B75: Important Information This calculator is designed to give an estimation of a person’s tax liability and also how pension contributions can have an effect on someone’s tax position. The calculations produced in this modeller are based on our current understanding of legislation and HMRC practice all which is subject to change without notice. Every care has been taken as to its accuracy, but it must be appreciated that neither M&G Prudential nor its representatives can accept any responsibility for loss, however caused, suffered by any person who has acted or refrained from acting as a result of material contained in this tool. Certain areas have been omitted from this model for simplicity and ease of use including National Insurance, some sources of income and other reliefs and allowances. It does not take into account all the possible individual circumstances that may impact on the tax position of the individual. It should not be taken as offering advice or any recommendation. You should be satisfied that the information you have entered into the calculator is correct, for example this tool will assume that any pension contributions and/or gift aid contributions are valid. You should ensure that the outputs are correct for your client. | W75: Total tax | X75: =X73+X62+X67 -> 0 | AD75: Total tax | AE75: =AE73+AE62+AE67 -> 0 | AZ75: Less Top Slicing Relief | BE75: =F58 -> 0 | BG75: =SUM(BE74:BE75) -> 0 | BJ75: Less Top Slicing Relief | BO75: =M58 -> 0 | BQ75: =SUM(BO74:BO75) -> 0 | BX75: =AND(B58=J58) -> TRUE | BY75: =AND(#REF!=#REF!) ->  | BZ75: =AND(#REF!=#REF!) ->  | CA75: =AND(F58=M58) -> TRUE
J76: Effective rate of tax relief on new contributions | BX76: =AND(#REF!=J59) ->  | BY76: =AND(B59=#REF!) ->  | BZ76: =AND(C59=L59) -> TRUE | CA76: =AND(D59=M59) -> TRUE
S77: Important Information This calculator is designed to give an estimation of a person’s tax liability and also how pension contributions can have an effect on someone’s tax position. The calculations produced in this modeller are based on our current understanding of legislation and HMRC practice all which is subject to change without notice. Every care has been taken as to its accuracy, but it must be appreciated that neither M&G Prudential nor its representatives can accept any responsibility for loss, however caused, suffered by any person who has acted or refrained from acting as a result of material contained in this tool. Certain areas have been omitted from this model for simplicity and ease of use including National Insurance, some sources of income and other reliefs and allowances. It does not take into account all the possible individual circumstances that may impact on the tax position of the individual. It should not be taken as offering advice or any recommendation. You should be satisfied that the information you have entered into the calculator is correct, for example this tool will assume that any pension contributions and/or gift aid contributions are valid. You should ensure that the outputs are correct for your client. | AA77: Effective rate of tax relief on new contributions | AZ77: Income Tax payable | BG77: =MAX(0,BG64-BG75) -> 0 | BJ77: Income Tax payable | BQ77: =MAX(0,BQ64-BQ75) -> 0 | BX77: =AND(C60=J60) -> TRUE | BY77: =AND(#REF!=#REF!) ->  | BZ77: =AND(#REF!=L60) ->  | CA77: =AND(#REF!=M60) -> 
K78: Total Contributions (gross) | N78: =Inputs!W37+Inputs!W38 -> 0 | O78: a
J79: Relief: | AB79: Total Contributions (gross) | AE79: =Inputs!W37+Inputs!W38 -> 0 | AF79: a | AZ79: Child Benefit Tax Charge | BG79: =G65 -> 0 | BJ79: Child Benefit Tax Charge | BQ79: =N65 -> 0 | BX79: =AND(C62=J62) -> TRUE | BY79: =AND(#REF!=#REF!) ->  | BZ79: =AND(#REF!=L62) ->  | CA79: =AND(#REF!=#REF!) -> 
J80: at source | M80: =Inputs!W38-Inputs!J23 -> 0 | AA80: Relief:
J81: reduction in income tax bill | M81: =G60-N60 -> 0 | AA81: at source | AD81: =Inputs!AA39-Inputs!J23 -> 0 | AZ81: Capital Gain | BJ81: Capital Gain | BX81: =AND(B67=J67) -> FALSE | BY81: =AND(D67=K67) -> TRUE | BZ81: TRUE | CA81: TRUE
J82: reduction in CGT bill | M82: =G71-N71 -> 0 | AA82: reduction in income tax bill | AD82: =X62-AE62 -> 0 | AY82: Basic Rate | AZ82: =C68 -> 0 | BB82: @ | BC82: =Parameters!$B$30 -> 0.1 | BE82: =F68 -> 0 | BI82: Basic Rate | BJ82: =J68 -> 0 | BL82: @ | BM82: =Parameters!$B$30 -> 0.1 | BO82: =M68 -> 0 | BX82: =AND(C68=J68) -> TRUE | BY82: TRUE | BZ82: TRUE | CA82: TRUE
J83: child benefit tax charge saving | M83: =G65-N65 -> 0 | N83: =SUM(M80:M83) -> 0 | O83: b | AA83: reduction in CGT bill | AD83: =X73-AE73 -> 0 | AY83: Higher Rate | AZ83: =C69 -> 0 | BB83: @ | BC83: =Parameters!$B$31 -> 0.2 | BE83: =F69 -> 0 | BI83: Higher Rate | BJ83: =J69 -> 0 | BL83: @ | BM83: =Parameters!$B$31 -> 0.2 | BO83: =M69 -> 0 | BX83: =AND(C69=J69) -> TRUE | BY83: TRUE | BZ83: TRUE | CA83: TRUE
AA84: child benefit tax charge saving | AD84: =X67-AE67 -> 0 | AE84: =SUM(AD81:AD84) -> 0 | AF84: b | AY84: =B70 -> Total gain subject to additional tax (res prop/carried interest) | AZ84: =C70 -> 0 | BB84: @ | BC84: =Parameters!$B$31 -> 0.2 | BE84: =F70 -> 0 | BI84: =AY84 -> Total gain subject to additional tax (res prop/carried interest) | BJ84: =J70 -> 0 | BL84: @ | BM84: =Parameters!$B$31 -> 0.2 | BO84: =M70 -> 0 | BX84: =AND(C70=J70) -> TRUE | BY84: TRUE | BZ84: TRUE | CA84: TRUE
J85: Effective Rate (b divided by a) | N85: =IF(N78=0,0,N83/N78) -> 0 | AZ85: CGT payable | BG85: =SUM(BE82:BE83) -> 0 | BJ85: CGT payable | BQ85: =SUM(BO82:BO83) -> 0 | BX85: =AND(C71=J71) -> TRUE | BY85: =AND(#REF!=K71) ->  | BZ85: =AND(E71=#REF!) ->  | CA85: =AND(F71=M71) -> TRUE
AA86: Effective Rate (b divided by a) | AE86: =IF(AE79=0,0,AE84/AE79) -> 0 | BX86: =AND(C72=J72) -> TRUE | BY86: =AND(D72=K72) -> TRUE | BZ86: =AND(E72=L72) -> TRUE | CA86: =AND(F72=M72) -> TRUE
AZ87: Total tax payable | BG87: =BG85+BG77+BG79 -> 0 | BJ87: Total tax payable | BQ87: =BQ85+BQ77+BQ79 -> 0 | BX87: =AND(F73=M73) -> TRUE | BY87: =AND(D73=K73) -> TRUE | BZ87: =AND(E73=L73) -> TRUE | CA87: =AND(#REF!=#REF!) -> 

Sheet Top Slicing
B1: Top Slicing Calculation (whole UK) | J1: =Inputs!E1 -> Tax Year 2023/24
B3: EXISTING POSITION | J3: NEW POSITION
C5: Taxation of full gain | D5: ='Income Calcs'!$B$52 -> 0 | J5: Taxation of full gain | K5: ='Income Calcs'!$B$52 -> 0
G6: Tax | N6: Tax
B7: Step 1 | C7: Personal Allowance | D7: ='Workings (Top Slicing Full)'!F55 -> 0 | E7: @ | F7: 0 | G7: =D7*F7 -> 0 | J7: Personal Allowance | K7: ='Workings (Top Slicing Full)'!S55 -> 0 | L7: @ | M7: =F7 -> 0 | N7: =K7*M7 -> 0
C8: Starting Rate | D8: ='Workings (Top Slicing Full)'!F56 -> 0 | E8: @ | F8: 0 | G8: 0 | J8: Starting Rate | K8: ='Workings (Top Slicing Full)'!S56 -> 0 | L8: @ | M8: 0 | N8: 0
C9: Personal Savings Allowance | D9: ='Workings (Top Slicing Full)'!F57 -> 0 | E9: @ | F9: 0 | G9: 0 | J9: Personal Savings Allowance | K9: ='Workings (Top Slicing Full)'!S57 -> 0 | L9: @ | M9: 0 | N9: 0
C10: Basic Rate | D10: ='Workings (Top Slicing Full)'!F58 -> 0 | E10: @ | F10: =Parameters!$B$10 -> 0.2 | G10: 0 | J10: Basic Rate | K10: ='Workings (Top Slicing Full)'!S58 -> 0 | L10: @ | M10: 0.2 | N10: 0
C11: Higher Rate | D11: ='Workings (Top Slicing Full)'!F59 -> 0 | E11: @ | F11: =Parameters!$B$11 -> 0.4 | G11: 0 | J11: Higher Rate | K11: ='Workings (Top Slicing Full)'!S59 -> 0 | L11: @ | M11: 0.4 | N11: 0
C12: Additional Rate | D12: ='Workings (Top Slicing Full)'!F60 -> 0 | E12: @ | F12: =Parameters!$B$12 -> 0.45 | G12: 0 | J12: Additional Rate | K12: ='Workings (Top Slicing Full)'!S60 -> 0 | L12: @ | M12: 0.45 | N12: 0
C13: Total Liability | G13: =SUM(G7:G12) -> 0 | J13: Total Liability | N13: =SUM(N7:N12) -> 0
B14: Step 2 | C14: Tax Credit | G14: =(D5-D7)*F10 -> 0 | J14: Tax Credit | N14: =(K5-K7)*M10 -> 0
C15: Relieved liability on gain | G15: =MAX(0,G13-G14) -> 0 | J15: Relieved liability on gain | N15: =MAX(0,N13-N14) -> 0
B18: Step 3 | C18: Taxation of slice | D18: ='Workings (Top Slicing Slice)'!D55 -> 0 | J18: Taxation of slice | K18: ='Workings (Top Slicing Slice)'!Q55 -> 0
G19: Tax | N19: Tax
B20: Step 4 | C20: Personal Allowance | D20: ='Workings (Top Slicing Slice)'!F55 -> 0 | E20: @ | F20: =F7 -> 0 | G20: =F20*D20 -> 0 | J20: Personal Allowance | K20: ='Workings (Top Slicing Slice)'!S55 -> 0 | L20: =E20 -> @ | M20: =F7 -> 0 | N20: =M20*K20 -> 0
C21: Starting Rate | D21: ='Workings (Top Slicing Slice)'!F56 -> 0 | E21: @ | F21: 0 | G21: 0 | J21: =C21 -> Starting Rate | K21: ='Workings (Top Slicing Slice)'!S56 -> 0 | L21: @ | M21: 0 | N21: 0
C22: Personal Savings Allowance | D22: ='Workings (Top Slicing Slice)'!F57 -> 0 | E22: @ | F22: 0 | G22: 0 | J22: =C22 -> Personal Savings Allowance | K22: ='Workings (Top Slicing Slice)'!S57 -> 0 | L22: @ | M22: 0 | N22: 0
C23: Basic Rate | D23: ='Workings (Top Slicing Slice)'!F58 -> 0 | E23: @ | F23: 0.2 | G23: 0 | J23: Basic Rate | K23: ='Workings (Top Slicing Slice)'!S58 -> 0 | L23: @ | M23: 0.2 | N23: 0
C24: Higher Rate | D24: ='Workings (Top Slicing Slice)'!F59 -> 0 | E24: @ | F24: 0.4 | G24: 0 | J24: Higher Rate | K24: ='Workings (Top Slicing Slice)'!S59 -> 0 | L24: @ | M24: 0.4 | N24: 0
C25: Additional Rate | D25: ='Workings (Top Slicing Slice)'!F60 -> 0 | E25: @ | F25: 0.45 | G25: 0 | J25: Additional Rate | K25: ='Workings (Top Slicing Slice)'!S60 -> 0 | L25: @ | M25: 0.45 | N25: 0
C26: Total Liability | G26: =SUM(G21:G25) -> 0 | J26: Total Liability | N26: =SUM(N21:N25) -> 0
C27: Tax Credit | G27: =(D18-D20)*F23 -> 0 | J27: Tax Credit | N27: =(K18-K20)*M23 -> 0
C28: Relieved Liability on Slice | G28: =MAX(0,G26-G27) -> 0 | J28: Relieved Liability on Slice | N28: =MAX(0,N26-N27) -> 0
C29: Derived years (N) | G29: =IF(D5=0,0,D5/D18) -> 0 | J29: Derived years (N) | N29: =IF(K5=0,0,K5/K18) -> 0
C30: Relieved Liability on Slice x N | G30: =G28*G29 -> 0 | J30: Relieved Liability on Slice x N | N30: =N28*N29 -> 0
C32: Top Slicing Relief | J32: Top Slicing Relief
B33: Step 5 | C33: Relieved liability on full gain | G33: =G15 -> 0 | H33: a | J33: =C33 -> Relieved liability on full gain | N33: =N15 -> 0 | O33: a
C34: =C30 -> Relieved Liability on Slice x N | G34: =G30 -> 0 | H34: b | J34: =C34 -> Relieved Liability on Slice x N | N34: =N30 -> 0 | O34: b
C35: Top Slice Relief (a-b) | G35: =MAX(0,G33-G34) -> 0 | J35: Top Slice Relief (a-b) | N35: =MAX(0,N33-N34) -> 0
B37: Important Information This calculator is designed to give an estimation of a person’s tax liability and also how pension contributions can have an effect on someone’s tax position. The calculations produced in this modeller are based on our current understanding of legislation and HMRC practice all which is subject to change without notice. Every care has been taken as to its accuracy, but it must be appreciated that neither M&G nor its representatives can accept any responsibility for loss, however caused, suffered by any person who has acted or refrained from acting as a result of material contained in this tool. Certain areas have been omitted from this model for simplicity and ease of use including National Insurance, some sources of income and other reliefs and allowances. It does not take into account all the possible individual circumstances that may impact on the tax position of the individual. It should not be taken as offering advice or any recommendation. You should be satisfied that the information you have entered into the calculator is correct, for example this tool will assume that any pension contributions and/or gift aid contributions are valid. You should ensure that the outputs are correct for your client.

Sheet Inputs (printer friendly) (hidden)
B1: Tax Relief Modeller Tool | E1: =Inputs!E1 -> Tax Year 2023/24
B4: =Inputs!B4 -> ABOUT YOUR CLIENT | E4: =Inputs!E4 -> CHARGEABLE EVENTS - BOND GAINS
B6: =Inputs!B6 -> What is the client's age? | C6: =Inputs!C6 -> Under 75 | E6: =Inputs!E6 -> Onshore Gain 1 | F6: =Inputs!F6 -> 0 | H6: =Inputs!H6 -> Years Gain 1 (N) | I6: =Inputs!I6 -> 0 | J6: =Inputs!J6 -> Slice 1 | K6: =Inputs!K6 -> 
E7: =Inputs!E7 -> Onshore Gain 2 | F7: =Inputs!F7 -> 0 | H7: =Inputs!H7 -> Years Gain 2 (N) | I7: =Inputs!I7 -> 0 | J7: =Inputs!J7 -> Slice 2 | K7: =Inputs!K7 -> 
... 6 more rows

Sheet Personal allowance (hidden)
A1: Existing Position: | D1: New Position: | G1: =COUNTIF(G2:G12, FALSE) -> 0
A2: Adj_Net_Inc | B2: ='Income Calcs'!B66 -> 0 | C2: Adjusted Net Income | D2: New_Adj_Net_Inc | E2: ='Income Calcs'!B67 -> 0 | F2: Post - Adjusted Net Income | G2: =AND(B2=E2) -> TRUE
A3: Pers_Allow_Lim | B3: =Parameters!B2 -> 100000 | C3: Personal allowance reduces from | D3: Pers_Allow_Lim | E3: =B3 -> 100000 | F3: Personal allowance reduces from | G3: =AND(B3=E3) -> TRUE
A4: Excess_Pers_Allow_Limit | B4: =B2-B3 -> -100000 | C4: ANI less PA reduction | D4: Excess_Pers_Allow_Limit | E4: =E2-E3 -> -100000 | F4: Post - ANI less PA reduction | G4: =AND(B4=E4) -> TRUE
A5: Excess / 2 | B5: =ROUNDDOWN(B4/2,0) -> -50000 | C5: Personal allowance reduction amount | D5: Excess / 2 | E5: =ROUNDDOWN(E4/2,0) -> -50000 | F5: Post - Personal allowance reduction amount | G5: =AND(B5=E5) -> TRUE
A6: Pers_Allow_Adj | B6: =IF(B5<1,0,MIN(B5,Parameters!$B$1)) -> 0 | C6: In ANI less PA reduction | D6: Pers_Allow_Adj_New | E6: =IF(E5<1,0,MIN(E5,Parameters!$B$1)) -> 0 | F6: In Post - ANI less PA reduction | G6: =AND(B6=E6) -> TRUE
A9: Existing Silver Position: | D9: New Silver Position:
A10: Silv_Adj_Net_Inc | B10: ='Income Calcs'!B70 -> 0 | D10: Silv_New_Adj_Net_Inc | E10: ='Income Calcs'!B71 -> 0
A11: Pers_Allow_Lim | B11: =B3 -> 100000 | D11: Pers_Allow_Lim | E11: =E3 -> 100000
A12: Excess_Pers_Allow_Limit | B12: =B10-B11 -> -100000 | D12: Excess_Pers_Allow_Limit | E12: =E10-E11 -> -100000
A13: Excess / 2 | B13: =ROUNDDOWN(B12/2,0) -> -50000 | D13: Excess / 2 | E13: =ROUNDDOWN(E12/2,0) -> -50000
A14: Silv_Pers_Allow_Adj | B14: =IF(B13<1,0,MIN(B13,Parameters!$B$1)) -> 0 | D14: Silv_Pers_Allow_Adj_New | E14: =IF(E13<1,0,MIN(E13,Parameters!$B$1)) -> 0

Sheet Capital Gains Tax (hidden)
A1: Existing Position: | E1: New Position: | H1: =COUNTIF(H2:H14, FALSE) -> 0
A2: ='Income Calcs'!A15 -> Capital_Gain | B2: ='Income Calcs'!B15 -> 0 | E2: =A2 -> Capital_Gain | F2: =B2 -> 0 | H2: =AND(B2=F2) -> TRUE
A3: Capital_Gain_res/carried | E3: =A3 -> Capital_Gain_res/carried
A4: ='Income Calcs'!A48 -> Tot_Inc_Non_Savings | B4: ='Income Calcs'!B48 -> 0 | C4: NSND in ANI Model | E4: =A4 -> Tot_Inc_Non_Savings | F4: =B4 -> 0 | G4: NSND in ANI Model | H4: =AND(B4=F4) -> TRUE
A5: =Workings!A12 -> Gross Pension Contributions | B5: =Workings!F12 -> 0 | C5: Gross Pension Used NSND | E5: =A5 -> Gross Pension Contributions | F5: =Workings!R12 -> 0 | G5: Post - Gross Pension Used NSND | H5: TRUE
A6: ='Income Calcs'!A51 -> Tot_Inc_Savings | B6: ='Income Calcs'!B51 -> 0 | C6: Savings | E6: =A6 -> Tot_Inc_Savings | F6: =B6 -> 0 | G6: Savings | H6: TRUE
A7: ='Income Calcs'!A24 -> Tot_Slice | B7: ='Income Calcs'!B24 -> 0 | C7: Total Slices | E7: Tot_Slice | F7: =B7 -> 0 | G7: Total Slices | H7: TRUE
A8: ='Income Calcs'!A37 -> Gross_Div | B8: ='Income Calcs'!B37 -> 0 | C8: Dividend | E8: Gross_Div | F8: =B8 -> 0 | G8: Dividend | H8: TRUE
A9: =Workings!A5 -> Tot_Pers_Allow | B9: =Workings!B5 -> 12570 | C9: Personal Allowance To Use | E9: Tot_Pers_Allow | F9: =Workings!N5 -> 12570 | G9: Post - Personal Allowance To Use | H9: TRUE
A10: CGT_ Basic_band_used | B10: =MAX(0,(B4-B5+B6+B7+B8-B9)) -> 0 | C10: CGT Basic Rate Band Used | E10: CGT_ Basic_band_used | F10: =MAX(0,F4-F5+F6+F7+F8-F9) -> 0 | G10: CGT Basic Rate Band Used - Post | H10: TRUE
A11: Basic Rate band | B11: =Workings!B14 -> 37700 | C11: UK BRB to Use | E11: =A11 -> Basic Rate band | F11: =Workings!N14 -> 37700 | G11: Post - UK BRB to Use | H11: TRUE
A12: Basic Rate band remaining | B12: =MAX(0,B11-B10) -> 37700 | C12: Basic Rate Band Remaining - CGT | E12: Basic Rate band remaining | F12: =MAX(0,F11-F10) -> 37700 | G12: Basic Rate Band Remaining - CGT - Post | H12: TRUE
A13: Cptl_Gain_Basic Rate | B13: =MIN(B2,B12) -> 0 | C13: Basic Rate CGT | E13: Cptl_Gain_Basic Rate | F13: =MIN(F2,F12) -> 0 | G13: Basic Rate CGT - Post | H13: TRUE
A14: Cptl_Gain_Higher Rate | B14: =MAX(0,B2-B13) -> 0 | C14: Higher Rate CGT | E14: Cptl_Gain_Higher Rate | F14: =MAX(0,F2-F13) -> 0 | G14: Higher Rate CGT - Post | H14: TRUE
A15: CGT_Basic Rate | B15: =B13*Parameters!B30 -> 0 | C15: In outputs | E15: =A15 -> CGT_Basic Rate | F15: =F13*Parameters!B30 -> 0 | G15: In outputs | H15: TRUE
A16: CGT_Higher Rate | B16: =B14*Parameters!B31 -> 0 | C16: In outputs | E16: =A16 -> CGT_Higher Rate | F16: =F14*Parameters!B31 -> 0 | G16: In outputs | H16: TRUE
A17: CGT Premium Redidential Property/Carried Interest | B17: =Inputs!F21*Parameters!B32 -> 0 | C17: In outputs | E17: =A17 -> CGT Premium Redidential Property/Carried Interest | F17: =Inputs!F21*Parameters!B32 -> 0 | G17: In outputs
A18: CGT_Total | B18: =SUM(B15:B17) -> 0 | C18: In outputs | E18: =A18 -> CGT_Total | F18: =SUM(F15:F17) -> 0 | G18: In outputs | H18: TRUE
A20: CGT Relief:
A22: CGT_Saved | B22: =B18-F18 -> 0

Sheet Child Benefit Saving (hidden)
A1: Existing Position: | D1: New Position: | G1: =COUNTIF(G2:G12, FALSE) -> 0
A2: Tot_CB_Ben_One_Child | B2: =52*Parameters!$B$37 -> 1248 | D2: =A2 -> Tot_CB_Ben_One_Child | E2: =B2 -> 1248 | G2: =AND(B2=E2) -> TRUE
A3: CB_n_Child | B3: =52*Parameters!B38 -> 826.8 | D3: =A3 -> CB_n_Child | E3: =B3 -> 826.8 | G3: =AND(B3=E3) -> TRUE
A4: Adj_Net_Inc | B4: ='Income Calcs'!B66 -> 0 | D4: New_Adj_Net_Inc | E4: ='Income Calcs'!B67 -> 0 | G4: TRUE
A5: Inc_Excess_CB_Lim | B5: =MAX(0,'Child Benefit Saving'!$B$4-Parameters!$B$36) -> 0 | D5: New_Inc_Excess_CB_Lim | E5: =MAX(0,'Child Benefit Saving'!$E$4-Parameters!$B$36) -> 0 | G5: TRUE
A6: Excess_CB_Lim_Round | B6: =ROUNDDOWN('Child Benefit Saving'!$B$5/100,0) -> 0 | D6: New_Excess_CB_Lim_Round | E6: =ROUNDDOWN('Child Benefit Saving'!$E$5/100,0) -> 0 | G6: TRUE
A7: CB_Tax_Factor | B7: =MIN(100%,'Child Benefit Saving'!$B$6*1%) -> 0 | D7: New_CB_Tax_Factor | E7: =MIN(100%,'Child Benefit Saving'!$E$6*1%) -> 0 | G7: TRUE
A8: CB_Pre_Red | B8: =IF(Inputs!$C$10=0,0,IF(Inputs!$C$10=1,'Child Benefit Saving'!$B$2,'Child Benefit Saving'!$B$2+(Inputs!$C$10-1)*Parameters!$B$38*52)) -> 0 | D8: =A8 -> CB_Pre_Red | E8: =B8 -> 0 | G8: TRUE
A9: CB_Tax_Charge | B9: =ROUNDDOWN('Child Benefit Saving'!$B$8*'Child Benefit Saving'!$B$7,0) -> 0 | D9: New_CB_Tax_Charge | E9: =ROUNDDOWN('Child Benefit Saving'!$B$8*'Child Benefit Saving'!$E$7,0) -> 0 | G9: TRUE
A10: Net_CB | B10: =ROUNDDOWN('Child Benefit Saving'!$B$8-'Child Benefit Saving'!$B$9,0) -> 0 | D10: New_Net_CB | E10: =ROUNDDOWN('Child Benefit Saving'!$B$8-'Child Benefit Saving'!$E$9,0) -> 0 | G10: TRUE
A11: No_Children | B11: =Inputs!$C$10 -> 0
A13: Child Benefit Tax Charge Relief:
A15: CB_Saved | B15: ='Child Benefit Saving'!$E$10-'Child Benefit Saving'!$B$10 -> 0

Sheet Impact of Contns (hidden)
A1: =IF('Income Calcs'!$B$75 = "N","CLIENT OVER 75 - RESULTS IN THIS WORKSHEET NOT CALCULATED","") -> 
A3: Maximum Contribution:
A5: Max_Contn_Gross | B5: =IF('Income Calcs'!B47<Parameters!$B$33,Parameters!$B$33 - 'Income Calcs'!$B$33,'Income Calcs'!B47 - 'Income Calcs'!$B$33) -> 3600
A6: Max_Contn_Gross_Round | B6: =ROUNDUP('Impact of Contns'!$B$5,0) -> 3600
A7: Max_Contn_Net | B7: ='Impact of Contns'!$B$5*(1-Parameters!$B$10) -> 2880
A8: Max_Contn_Net_Round | B8: =ROUNDUP(B7,0) -> 2880
A12: Table Output
A13: Output Name: | B13: Value:
A14: Maximum Contribution (Gross) | B14: ='Impact of Contns'!$B$6 -> 3600
A15: Maximum Contribution (Net) | B15: ='Impact of Contns'!$B$8 -> 2880
A18: Tax
A19: Existing Position: | D19: New Position: | G19: Difference:
A20: Taxable Income (incl taxable capital gain only) | B20: ='Income Calcs'!B37+'Income Calcs'!B48+'Income Calcs'!B51+'Income Calcs'!B52 -> 0 | D20: =A20 -> Taxable Income (incl taxable capital gain only) | E20: =B20 -> 0 | G20: =E20-B20 -> 0
A21: Income Tax | B21: =Tax!G60 -> 0 | D21: =A21 -> Income Tax | E21: =Tax!N60 -> 0 | G21: =E21-B21 -> 0
A22: Child benefit charge | B22: =Tax!G65 -> 0 | D22: Child benefit charge | E22: =Tax!N65 -> 0 | G22: 0
A23: CGT | B23: =Tax!G71 -> 0 | D23: CGT | E23: =Tax!N71 -> 0 | G23: 0
A24: Personal allowance lost | B24: =Tax!C7 -> 0 | D24: Personal allowance lost | E24: =Tax!J7 -> 0 | G24: 0
A25: Income after tax | B25: =B20-(SUM(B21:B23)) -> 0 | D25: Income after tax | E25: =E20-(SUM(E21:E23)) -> 0 | G25: 0
A26: Pension Contributions (gross) | B26: ='Income Calcs'!B30 -> 0 | D26: Pension Contributions (gross) | E26: ='Income Calcs'!B33 -> 0 | G26: 0
A27: Income after tax and pension | B27: =B25-(SUM(Inputs!J18:J19)) -> 0 | D27: Income after tax and pension | E27: =E25-(SUM(Inputs!J18:J19)+SUM(Inputs!J23:J23)) -> 0 | G27: 0
